Body Name,Date Paid,Transaction Number,Amount,Supplier Name,Supplier Type,Expense Area,Cost Centre Description,Expense Type
Cambridgeshire County Council,02-Mar-16,20069670-12900557,-45000,Mott Macdonald Ltd,Trade Supplier,Director of Growth & Infrastructure,City Deal - A10 North,Capital WIP - other  -  Expenditure / Payments
Cambridgeshire County Council,31-Mar-16,20166706-13082879,-13888,Archways Care Ltd (Birmingham),Care Establishment,S&C,Placements - Social Care,Agency Placements - Out County
Cambridgeshire County Council,24-Mar-16,20092496-13034107,-6724.06,Mears Care Ltd,Care Establishment,2 - Commissioning - Older people Pool,Older People - City & South,Supported Living
Cambridgeshire County Council,02-Mar-16,19687421-12900586,-5080.19,Network Rail,Company,Local Infrastructure & Street Management,Bridges Works,Bridge Strengthening
Cambridgeshire County Council,23-Mar-16,19953237-13026759,-4946.33,Cambrian Supported Living Ltd,Trade Supplier,4 - Commissioning - Mental Health & Supporting People,Hunts Mental Health Team,Supported Living
Cambridgeshire County Council,29-Mar-16,20229332-13045022,-4171.8,Chs Group,Care Establishment,2 - Operations - Learning Disability,LDP City Locality - Care,Residential Independent Sector
Cambridgeshire County Council,11-Mar-16,20078075-12966464,-4119.28,Thera East Anglia,Trust (Other),2 - Operations - Learning Disability,LDP E Cambs Locality - Care,SDS - Care and support Services
Cambridgeshire County Council,30-Mar-16,20274819-13069409,-3475.24,Affinity Trust,Care Establishment,2 - Operations - Learning Disability,LDP Fenland Locality - Care,Day and Domicillary Care Independent Sector
Cambridgeshire County Council,30-Mar-16,20274820-13069410,-3475.24,Affinity Trust,Care Establishment,2 - Operations - Learning Disability,LDP Fenland Locality - Care,Day and Domicillary Care Independent Sector
Cambridgeshire County Council,30-Mar-16,20274826-13069416,-3475.24,Affinity Trust,Care Establishment,2 - Operations - Learning Disability,LDP Fenland Locality - Care,Day and Domicillary Care Independent Sector
Cambridgeshire County Council,30-Mar-16,20274831-13069421,-3475.24,Affinity Trust,Care Establishment,2 - Operations - Learning Disability,LDP Fenland Locality - Care,Day and Domicillary Care Independent Sector
Cambridgeshire County Council,08-Mar-16,20084880-12944645,-3333,The Mary Hare Primary School,Education,S&C,Placements - Education,Independent School Placements
Cambridgeshire County Council,08-Mar-16,20084881-12944646,-3333,The Mary Hare Primary School,Education,S&C,Placements - Education,Independent School Placements
Cambridgeshire County Council,29-Mar-16,20092515-13046142,-3327.56,Fostering Solutions Ltd,Care Establishment,S&C,Placements - Social Care,Agency Placements - Out County
Cambridgeshire County Council,30-Mar-16,20274827-13069417,-2978.78,Affinity Trust,Care Establishment,2 - Operations - Learning Disability,LDP Fenland Locality - Care,Day and Domicillary Care Independent Sector
Cambridgeshire County Council,18-Mar-16,20229292-13007762,-2898.04,Pendragon Contracts Ltd,Trade Supplier,LGSS Managed,"POD - Leadership	",Leased Vehicle Costs
Cambridgeshire County Council,11-Mar-16,20178355-12966273,-2746.46,Penderels Trust,Trust (Other),2 - Operations - Learning Disability,LDP Huntingdonshire Locality - Care,SDS - Care and support Services
Cambridgeshire County Council,11-Mar-16,20178357-12966275,-2746.46,Penderels Trust,Trust (Other),2 - Operations - Learning Disability,LDP Huntingdonshire Locality - Care,SDS - Care and support Services
Cambridgeshire County Council,11-Mar-16,20180026-12966308,-2746.46,Penderels Trust,Trust (Other),2 - Operations - Learning Disability,LDP Huntingdonshire Locality - Care,SDS - Care and support Services
Cambridgeshire County Council,11-Mar-16,20180030-12966312,-2746.46,Penderels Trust,Trust (Other),2 - Operations - Learning Disability,LDP Huntingdonshire Locality - Care,SDS - Care and support Services
Cambridgeshire County Council,11-Mar-16,20180039-12966306,-2746.46,Penderels Trust,Trust (Other),2 - Operations - Learning Disability,LDP Huntingdonshire Locality - Care,SDS - Care and support Services
Cambridgeshire County Council,29-Mar-16,19367611-13044817,-2631.16,Voyage (Lichfield),Care Establishment,2 - Commissioning - Older people Pool,Older People - Fenland,Supported Living
Cambridgeshire County Council,30-Mar-16,20229279-13064003,-2611.2,Fresh Start For Kids,Care Establishment,S&C,Out of School Provision - Education and Settings,Agency Placements - In Cambs
Cambridgeshire County Council,30-Mar-16,20229281-13064004,-2611.2,Fresh Start For Kids,Care Establishment,S&C,Out of School Provision - Education and Settings,Agency Placements - In Cambs
Cambridgeshire County Council,30-Mar-16,20327966-13050732,-2521.94,Fostering Solutions Ltd,Care Establishment,S&C,Placements - Social Care,Agency Placements - In Cambs
Cambridgeshire County Council,29-Mar-16,20147716-13045676,-2419.04,Cambridgeshire Community Services Nhs Trust,Trust (Other),S&C,Procurement - TA Therapy in Special Schools,Other Hired Contract Services
Cambridgeshire County Council,24-Mar-16,20271559-13035107,-2387.68,Thera East Anglia,Trust (Other),2 - Operations - Learning Disability,LDP Fens - Special Needs,Supported Living
Cambridgeshire County Council,24-Mar-16,20271560-13035108,-2387.68,Thera East Anglia,Trust (Other),2 - Operations - Learning Disability,LDP Fens - Special Needs,Supported Living
Cambridgeshire County Council,24-Mar-16,20273565-13035078,-2387.68,Thera East Anglia,Trust (Other),2 - Operations - Learning Disability,LDP Fens - Special Needs,Supported Living
Cambridgeshire County Council,24-Mar-16,20273567-13035079,-2387.68,Thera East Anglia,Trust (Other),2 - Operations - Learning Disability,LDP Fens - Special Needs,Supported Living
Cambridgeshire County Council,24-Mar-16,20273574-13035081,-2387.68,Thera East Anglia,Trust (Other),2 - Operations - Learning Disability,LDP Fens - Special Needs,Supported Living
Cambridgeshire County Council,24-Mar-16,20273584-13035083,-2387.68,Thera East Anglia,Trust (Other),2 - Operations - Learning Disability,LDP Fens - Special Needs,Supported Living
Cambridgeshire County Council,24-Mar-16,20273590-13035085,-2387.68,Thera East Anglia,Trust (Other),2 - Operations - Learning Disability,LDP Fens - Special Needs,Supported Living
Cambridgeshire County Council,24-Mar-16,20273591-13035086,-2387.68,Thera East Anglia,Trust (Other),2 - Operations - Learning Disability,LDP Fens - Special Needs,Supported Living
Cambridgeshire County Council,24-Mar-16,20273600-13035051,-2387.68,Thera East Anglia,Trust (Other),2 - Operations - Learning Disability,LDP Fens - Special Needs,Supported Living
Cambridgeshire County Council,29-Mar-16,20078221-13045635,-2281.44,Education Personnel Management Ltd,Education,ED,HR - EPM Contract,Other Hired Contract Services
Cambridgeshire County Council,17-Mar-16,20085251-12990741,-2139.91,Imtech Aqua Maintenance Ltd,Company,LGSS Managed,Signet Court,Capital WIP - land and buildings  -  Construction cost
Cambridgeshire County Council,03-Mar-16,20084716-12902938,-2094.71,Primrose Healthcare,Care Establishment,4 - Commissioning - Mental Health & Supporting People,Dom Blocks,Respite Independent Sector
Cambridgeshire County Council,17-Mar-16,20029153-12991062,-2065,Park House (Bedford),Care Establishment,3 - Operations - Countywide Services,Countywide PD Service - Care,Residential Independent Sector
Cambridgeshire County Council,17-Mar-16,20029180-12991070,-2065,Park House (Bedford),Care Establishment,3 - Operations - Countywide Services,Countywide PD Service - Care,Residential Independent Sector
Cambridgeshire County Council,04-Mar-16,20055714-12938385,-1977.75,Social Care Solutions Ltd,Care Establishment,3 - Operations - Countywide Services,LDP Young Adults - Care,Supported Living
Cambridgeshire County Council,04-Mar-16,20055715-12938386,-1977.75,Social Care Solutions Ltd,Care Establishment,3 - Operations - Countywide Services,LDP Young Adults - Care,Supported Living
Cambridgeshire County Council,04-Mar-16,20055717-12938387,-1977.75,Social Care Solutions Ltd,Care Establishment,3 - Operations - Countywide Services,LDP Young Adults - Care,Supported Living
Cambridgeshire County Council,04-Mar-16,20055718-12938388,-1977.75,Social Care Solutions Ltd,Care Establishment,3 - Operations - Countywide Services,LDP Young Adults - Care,Supported Living
Cambridgeshire County Council,04-Mar-16,20055719-12938389,-1977.75,Social Care Solutions Ltd,Care Establishment,3 - Operations - Countywide Services,LDP Young Adults - Care,Supported Living
Cambridgeshire County Council,04-Mar-16,20055720-12938390,-1977.75,Social Care Solutions Ltd,Care Establishment,3 - Operations - Countywide Services,LDP Young Adults - Care,Supported Living
Cambridgeshire County Council,04-Mar-16,20055721-12938391,-1977.75,Social Care Solutions Ltd,Care Establishment,3 - Operations - Countywide Services,LDP Young Adults - Care,Supported Living
Cambridgeshire County Council,04-Mar-16,20055722-12938392,-1977.75,Social Care Solutions Ltd,Care Establishment,3 - Operations - Countywide Services,LDP Young Adults - Care,Supported Living
Cambridgeshire County Council,04-Mar-16,20055723-12938393,-1977.75,Social Care Solutions Ltd,Care Establishment,3 - Operations - Countywide Services,LDP Young Adults - Care,Supported Living
Cambridgeshire County Council,04-Mar-16,20055724-12938394,-1977.75,Social Care Solutions Ltd,Care Establishment,3 - Operations - Countywide Services,LDP Young Adults - Care,Supported Living
Cambridgeshire County Council,04-Mar-16,20055725-12938395,-1977.75,Social Care Solutions Ltd,Care Establishment,3 - Operations - Countywide Services,LDP Young Adults - Care,Supported Living
Cambridgeshire County Council,04-Mar-16,20055726-12938396,-1977.75,Social Care Solutions Ltd,Care Establishment,3 - Operations - Countywide Services,LDP Young Adults - Care,Supported Living
Cambridgeshire County Council,04-Mar-16,20055727-12938397,-1977.75,Social Care Solutions Ltd,Care Establishment,3 - Operations - Countywide Services,LDP Young Adults - Care,Supported Living
Cambridgeshire County Council,04-Mar-16,20055729-12938399,-1977.75,Social Care Solutions Ltd,Care Establishment,3 - Operations - Countywide Services,LDP Young Adults - Care,Supported Living
Cambridgeshire County Council,04-Mar-16,20055730-12938400,-1977.75,Social Care Solutions Ltd,Care Establishment,3 - Operations - Countywide Services,LDP Young Adults - Care,Supported Living
Cambridgeshire County Council,04-Mar-16,20055732-12938401,-1977.75,Social Care Solutions Ltd,Care Establishment,3 - Operations - Countywide Services,LDP Young Adults - Care,Supported Living
Cambridgeshire County Council,04-Mar-16,20055733-12938402,-1977.75,Social Care Solutions Ltd,Care Establishment,3 - Operations - Countywide Services,LDP Young Adults - Care,Supported Living
Cambridgeshire County Council,04-Mar-16,20055735-12938403,-1977.75,Social Care Solutions Ltd,Care Establishment,3 - Operations - Countywide Services,LDP Young Adults - Care,Supported Living
Cambridgeshire County Council,04-Mar-16,20058800-12938354,-1977.75,Social Care Solutions Ltd,Care Establishment,3 - Operations - Countywide Services,LDP Young Adults - Care,Supported Living
Cambridgeshire County Council,04-Mar-16,20058801-12938355,-1977.75,Social Care Solutions Ltd,Care Establishment,3 - Operations - Countywide Services,LDP Young Adults - Care,Supported Living
Cambridgeshire County Council,04-Mar-16,20058802-12938356,-1977.75,Social Care Solutions Ltd,Care Establishment,3 - Operations - Countywide Services,LDP Young Adults - Care,Supported Living
Cambridgeshire County Council,04-Mar-16,20058803-12938357,-1977.75,Social Care Solutions Ltd,Care Establishment,3 - Operations - Countywide Services,LDP Young Adults - Care,Supported Living
Cambridgeshire County Council,04-Mar-16,20058804-12938358,-1977.75,Social Care Solutions Ltd,Care Establishment,3 - Operations - Countywide Services,LDP Young Adults - Care,Supported Living
Cambridgeshire County Council,04-Mar-16,20058805-12938359,-1977.75,Social Care Solutions Ltd,Care Establishment,3 - Operations - Countywide Services,LDP Young Adults - Care,Supported Living
Cambridgeshire County Council,04-Mar-16,20058806-12938360,-1977.75,Social Care Solutions Ltd,Care Establishment,3 - Operations - Countywide Services,LDP Young Adults - Care,Supported Living
Cambridgeshire County Council,04-Mar-16,20058807-12938361,-1977.75,Social Care Solutions Ltd,Care Establishment,3 - Operations - Countywide Services,LDP Young Adults - Care,Supported Living
Cambridgeshire County Council,04-Mar-16,20058808-12938362,-1977.75,Social Care Solutions Ltd,Care Establishment,3 - Operations - Countywide Services,LDP Young Adults - Care,Supported Living
Cambridgeshire County Council,04-Mar-16,20058809-12938363,-1977.75,Social Care Solutions Ltd,Care Establishment,3 - Operations - Countywide Services,LDP Young Adults - Care,Supported Living
Cambridgeshire County Council,04-Mar-16,20058810-12938364,-1977.75,Social Care Solutions Ltd,Care Establishment,3 - Operations - Countywide Services,LDP Young Adults - Care,Supported Living
Cambridgeshire County Council,04-Mar-16,20058813-12938365,-1977.75,Social Care Solutions Ltd,Care Establishment,3 - Operations - Countywide Services,LDP Young Adults - Care,Supported Living
Cambridgeshire County Council,04-Mar-16,20058815-12938366,-1977.75,Social Care Solutions Ltd,Care Establishment,3 - Operations - Countywide Services,LDP Young Adults - Care,Supported Living
Cambridgeshire County Council,04-Mar-16,20058816-12938367,-1977.75,Social Care Solutions Ltd,Care Establishment,3 - Operations - Countywide Services,LDP Young Adults - Care,Supported Living
Cambridgeshire County Council,04-Mar-16,20058817-12938368,-1977.75,Social Care Solutions Ltd,Care Establishment,3 - Operations - Countywide Services,LDP Young Adults - Care,Supported Living
Cambridgeshire County Council,04-Mar-16,20058818-12938369,-1977.75,Social Care Solutions Ltd,Care Establishment,3 - Operations - Countywide Services,LDP Young Adults - Care,Supported Living
Cambridgeshire County Council,04-Mar-16,20058819-12938370,-1977.75,Social Care Solutions Ltd,Care Establishment,3 - Operations - Countywide Services,LDP Young Adults - Care,Supported Living
Cambridgeshire County Council,04-Mar-16,20058820-12938371,-1977.75,Social Care Solutions Ltd,Care Establishment,3 - Operations - Countywide Services,LDP Young Adults - Care,Supported Living
Cambridgeshire County Council,04-Mar-16,20058821-12938372,-1977.75,Social Care Solutions Ltd,Care Establishment,3 - Operations - Countywide Services,LDP Young Adults - Care,Supported Living
Cambridgeshire County Council,04-Mar-16,20058822-12938373,-1977.75,Social Care Solutions Ltd,Care Establishment,3 - Operations - Countywide Services,LDP Young Adults - Care,Supported Living
Cambridgeshire County Council,04-Mar-16,20058823-12938374,-1977.75,Social Care Solutions Ltd,Care Establishment,3 - Operations - Countywide Services,LDP Young Adults - Care,Supported Living
Cambridgeshire County Council,04-Mar-16,20058824-12938375,-1977.75,Social Care Solutions Ltd,Care Establishment,3 - Operations - Countywide Services,LDP Young Adults - Care,Supported Living
Cambridgeshire County Council,04-Mar-16,20058825-12938376,-1977.75,Social Care Solutions Ltd,Care Establishment,3 - Operations - Countywide Services,LDP Young Adults - Care,Supported Living
Cambridgeshire County Council,17-Mar-16,20029154-12991063,-1960,Park House (Bedford),Care Establishment,3 - Operations - Countywide Services,Countywide PD Service - Care,Residential Independent Sector
Cambridgeshire County Council,17-Mar-16,20029158-12991064,-1960,Park House (Bedford),Care Establishment,3 - Operations - Countywide Services,Countywide PD Service - Care,Residential Independent Sector
Cambridgeshire County Council,17-Mar-16,20029166-12991066,-1960,Park House (Bedford),Care Establishment,3 - Operations - Countywide Services,Countywide PD Service - Care,Residential Independent Sector
Cambridgeshire County Council,10-Mar-16,20162752-12955685,-1896.73,Capita Business Services Ltd,Trade Supplier,LRNG,ICT Service Helpline,Materials for resale
Cambridgeshire County Council,17-Mar-16,20218239-12990428,-1885.23,Redacted Personal Data,Individual,2 - Operations - Learning Disability,LDP South Cambs Locality - Care,Direct Payments - Social Services
Cambridgeshire County Council,17-Mar-16,20218242-12990431,-1885.23,Redacted Personal Data,Individual,2 - Operations - Learning Disability,LDP South Cambs Locality - Care,Direct Payments - Social Services
Cambridgeshire County Council,17-Mar-16,20221222-12990373,-1885.23,Redacted Personal Data,Individual,2 - Operations - Learning Disability,LDP South Cambs Locality - Care,Direct Payments - Social Services
Cambridgeshire County Council,17-Mar-16,20221226-12990377,-1885.23,Redacted Personal Data,Individual,2 - Operations - Learning Disability,LDP South Cambs Locality - Care,Direct Payments - Social Services
Cambridgeshire County Council,17-Mar-16,20221227-12990378,-1885.23,Redacted Personal Data,Individual,2 - Operations - Learning Disability,LDP South Cambs Locality - Care,Direct Payments - Social Services
Cambridgeshire County Council,17-Mar-16,20221229-12990380,-1885.23,Redacted Personal Data,Individual,2 - Operations - Learning Disability,LDP South Cambs Locality - Care,Direct Payments - Social Services
Cambridgeshire County Council,17-Mar-16,20221235-12990386,-1885.23,Redacted Personal Data,Individual,2 - Operations - Learning Disability,LDP South Cambs Locality - Care,Direct Payments - Social Services
Cambridgeshire County Council,17-Mar-16,20221253-12990404,-1885.23,Redacted Personal Data,Individual,2 - Operations - Learning Disability,LDP South Cambs Locality - Care,Direct Payments - Social Services
Cambridgeshire County Council,17-Mar-16,20221257-12990408,-1885.23,Redacted Personal Data,Individual,2 - Operations - Learning Disability,LDP South Cambs Locality - Care,Direct Payments - Social Services
Cambridgeshire County Council,17-Mar-16,20221263-12990414,-1885.23,Redacted Personal Data,Individual,2 - Operations - Learning Disability,LDP South Cambs Locality - Care,Direct Payments - Social Services
Cambridgeshire County Council,04-Mar-16,19978207-12929669,-1848.89,Mayfield Heath Farm,Care Establishment,2 - Operations - Learning Disability,LDP Huntingdonshire Locality - Care,Supported Living
Cambridgeshire County Council,04-Mar-16,19978209-12929671,-1848.89,Mayfield Heath Farm,Care Establishment,2 - Operations - Learning Disability,LDP Huntingdonshire Locality - Care,Supported Living
Cambridgeshire County Council,04-Mar-16,19978212-12929674,-1848.89,Mayfield Heath Farm,Care Establishment,2 - Operations - Learning Disability,LDP Huntingdonshire Locality - Care,Supported Living
Cambridgeshire County Council,04-Mar-16,19978213-12929675,-1848.89,Mayfield Heath Farm,Care Establishment,2 - Operations - Learning Disability,LDP Huntingdonshire Locality - Care,Supported Living
Cambridgeshire County Council,04-Mar-16,19978218-12929680,-1848.89,Mayfield Heath Farm,Care Establishment,2 - Operations - Learning Disability,LDP Huntingdonshire Locality - Care,Supported Living
Cambridgeshire County Council,04-Mar-16,19981769-12929632,-1848.89,Mayfield Heath Farm,Care Establishment,2 - Operations - Learning Disability,LDP Huntingdonshire Locality - Care,Supported Living
Cambridgeshire County Council,04-Mar-16,19981772-12929635,-1848.89,Mayfield Heath Farm,Care Establishment,2 - Operations - Learning Disability,LDP Huntingdonshire Locality - Care,Supported Living
Cambridgeshire County Council,04-Mar-16,19981777-12929640,-1848.89,Mayfield Heath Farm,Care Establishment,2 - Operations - Learning Disability,LDP Huntingdonshire Locality - Care,Supported Living
Cambridgeshire County Council,04-Mar-16,19981779-12929642,-1848.89,Mayfield Heath Farm,Care Establishment,2 - Operations - Learning Disability,LDP Huntingdonshire Locality - Care,Supported Living
Cambridgeshire County Council,04-Mar-16,19981781-12929644,-1848.89,Mayfield Heath Farm,Care Establishment,2 - Operations - Learning Disability,LDP Huntingdonshire Locality - Care,Supported Living
Cambridgeshire County Council,03-Mar-16,20064706-12902859,-1839.47,St George'S Court,Care Establishment,4 - Commissioning - Mental Health & Supporting People,Dom Blocks,Respite Independent Sector
Cambridgeshire County Council,04-Mar-16,19978129-12929648,-1818.53,Mayfield Heath Farm,Care Establishment,2 - Operations - Learning Disability,LDP Huntingdonshire Locality - Care,Supported Living
Cambridgeshire County Council,04-Mar-16,19978132-12929650,-1818.53,Mayfield Heath Farm,Care Establishment,2 - Operations - Learning Disability,LDP Huntingdonshire Locality - Care,Supported Living
Cambridgeshire County Council,04-Mar-16,19978136-12929652,-1818.53,Mayfield Heath Farm,Care Establishment,2 - Operations - Learning Disability,LDP Huntingdonshire Locality - Care,Supported Living
Cambridgeshire County Council,04-Mar-16,19978145-12929657,-1818.53,Mayfield Heath Farm,Care Establishment,2 - Operations - Learning Disability,LDP Huntingdonshire Locality - Care,Supported Living
Cambridgeshire County Council,04-Mar-16,19978148-12929660,-1818.53,Mayfield Heath Farm,Care Establishment,2 - Operations - Learning Disability,LDP Huntingdonshire Locality - Care,Supported Living
Cambridgeshire County Council,04-Mar-16,19978529-12929682,-1818.53,Mayfield Heath Farm,Care Establishment,2 - Operations - Learning Disability,LDP Huntingdonshire Locality - Care,Supported Living
Cambridgeshire County Council,04-Mar-16,19978531-12929684,-1818.53,Mayfield Heath Farm,Care Establishment,2 - Operations - Learning Disability,LDP Huntingdonshire Locality - Care,Supported Living
Cambridgeshire County Council,04-Mar-16,19978536-12929689,-1818.53,Mayfield Heath Farm,Care Establishment,2 - Operations - Learning Disability,LDP Huntingdonshire Locality - Care,Supported Living
Cambridgeshire County Council,04-Mar-16,19978539-12929692,-1818.53,Mayfield Heath Farm,Care Establishment,2 - Operations - Learning Disability,LDP Huntingdonshire Locality - Care,Supported Living
Cambridgeshire County Council,04-Mar-16,19978546-12929699,-1818.53,Mayfield Heath Farm,Care Establishment,2 - Operations - Learning Disability,LDP Huntingdonshire Locality - Care,Supported Living
Cambridgeshire County Council,24-Mar-16,20274835-13035001,-1792,Thera East Anglia,Trust (Other),2 - Operations - Learning Disability,LDP South Cambs Locality - Care,Supported Living
Cambridgeshire County Council,24-Mar-16,20274836-13035002,-1792,Thera East Anglia,Trust (Other),2 - Operations - Learning Disability,LDP South Cambs Locality - Care,Supported Living
Cambridgeshire County Council,24-Mar-16,20274841-13035007,-1792,Thera East Anglia,Trust (Other),2 - Operations - Learning Disability,LDP South Cambs Locality - Care,Supported Living
Cambridgeshire County Council,24-Mar-16,20274842-13035008,-1792,Thera East Anglia,Trust (Other),2 - Operations - Learning Disability,LDP South Cambs Locality - Care,Supported Living
Cambridgeshire County Council,24-Mar-16,20274844-13035010,-1792,Thera East Anglia,Trust (Other),2 - Operations - Learning Disability,LDP South Cambs Locality - Care,Supported Living
Cambridgeshire County Council,24-Mar-16,20274845-13035011,-1792,Thera East Anglia,Trust (Other),2 - Operations - Learning Disability,LDP South Cambs Locality - Care,Supported Living
Cambridgeshire County Council,24-Mar-16,20274846-13035012,-1792,Thera East Anglia,Trust (Other),2 - Operations - Learning Disability,LDP South Cambs Locality - Care,Supported Living
Cambridgeshire County Council,24-Mar-16,20274848-13035014,-1792,Thera East Anglia,Trust (Other),2 - Operations - Learning Disability,LDP South Cambs Locality - Care,Supported Living
Cambridgeshire County Council,24-Mar-16,20274851-13035017,-1792,Thera East Anglia,Trust (Other),2 - Operations - Learning Disability,LDP South Cambs Locality - Care,Supported Living
Cambridgeshire County Council,29-Mar-16,20093344-13046143,-1717.45,Fostering Solutions Ltd,Care Establishment,S&C,Placements - Social Care,Agency Placements - Out County
Cambridgeshire County Council,24-Mar-16,20219015-13033873,-1710.61,Brain Injury Rehabilitation Trust,Care Establishment,3 - Operations - Countywide Services,Countywide PD Service - Care,Residential Independent Sector
Cambridgeshire County Council,24-Mar-16,20219016-13033874,-1710.61,Brain Injury Rehabilitation Trust,Care Establishment,3 - Operations - Countywide Services,Countywide PD Service - Care,Residential Independent Sector
Cambridgeshire County Council,24-Mar-16,20219017-13033875,-1710.61,Brain Injury Rehabilitation Trust,Care Establishment,3 - Operations - Countywide Services,Countywide PD Service - Care,Residential Independent Sector
Cambridgeshire County Council,24-Mar-16,20219018-13033876,-1710.61,Brain Injury Rehabilitation Trust,Care Establishment,3 - Operations - Countywide Services,Countywide PD Service - Care,Residential Independent Sector
Cambridgeshire County Council,24-Mar-16,20219019-13033877,-1710.61,Brain Injury Rehabilitation Trust,Care Establishment,3 - Operations - Countywide Services,Countywide PD Service - Care,Residential Independent Sector
Cambridgeshire County Council,24-Mar-16,20219020-13033878,-1710.61,Brain Injury Rehabilitation Trust,Care Establishment,3 - Operations - Countywide Services,Countywide PD Service - Care,Residential Independent Sector
Cambridgeshire County Council,24-Mar-16,20219021-13033879,-1710.61,Brain Injury Rehabilitation Trust,Care Establishment,3 - Operations - Countywide Services,Countywide PD Service - Care,Residential Independent Sector
Cambridgeshire County Council,24-Mar-16,20219022-13033880,-1710.61,Brain Injury Rehabilitation Trust,Care Establishment,3 - Operations - Countywide Services,Countywide PD Service - Care,Residential Independent Sector
Cambridgeshire County Council,24-Mar-16,20219024-13033882,-1710.61,Brain Injury Rehabilitation Trust,Care Establishment,3 - Operations - Countywide Services,Countywide PD Service - Care,Residential Independent Sector
Cambridgeshire County Council,24-Mar-16,20219025-13033883,-1710.61,Brain Injury Rehabilitation Trust,Care Establishment,3 - Operations - Countywide Services,Countywide PD Service - Care,Residential Independent Sector
Cambridgeshire County Council,24-Mar-16,20219027-13033885,-1710.61,Brain Injury Rehabilitation Trust,Care Establishment,3 - Operations - Countywide Services,Countywide PD Service - Care,Residential Independent Sector
Cambridgeshire County Council,24-Mar-16,20219028-13033886,-1710.61,Brain Injury Rehabilitation Trust,Care Establishment,3 - Operations - Countywide Services,Countywide PD Service - Care,Residential Independent Sector
Cambridgeshire County Council,24-Mar-16,20219029-13033887,-1710.61,Brain Injury Rehabilitation Trust,Care Establishment,3 - Operations - Countywide Services,Countywide PD Service - Care,Residential Independent Sector
Cambridgeshire County Council,24-Mar-16,20219030-13033888,-1710.61,Brain Injury Rehabilitation Trust,Care Establishment,3 - Operations - Countywide Services,Countywide PD Service - Care,Residential Independent Sector
Cambridgeshire County Council,24-Mar-16,20219031-13033889,-1710.61,Brain Injury Rehabilitation Trust,Care Establishment,3 - Operations - Countywide Services,Countywide PD Service - Care,Residential Independent Sector
Cambridgeshire County Council,24-Mar-16,20219032-13033890,-1710.61,Brain Injury Rehabilitation Trust,Care Establishment,3 - Operations - Countywide Services,Countywide PD Service - Care,Residential Independent Sector
Cambridgeshire County Council,24-Mar-16,20219033-13033891,-1710.61,Brain Injury Rehabilitation Trust,Care Establishment,3 - Operations - Countywide Services,Countywide PD Service - Care,Residential Independent Sector
Cambridgeshire County Council,24-Mar-16,20219034-13033892,-1710.61,Brain Injury Rehabilitation Trust,Care Establishment,3 - Operations - Countywide Services,Countywide PD Service - Care,Residential Independent Sector
Cambridgeshire County Council,24-Mar-16,20219035-13033867,-1710.61,Brain Injury Rehabilitation Trust,Care Establishment,3 - Operations - Countywide Services,Countywide PD Service - Care,Residential Independent Sector
Cambridgeshire County Council,24-Mar-16,20219036-13033868,-1710.61,Brain Injury Rehabilitation Trust,Care Establishment,3 - Operations - Countywide Services,Countywide PD Service - Care,Residential Independent Sector
Cambridgeshire County Council,24-Mar-16,20219037-13033869,-1710.61,Brain Injury Rehabilitation Trust,Care Establishment,3 - Operations - Countywide Services,Countywide PD Service - Care,Residential Independent Sector
Cambridgeshire County Council,24-Mar-16,20219038-13033870,-1710.61,Brain Injury Rehabilitation Trust,Care Establishment,3 - Operations - Countywide Services,Countywide PD Service - Care,Residential Independent Sector
Cambridgeshire County Council,24-Mar-16,20219039-13033871,-1710.61,Brain Injury Rehabilitation Trust,Care Establishment,3 - Operations - Countywide Services,Countywide PD Service - Care,Residential Independent Sector
Cambridgeshire County Council,17-Mar-16,20029172-12991069,-1680,Park House (Bedford),Care Establishment,3 - Operations - Countywide Services,Countywide PD Service - Care,Residential Independent Sector
Cambridgeshire County Council,30-Mar-16,20392002-13075834,-1667,Dimensions (Uk) Ltd,Care Establishment,2 - Operations - Learning Disability,LDP South Cambs Locality - Care,Supported Living
Cambridgeshire County Council,30-Mar-16,20392004-13075835,-1667,Dimensions (Uk) Ltd,Care Establishment,2 - Operations - Learning Disability,LDP South Cambs Locality - Care,Supported Living
Cambridgeshire County Council,30-Mar-16,20392006-13075836,-1667,Dimensions (Uk) Ltd,Care Establishment,2 - Operations - Learning Disability,LDP South Cambs Locality - Care,Supported Living
Cambridgeshire County Council,30-Mar-16,20392007-13075837,-1667,Dimensions (Uk) Ltd,Care Establishment,2 - Operations - Learning Disability,LDP South Cambs Locality - Care,Supported Living
Cambridgeshire County Council,30-Mar-16,20392010-13075838,-1667,Dimensions (Uk) Ltd,Care Establishment,2 - Operations - Learning Disability,LDP South Cambs Locality - Care,Supported Living
Cambridgeshire County Council,30-Mar-16,20392012-13075839,-1667,Dimensions (Uk) Ltd,Care Establishment,2 - Operations - Learning Disability,LDP South Cambs Locality - Care,Supported Living
Cambridgeshire County Council,30-Mar-16,20392019-13075841,-1667,Dimensions (Uk) Ltd,Care Establishment,2 - Operations - Learning Disability,LDP South Cambs Locality - Care,Supported Living
Cambridgeshire County Council,30-Mar-16,20392020-13075842,-1667,Dimensions (Uk) Ltd,Care Establishment,2 - Operations - Learning Disability,LDP South Cambs Locality - Care,Supported Living
Cambridgeshire County Council,17-Mar-16,20177689-12992634,-1646.71,Redacted Personal Data,Individual,2 - Operations - Learning Disability,LDP South Cambs Locality - Care,SDS - Care and support Services
Cambridgeshire County Council,17-Mar-16,20177691-12992636,-1646.71,Redacted Personal Data,Individual,2 - Operations - Learning Disability,LDP South Cambs Locality - Care,SDS - Care and support Services
Cambridgeshire County Council,04-Mar-16,20120069-12930070,-1639.43,Affinity Trust,Care Establishment,2 - Operations - Learning Disability,LDP E Cambs Locality - Care,Supported Living
Cambridgeshire County Council,04-Mar-16,20120073-12930074,-1639.43,Affinity Trust,Care Establishment,2 - Operations - Learning Disability,LDP E Cambs Locality - Care,Supported Living
Cambridgeshire County Council,04-Mar-16,20120075-12930076,-1639.43,Affinity Trust,Care Establishment,2 - Operations - Learning Disability,LDP E Cambs Locality - Care,Supported Living
Cambridgeshire County Council,04-Mar-16,20120084-12930085,-1639.43,Affinity Trust,Care Establishment,2 - Operations - Learning Disability,LDP E Cambs Locality - Care,Supported Living
Cambridgeshire County Council,04-Mar-16,20120092-12930093,-1639.43,Affinity Trust,Care Establishment,2 - Operations - Learning Disability,LDP E Cambs Locality - Care,Supported Living
Cambridgeshire County Council,04-Mar-16,20120093-12930094,-1639.43,Affinity Trust,Care Establishment,2 - Operations - Learning Disability,LDP E Cambs Locality - Care,Supported Living
Cambridgeshire County Council,04-Mar-16,20120097-12930098,-1639.43,Affinity Trust,Care Establishment,2 - Operations - Learning Disability,LDP E Cambs Locality - Care,Supported Living
Cambridgeshire County Council,04-Mar-16,20120425-12930038,-1639.43,Affinity Trust,Care Establishment,2 - Operations - Learning Disability,LDP E Cambs Locality - Care,Supported Living
Cambridgeshire County Council,04-Mar-16,20120434-12930047,-1639.43,Affinity Trust,Care Establishment,2 - Operations - Learning Disability,LDP E Cambs Locality - Care,Supported Living
Cambridgeshire County Council,04-Mar-16,20129942-12930265,-1639.43,Affinity Trust,Care Establishment,2 - Operations - Learning Disability,LDP E Cambs Locality - Care,Supported Living
Cambridgeshire County Council,04-Mar-16,20129943-12930266,-1639.43,Affinity Trust,Care Establishment,2 - Operations - Learning Disability,LDP E Cambs Locality - Care,Supported Living
Cambridgeshire County Council,04-Mar-16,20129947-12930270,-1639.43,Affinity Trust,Care Establishment,2 - Operations - Learning Disability,LDP E Cambs Locality - Care,Supported Living
Cambridgeshire County Council,04-Mar-16,20129950-12930273,-1639.43,Affinity Trust,Care Establishment,2 - Operations - Learning Disability,LDP E Cambs Locality - Care,Supported Living
Cambridgeshire County Council,04-Mar-16,20129951-12930274,-1639.43,Affinity Trust,Care Establishment,2 - Operations - Learning Disability,LDP E Cambs Locality - Care,Supported Living
Cambridgeshire County Council,04-Mar-16,20129955-12930278,-1639.43,Affinity Trust,Care Establishment,2 - Operations - Learning Disability,LDP E Cambs Locality - Care,Supported Living
Cambridgeshire County Council,04-Mar-16,20129957-12930280,-1639.43,Affinity Trust,Care Establishment,2 - Operations - Learning Disability,LDP E Cambs Locality - Care,Supported Living
Cambridgeshire County Council,04-Mar-16,20129959-12930282,-1639.43,Affinity Trust,Care Establishment,2 - Operations - Learning Disability,LDP E Cambs Locality - Care,Supported Living
Cambridgeshire County Council,04-Mar-16,20129964-12930287,-1639.43,Affinity Trust,Care Establishment,2 - Operations - Learning Disability,LDP E Cambs Locality - Care,Supported Living
Cambridgeshire County Council,04-Mar-16,20129965-12930288,-1639.43,Affinity Trust,Care Establishment,2 - Operations - Learning Disability,LDP E Cambs Locality - Care,Supported Living
Cambridgeshire County Council,04-Mar-16,20129972-12930295,-1639.43,Affinity Trust,Care Establishment,2 - Operations - Learning Disability,LDP E Cambs Locality - Care,Supported Living
Cambridgeshire County Council,04-Mar-16,20129985-12930308,-1639.43,Affinity Trust,Care Establishment,2 - Operations - Learning Disability,LDP E Cambs Locality - Care,Supported Living
Cambridgeshire County Council,04-Mar-16,20129987-12930310,-1639.43,Affinity Trust,Care Establishment,2 - Operations - Learning Disability,LDP E Cambs Locality - Care,Supported Living
Cambridgeshire County Council,04-Mar-16,20129989-12930312,-1639.43,Affinity Trust,Care Establishment,2 - Operations - Learning Disability,LDP E Cambs Locality - Care,Supported Living
Cambridgeshire County Council,04-Mar-16,20129996-12930319,-1639.43,Affinity Trust,Care Establishment,2 - Operations - Learning Disability,LDP E Cambs Locality - Care,Supported Living
Cambridgeshire County Council,04-Mar-16,20129998-12930321,-1639.43,Affinity Trust,Care Establishment,2 - Operations - Learning Disability,LDP E Cambs Locality - Care,Supported Living
Cambridgeshire County Council,04-Mar-16,20129999-12930322,-1639.43,Affinity Trust,Care Establishment,2 - Operations - Learning Disability,LDP E Cambs Locality - Care,Supported Living
Cambridgeshire County Council,04-Mar-16,20130000-12930323,-1639.43,Affinity Trust,Care Establishment,2 - Operations - Learning Disability,LDP E Cambs Locality - Care,Supported Living
Cambridgeshire County Council,04-Mar-16,20130003-12930326,-1639.43,Affinity Trust,Care Establishment,2 - Operations - Learning Disability,LDP E Cambs Locality - Care,Supported Living
Cambridgeshire County Council,04-Mar-16,20130007-12930330,-1639.43,Affinity Trust,Care Establishment,2 - Operations - Learning Disability,LDP E Cambs Locality - Care,Supported Living
Cambridgeshire County Council,04-Mar-16,20130017-12930340,-1639.43,Affinity Trust,Care Establishment,2 - Operations - Learning Disability,LDP E Cambs Locality - Care,Supported Living
Cambridgeshire County Council,04-Mar-16,20130018-12930341,-1639.43,Affinity Trust,Care Establishment,2 - Operations - Learning Disability,LDP E Cambs Locality - Care,Supported Living
Cambridgeshire County Council,11-Mar-16,20180036-12966318,-1569.4,Penderels Trust,Trust (Other),2 - Operations - Learning Disability,LDP Huntingdonshire Locality - Care,SDS - Care and support Services
Cambridgeshire County Council,08-Mar-16,20142453-12944094,-1555.2,Faithful And Gould,Trade Supplier,LGSS,P&P Commissioning (Prop),Other Hired Contract Services
Cambridgeshire County Council,23-Mar-16,20142358-13027067,-1456.8,Mencap,Care Establishment,2 - Operations - Learning Disability,LDP City Locality - Care,SDS - Care and support Services
Cambridgeshire County Council,03-Mar-16,20076246-12902609,-1375,Bcq Group Limited,Trade Supplier,S&C,C3 - Northants CC catering provision,Printing
Cambridgeshire County Council,17-Mar-16,20221249-12990400,-1346.59,Redacted Personal Data,Individual,2 - Operations - Learning Disability,LDP South Cambs Locality - Care,Direct Payments - Social Services
Cambridgeshire County Council,31-Mar-16,20166704-13082878,-1344,Archways Care Ltd (Birmingham),Care Establishment,S&C,Placements - Social Care,Agency Placements - Out County
Cambridgeshire County Council,24-Mar-16,20219040-13033872,-1221.86,Brain Injury Rehabilitation Trust,Care Establishment,3 - Operations - Countywide Services,Countywide PD Service - Care,Residential Independent Sector
Cambridgeshire County Council,04-Mar-16,20114901-12928855,-1191.79,Conquest Care Homes Peterborough,Care Establishment,2 - Operations - Learning Disability,LDP South Cambs Locality - Care,Residential Accommodation - Adults - Independent Sector
Cambridgeshire County Council,04-Mar-16,20114902-12928856,-1191.79,Conquest Care Homes Peterborough,Care Establishment,2 - Operations - Learning Disability,LDP South Cambs Locality - Care,Residential Accommodation - Adults - Independent Sector
Cambridgeshire County Council,04-Mar-16,20114905-12928857,-1191.79,Conquest Care Homes Peterborough,Care Establishment,2 - Operations - Learning Disability,LDP South Cambs Locality - Care,Residential Accommodation - Adults - Independent Sector
Cambridgeshire County Council,04-Mar-16,20114911-12928861,-1191.79,Conquest Care Homes Peterborough,Care Establishment,2 - Operations - Learning Disability,LDP South Cambs Locality - Care,Residential Accommodation - Adults - Independent Sector
Cambridgeshire County Council,04-Mar-16,20114914-12928863,-1191.79,Conquest Care Homes Peterborough,Care Establishment,2 - Operations - Learning Disability,LDP South Cambs Locality - Care,Residential Accommodation - Adults - Independent Sector
Cambridgeshire County Council,04-Mar-16,20114917-12928864,-1191.79,Conquest Care Homes Peterborough,Care Establishment,2 - Operations - Learning Disability,LDP South Cambs Locality - Care,Residential Accommodation - Adults - Independent Sector
Cambridgeshire County Council,04-Mar-16,20114918-12928865,-1191.79,Conquest Care Homes Peterborough,Care Establishment,2 - Operations - Learning Disability,LDP South Cambs Locality - Care,Residential Accommodation - Adults - Independent Sector
Cambridgeshire County Council,04-Mar-16,20114919-12928866,-1191.79,Conquest Care Homes Peterborough,Care Establishment,2 - Operations - Learning Disability,LDP South Cambs Locality - Care,Residential Accommodation - Adults - Independent Sector
Cambridgeshire County Council,04-Mar-16,20114928-12928869,-1191.79,Conquest Care Homes Peterborough,Care Establishment,2 - Operations - Learning Disability,LDP South Cambs Locality - Care,Residential Accommodation - Adults - Independent Sector
Cambridgeshire County Council,04-Mar-16,20114934-12928870,-1191.79,Conquest Care Homes Peterborough,Care Establishment,2 - Operations - Learning Disability,LDP South Cambs Locality - Care,Residential Accommodation - Adults - Independent Sector
Cambridgeshire County Council,04-Mar-16,20114935-12928871,-1191.79,Conquest Care Homes Peterborough,Care Establishment,2 - Operations - Learning Disability,LDP South Cambs Locality - Care,Residential Accommodation - Adults - Independent Sector
Cambridgeshire County Council,04-Mar-16,20114940-12928872,-1191.79,Conquest Care Homes Peterborough,Care Establishment,2 - Operations - Learning Disability,LDP South Cambs Locality - Care,Residential Accommodation - Adults - Independent Sector
Cambridgeshire County Council,04-Mar-16,20125765-12928828,-1191.79,Conquest Care Homes Peterborough,Care Establishment,2 - Operations - Learning Disability,LDP South Cambs Locality - Care,Residential Accommodation - Adults - Independent Sector
Cambridgeshire County Council,04-Mar-16,20125768-12928827,-1191.79,Conquest Care Homes Peterborough,Care Establishment,2 - Operations - Learning Disability,LDP South Cambs Locality - Care,Residential Accommodation - Adults - Independent Sector
Cambridgeshire County Council,17-Mar-16,20029170-12991068,-1180,Park House (Bedford),Care Establishment,3 - Operations - Countywide Services,Countywide PD Service - Care,Residential Independent Sector
Cambridgeshire County Council,17-Mar-16,19905373-12994983,-1150,Longueville Court,Care Establishment,3 - Operations - Countywide Services,Countywide PD Service - Care,Residential Independent Sector
Cambridgeshire County Council,17-Mar-16,19905374-12994984,-1150,Longueville Court,Care Establishment,3 - Operations - Countywide Services,Countywide PD Service - Care,Residential Independent Sector
Cambridgeshire County Council,17-Mar-16,19905375-12994985,-1150,Longueville Court,Care Establishment,3 - Operations - Countywide Services,Countywide PD Service - Care,Residential Independent Sector
Cambridgeshire County Council,14-Mar-16,20146460-12971955,-1150,Anglia Ruskin University,Education,LRNG,ASYE,Other Hired Contract Services
Cambridgeshire County Council,04-Mar-16,20055728-12938398,-1130.14,Social Care Solutions Ltd,Care Establishment,3 - Operations - Countywide Services,LDP Young Adults - Care,Supported Living
Cambridgeshire County Council,17-Mar-16,20029169-12991067,-1120,Park House (Bedford),Care Establishment,3 - Operations - Countywide Services,Countywide PD Service - Care,Residential Independent Sector
Cambridgeshire County Council,24-Mar-16,20272860-13034231,-1096,Conquest Care Homes Peterborough,Care Establishment,3 - Operations - Countywide Services,Countywide PD Service - Care,Residential Independent Sector
Cambridgeshire County Council,24-Mar-16,20272862-13034233,-1096,Conquest Care Homes Peterborough,Care Establishment,3 - Operations - Countywide Services,Countywide PD Service - Care,Residential Independent Sector
Cambridgeshire County Council,24-Mar-16,20272863-13034234,-1096,Conquest Care Homes Peterborough,Care Establishment,3 - Operations - Countywide Services,Countywide PD Service - Care,Residential Independent Sector
Cambridgeshire County Council,24-Mar-16,20272864-13034235,-1096,Conquest Care Homes Peterborough,Care Establishment,3 - Operations - Countywide Services,Countywide PD Service - Care,Residential Independent Sector
Cambridgeshire County Council,24-Mar-16,20272866-13034237,-1096,Conquest Care Homes Peterborough,Care Establishment,3 - Operations - Countywide Services,Countywide PD Service - Care,Residential Independent Sector
Cambridgeshire County Council,24-Mar-16,20272867-13034238,-1096,Conquest Care Homes Peterborough,Care Establishment,3 - Operations - Countywide Services,Countywide PD Service - Care,Residential Independent Sector
Cambridgeshire County Council,04-Mar-16,19980743-12928045,-1034.56,Thera East Anglia,Trust (Other),2 - Operations - Learning Disability,LDP E Cambs Locality - Care,Supported Living
Cambridgeshire County Council,04-Mar-16,19980744-12928046,-1034.56,Thera East Anglia,Trust (Other),2 - Operations - Learning Disability,LDP E Cambs Locality - Care,Supported Living
Cambridgeshire County Council,04-Mar-16,19980745-12928047,-1034.56,Thera East Anglia,Trust (Other),2 - Operations - Learning Disability,LDP E Cambs Locality - Care,Supported Living
Cambridgeshire County Council,04-Mar-16,19980746-12928048,-1034.56,Thera East Anglia,Trust (Other),2 - Operations - Learning Disability,LDP E Cambs Locality - Care,Supported Living
Cambridgeshire County Council,04-Mar-16,19980748-12928050,-1034.56,Thera East Anglia,Trust (Other),2 - Operations - Learning Disability,LDP E Cambs Locality - Care,Supported Living
Cambridgeshire County Council,04-Mar-16,19980749-12928051,-1034.56,Thera East Anglia,Trust (Other),2 - Operations - Learning Disability,LDP E Cambs Locality - Care,Supported Living
Cambridgeshire County Council,04-Mar-16,19980750-12928052,-1034.56,Thera East Anglia,Trust (Other),2 - Operations - Learning Disability,LDP E Cambs Locality - Care,Supported Living
Cambridgeshire County Council,04-Mar-16,19980751-12928053,-1034.56,Thera East Anglia,Trust (Other),2 - Operations - Learning Disability,LDP E Cambs Locality - Care,Supported Living
Cambridgeshire County Council,04-Mar-16,19980752-12928054,-1034.56,Thera East Anglia,Trust (Other),2 - Operations - Learning Disability,LDP E Cambs Locality - Care,Supported Living
Cambridgeshire County Council,04-Mar-16,19980753-12928055,-1034.56,Thera East Anglia,Trust (Other),2 - Operations - Learning Disability,LDP E Cambs Locality - Care,Supported Living
Cambridgeshire County Council,04-Mar-16,19980754-12928056,-1034.56,Thera East Anglia,Trust (Other),2 - Operations - Learning Disability,LDP E Cambs Locality - Care,Supported Living
Cambridgeshire County Council,04-Mar-16,19980755-12928057,-1034.56,Thera East Anglia,Trust (Other),2 - Operations - Learning Disability,LDP E Cambs Locality - Care,Supported Living
Cambridgeshire County Council,04-Mar-16,19980756-12928058,-1034.56,Thera East Anglia,Trust (Other),2 - Operations - Learning Disability,LDP E Cambs Locality - Care,Supported Living
Cambridgeshire County Council,04-Mar-16,19980757-12928059,-1034.56,Thera East Anglia,Trust (Other),2 - Operations - Learning Disability,LDP E Cambs Locality - Care,Supported Living
Cambridgeshire County Council,04-Mar-16,19980758-12928060,-1034.56,Thera East Anglia,Trust (Other),2 - Operations - Learning Disability,LDP E Cambs Locality - Care,Supported Living
Cambridgeshire County Council,04-Mar-16,19980759-12928061,-1034.56,Thera East Anglia,Trust (Other),2 - Operations - Learning Disability,LDP E Cambs Locality - Care,Supported Living
Cambridgeshire County Council,04-Mar-16,19980760-12928062,-1034.56,Thera East Anglia,Trust (Other),2 - Operations - Learning Disability,LDP E Cambs Locality - Care,Supported Living
Cambridgeshire County Council,04-Mar-16,19980761-12928063,-1034.56,Thera East Anglia,Trust (Other),2 - Operations - Learning Disability,LDP E Cambs Locality - Care,Supported Living
Cambridgeshire County Council,04-Mar-16,19980762-12928064,-1034.56,Thera East Anglia,Trust (Other),2 - Operations - Learning Disability,LDP E Cambs Locality - Care,Supported Living
Cambridgeshire County Council,04-Mar-16,19980763-12928065,-1034.56,Thera East Anglia,Trust (Other),2 - Operations - Learning Disability,LDP E Cambs Locality - Care,Supported Living
Cambridgeshire County Council,04-Mar-16,19980764-12928066,-1034.56,Thera East Anglia,Trust (Other),2 - Operations - Learning Disability,LDP E Cambs Locality - Care,Supported Living
Cambridgeshire County Council,04-Mar-16,19980765-12928067,-1034.56,Thera East Anglia,Trust (Other),2 - Operations - Learning Disability,LDP E Cambs Locality - Care,Supported Living
Cambridgeshire County Council,04-Mar-16,19980766-12928068,-1034.56,Thera East Anglia,Trust (Other),2 - Operations - Learning Disability,LDP E Cambs Locality - Care,Supported Living
Cambridgeshire County Council,04-Mar-16,19980767-12928069,-1034.56,Thera East Anglia,Trust (Other),2 - Operations - Learning Disability,LDP E Cambs Locality - Care,Supported Living
Cambridgeshire County Council,04-Mar-16,19980768-12928070,-1034.56,Thera East Anglia,Trust (Other),2 - Operations - Learning Disability,LDP E Cambs Locality - Care,Supported Living
Cambridgeshire County Council,04-Mar-16,19980769-12928071,-1034.56,Thera East Anglia,Trust (Other),2 - Operations - Learning Disability,LDP E Cambs Locality - Care,Supported Living
Cambridgeshire County Council,04-Mar-16,19980770-12928072,-1034.56,Thera East Anglia,Trust (Other),2 - Operations - Learning Disability,LDP E Cambs Locality - Care,Supported Living
Cambridgeshire County Council,04-Mar-16,19980771-12928073,-1034.56,Thera East Anglia,Trust (Other),2 - Operations - Learning Disability,LDP E Cambs Locality - Care,Supported Living
Cambridgeshire County Council,04-Mar-16,19980772-12928074,-1034.56,Thera East Anglia,Trust (Other),2 - Operations - Learning Disability,LDP E Cambs Locality - Care,Supported Living
Cambridgeshire County Council,04-Mar-16,19980773-12928075,-1034.56,Thera East Anglia,Trust (Other),2 - Operations - Learning Disability,LDP E Cambs Locality - Care,Supported Living
Cambridgeshire County Council,04-Mar-16,19980774-12928076,-1034.56,Thera East Anglia,Trust (Other),2 - Operations - Learning Disability,LDP E Cambs Locality - Care,Supported Living
Cambridgeshire County Council,24-Mar-16,20219023-13033881,-977.49,Brain Injury Rehabilitation Trust,Care Establishment,3 - Operations - Countywide Services,Countywide PD Service - Care,Residential Independent Sector
Cambridgeshire County Council,17-Mar-16,20179577-12996732,-950,Woodlands Care Centre,Care Establishment,3 - Operations - Countywide Services,Countywide PD Service - Care,Nursing Independent Sector
Cambridgeshire County Council,17-Mar-16,20179578-12996733,-950,Woodlands Care Centre,Care Establishment,3 - Operations - Countywide Services,Countywide PD Service - Care,Nursing Independent Sector
Cambridgeshire County Council,17-Mar-16,20179582-12996737,-950,Woodlands Care Centre,Care Establishment,3 - Operations - Countywide Services,Countywide PD Service - Care,Nursing Independent Sector
Cambridgeshire County Council,11-Mar-16,20177251-12966441,-947.62,Thera East Anglia,Trust (Other),2 - Operations - Learning Disability,LDP South Cambs - Special Needs,Supported Living
Cambridgeshire County Council,11-Mar-16,20177252-12966442,-947.62,Thera East Anglia,Trust (Other),2 - Operations - Learning Disability,LDP South Cambs - Special Needs,Supported Living
Cambridgeshire County Council,11-Mar-16,20177254-12966444,-947.62,Thera East Anglia,Trust (Other),2 - Operations - Learning Disability,LDP South Cambs - Special Needs,Supported Living
Cambridgeshire County Council,11-Mar-16,20178159-12966431,-947.62,Thera East Anglia,Trust (Other),2 - Operations - Learning Disability,LDP South Cambs - Special Needs,Supported Living
Cambridgeshire County Council,11-Mar-16,20178163-12966435,-947.62,Thera East Anglia,Trust (Other),2 - Operations - Learning Disability,LDP South Cambs - Special Needs,Supported Living
Cambridgeshire County Council,11-Mar-16,20178165-12966437,-947.62,Thera East Anglia,Trust (Other),2 - Operations - Learning Disability,LDP South Cambs - Special Needs,Supported Living
Cambridgeshire County Council,11-Mar-16,20178166-12966438,-947.62,Thera East Anglia,Trust (Other),2 - Operations - Learning Disability,LDP South Cambs - Special Needs,Supported Living
Cambridgeshire County Council,11-Mar-16,20178169-12966425,-947.62,Thera East Anglia,Trust (Other),2 - Operations - Learning Disability,LDP South Cambs - Special Needs,Supported Living
Cambridgeshire County Council,11-Mar-16,20178173-12966429,-947.62,Thera East Anglia,Trust (Other),2 - Operations - Learning Disability,LDP South Cambs - Special Needs,Supported Living
Cambridgeshire County Council,04-Mar-16,20115594-12928098,-946.57,Thera East Anglia,Trust (Other),2 - Operations - Learning Disability,LDP South Cambs Locality - Care,Supported Living
Cambridgeshire County Council,04-Mar-16,20115595-12928099,-946.57,Thera East Anglia,Trust (Other),2 - Operations - Learning Disability,LDP South Cambs Locality - Care,Supported Living
Cambridgeshire County Council,04-Mar-16,20115596-12928100,-946.57,Thera East Anglia,Trust (Other),2 - Operations - Learning Disability,LDP South Cambs Locality - Care,Supported Living
Cambridgeshire County Council,04-Mar-16,20115597-12928101,-946.57,Thera East Anglia,Trust (Other),2 - Operations - Learning Disability,LDP South Cambs Locality - Care,Supported Living
Cambridgeshire County Council,04-Mar-16,20115598-12928102,-946.57,Thera East Anglia,Trust (Other),2 - Operations - Learning Disability,LDP South Cambs Locality - Care,Supported Living
Cambridgeshire County Council,17-Mar-16,20055101-12992376,-926.11,Making Space#1,Care Establishment,3 - Operations - Countywide Services,Countywide PD Service - Care,Nursing Independent Sector
Cambridgeshire County Council,17-Mar-16,20055103-12992378,-926.11,Making Space#1,Care Establishment,3 - Operations - Countywide Services,Countywide PD Service - Care,Nursing Independent Sector
Cambridgeshire County Council,17-Mar-16,20055104-12992379,-926.11,Making Space#1,Care Establishment,3 - Operations - Countywide Services,Countywide PD Service - Care,Nursing Independent Sector
Cambridgeshire County Council,17-Mar-16,20055106-12992381,-926.11,Making Space#1,Care Establishment,3 - Operations - Countywide Services,Countywide PD Service - Care,Nursing Independent Sector
Cambridgeshire County Council,17-Mar-16,20055108-12992383,-926.11,Making Space#1,Care Establishment,3 - Operations - Countywide Services,Countywide PD Service - Care,Nursing Independent Sector
Cambridgeshire County Council,17-Mar-16,20055109-12992384,-926.11,Making Space#1,Care Establishment,3 - Operations - Countywide Services,Countywide PD Service - Care,Nursing Independent Sector
Cambridgeshire County Council,17-Mar-16,20055113-12992388,-926.11,Making Space#1,Care Establishment,3 - Operations - Countywide Services,Countywide PD Service - Care,Nursing Independent Sector
Cambridgeshire County Council,17-Mar-16,20055115-12992390,-926.11,Making Space#1,Care Establishment,3 - Operations - Countywide Services,Countywide PD Service - Care,Nursing Independent Sector
Cambridgeshire County Council,17-Mar-16,20055116-12992391,-926.11,Making Space#1,Care Establishment,3 - Operations - Countywide Services,Countywide PD Service - Care,Nursing Independent Sector
Cambridgeshire County Council,17-Mar-16,20055117-12992392,-926.11,Making Space#1,Care Establishment,3 - Operations - Countywide Services,Countywide PD Service - Care,Nursing Independent Sector
Cambridgeshire County Council,17-Mar-16,20055118-12992393,-926.11,Making Space#1,Care Establishment,3 - Operations - Countywide Services,Countywide PD Service - Care,Nursing Independent Sector
Cambridgeshire County Council,17-Mar-16,20055120-12992395,-926.11,Making Space#1,Care Establishment,3 - Operations - Countywide Services,Countywide PD Service - Care,Nursing Independent Sector
Cambridgeshire County Council,17-Mar-16,20055124-12992399,-926.11,Making Space#1,Care Establishment,3 - Operations - Countywide Services,Countywide PD Service - Care,Nursing Independent Sector
Cambridgeshire County Council,17-Mar-16,20055127-12992402,-926.11,Making Space#1,Care Establishment,3 - Operations - Countywide Services,Countywide PD Service - Care,Nursing Independent Sector
Cambridgeshire County Council,17-Mar-16,20055132-12992341,-926.11,Making Space#1,Care Establishment,3 - Operations - Countywide Services,Countywide PD Service - Care,Nursing Independent Sector
Cambridgeshire County Council,17-Mar-16,20055133-12992342,-926.11,Making Space#1,Care Establishment,3 - Operations - Countywide Services,Countywide PD Service - Care,Nursing Independent Sector
Cambridgeshire County Council,17-Mar-16,20055136-12992345,-926.11,Making Space#1,Care Establishment,3 - Operations - Countywide Services,Countywide PD Service - Care,Nursing Independent Sector
Cambridgeshire County Council,17-Mar-16,20055138-12992347,-926.11,Making Space#1,Care Establishment,3 - Operations - Countywide Services,Countywide PD Service - Care,Nursing Independent Sector
Cambridgeshire County Council,17-Mar-16,20055139-12992348,-926.11,Making Space#1,Care Establishment,3 - Operations - Countywide Services,Countywide PD Service - Care,Nursing Independent Sector
Cambridgeshire County Council,17-Mar-16,20055140-12992349,-926.11,Making Space#1,Care Establishment,3 - Operations - Countywide Services,Countywide PD Service - Care,Nursing Independent Sector
Cambridgeshire County Council,17-Mar-16,20055141-12992350,-926.11,Making Space#1,Care Establishment,3 - Operations - Countywide Services,Countywide PD Service - Care,Nursing Independent Sector
Cambridgeshire County Council,17-Mar-16,20055143-12992352,-926.11,Making Space#1,Care Establishment,3 - Operations - Countywide Services,Countywide PD Service - Care,Nursing Independent Sector
Cambridgeshire County Council,17-Mar-16,20055145-12992354,-926.11,Making Space#1,Care Establishment,3 - Operations - Countywide Services,Countywide PD Service - Care,Nursing Independent Sector
Cambridgeshire County Council,17-Mar-16,20055149-12992358,-926.11,Making Space#1,Care Establishment,3 - Operations - Countywide Services,Countywide PD Service - Care,Nursing Independent Sector
Cambridgeshire County Council,17-Mar-16,20055151-12992360,-926.11,Making Space#1,Care Establishment,3 - Operations - Countywide Services,Countywide PD Service - Care,Nursing Independent Sector
Cambridgeshire County Council,17-Mar-16,20055152-12992361,-926.11,Making Space#1,Care Establishment,3 - Operations - Countywide Services,Countywide PD Service - Care,Nursing Independent Sector
Cambridgeshire County Council,17-Mar-16,20056852-12992362,-926.11,Making Space#1,Care Establishment,3 - Operations - Countywide Services,Countywide PD Service - Care,Nursing Independent Sector
Cambridgeshire County Council,17-Mar-16,20056853-12992363,-926.11,Making Space#1,Care Establishment,3 - Operations - Countywide Services,Countywide PD Service - Care,Nursing Independent Sector
Cambridgeshire County Council,17-Mar-16,20056854-12992364,-926.11,Making Space#1,Care Establishment,3 - Operations - Countywide Services,Countywide PD Service - Care,Nursing Independent Sector
Cambridgeshire County Council,17-Mar-16,20056856-12992366,-926.11,Making Space#1,Care Establishment,3 - Operations - Countywide Services,Countywide PD Service - Care,Nursing Independent Sector
Cambridgeshire County Council,17-Mar-16,20056859-12992369,-926.11,Making Space#1,Care Establishment,3 - Operations - Countywide Services,Countywide PD Service - Care,Nursing Independent Sector
Cambridgeshire County Council,17-Mar-16,20056862-12992372,-926.11,Making Space#1,Care Establishment,3 - Operations - Countywide Services,Countywide PD Service - Care,Nursing Independent Sector
Cambridgeshire County Council,17-Mar-16,20112959-12992286,-926.11,Making Space#1,Care Establishment,3 - Operations - Countywide Services,Countywide PD Service - Care,Nursing Independent Sector
Cambridgeshire County Council,17-Mar-16,20112964-12992291,-926.11,Making Space#1,Care Establishment,3 - Operations - Countywide Services,Countywide PD Service - Care,Nursing Independent Sector
Cambridgeshire County Council,17-Mar-16,20112967-12992294,-926.11,Making Space#1,Care Establishment,3 - Operations - Countywide Services,Countywide PD Service - Care,Nursing Independent Sector
Cambridgeshire County Council,17-Mar-16,20112968-12992295,-926.11,Making Space#1,Care Establishment,3 - Operations - Countywide Services,Countywide PD Service - Care,Nursing Independent Sector
Cambridgeshire County Council,17-Mar-16,20112969-12992296,-926.11,Making Space#1,Care Establishment,3 - Operations - Countywide Services,Countywide PD Service - Care,Nursing Independent Sector
Cambridgeshire County Council,17-Mar-16,20112970-12992297,-926.11,Making Space#1,Care Establishment,3 - Operations - Countywide Services,Countywide PD Service - Care,Nursing Independent Sector
Cambridgeshire County Council,17-Mar-16,20112971-12992298,-926.11,Making Space#1,Care Establishment,3 - Operations - Countywide Services,Countywide PD Service - Care,Nursing Independent Sector
Cambridgeshire County Council,17-Mar-16,20112972-12992299,-926.11,Making Space#1,Care Establishment,3 - Operations - Countywide Services,Countywide PD Service - Care,Nursing Independent Sector
Cambridgeshire County Council,17-Mar-16,20112974-12992301,-926.11,Making Space#1,Care Establishment,3 - Operations - Countywide Services,Countywide PD Service - Care,Nursing Independent Sector
Cambridgeshire County Council,17-Mar-16,20112975-12992302,-926.11,Making Space#1,Care Establishment,3 - Operations - Countywide Services,Countywide PD Service - Care,Nursing Independent Sector
Cambridgeshire County Council,17-Mar-16,20112980-12992307,-926.11,Making Space#1,Care Establishment,3 - Operations - Countywide Services,Countywide PD Service - Care,Nursing Independent Sector
Cambridgeshire County Council,17-Mar-16,20112981-12992308,-926.11,Making Space#1,Care Establishment,3 - Operations - Countywide Services,Countywide PD Service - Care,Nursing Independent Sector
Cambridgeshire County Council,17-Mar-16,20112982-12992309,-926.11,Making Space#1,Care Establishment,3 - Operations - Countywide Services,Countywide PD Service - Care,Nursing Independent Sector
Cambridgeshire County Council,17-Mar-16,20112983-12992310,-926.11,Making Space#1,Care Establishment,3 - Operations - Countywide Services,Countywide PD Service - Care,Nursing Independent Sector
Cambridgeshire County Council,17-Mar-16,20112984-12992311,-926.11,Making Space#1,Care Establishment,3 - Operations - Countywide Services,Countywide PD Service - Care,Nursing Independent Sector
Cambridgeshire County Council,17-Mar-16,20112986-12992313,-926.11,Making Space#1,Care Establishment,3 - Operations - Countywide Services,Countywide PD Service - Care,Nursing Independent Sector
Cambridgeshire County Council,17-Mar-16,20112994-12992321,-926.11,Making Space#1,Care Establishment,3 - Operations - Countywide Services,Countywide PD Service - Care,Nursing Independent Sector
Cambridgeshire County Council,17-Mar-16,20112996-12992323,-926.11,Making Space#1,Care Establishment,3 - Operations - Countywide Services,Countywide PD Service - Care,Nursing Independent Sector
Cambridgeshire County Council,17-Mar-16,20112997-12992324,-926.11,Making Space#1,Care Establishment,3 - Operations - Countywide Services,Countywide PD Service - Care,Nursing Independent Sector
Cambridgeshire County Council,17-Mar-16,20112998-12992325,-926.11,Making Space#1,Care Establishment,3 - Operations - Countywide Services,Countywide PD Service - Care,Nursing Independent Sector
Cambridgeshire County Council,17-Mar-16,20113000-12992327,-926.11,Making Space#1,Care Establishment,3 - Operations - Countywide Services,Countywide PD Service - Care,Nursing Independent Sector
Cambridgeshire County Council,17-Mar-16,20113002-12992329,-926.11,Making Space#1,Care Establishment,3 - Operations - Countywide Services,Countywide PD Service - Care,Nursing Independent Sector
Cambridgeshire County Council,17-Mar-16,20113003-12992330,-926.11,Making Space#1,Care Establishment,3 - Operations - Countywide Services,Countywide PD Service - Care,Nursing Independent Sector
Cambridgeshire County Council,17-Mar-16,20113005-12992332,-926.11,Making Space#1,Care Establishment,3 - Operations - Countywide Services,Countywide PD Service - Care,Nursing Independent Sector
Cambridgeshire County Council,17-Mar-16,20113013-12992274,-926.11,Making Space#1,Care Establishment,3 - Operations - Countywide Services,Countywide PD Service - Care,Nursing Independent Sector
Cambridgeshire County Council,17-Mar-16,20113015-12992276,-926.11,Making Space#1,Care Establishment,3 - Operations - Countywide Services,Countywide PD Service - Care,Nursing Independent Sector
Cambridgeshire County Council,17-Mar-16,20113016-12992277,-926.11,Making Space#1,Care Establishment,3 - Operations - Countywide Services,Countywide PD Service - Care,Nursing Independent Sector
Cambridgeshire County Council,17-Mar-16,20113017-12992278,-926.11,Making Space#1,Care Establishment,3 - Operations - Countywide Services,Countywide PD Service - Care,Nursing Independent Sector
Cambridgeshire County Council,17-Mar-16,20113018-12992279,-926.11,Making Space#1,Care Establishment,3 - Operations - Countywide Services,Countywide PD Service - Care,Nursing Independent Sector
Cambridgeshire County Council,17-Mar-16,20113020-12992281,-926.11,Making Space#1,Care Establishment,3 - Operations - Countywide Services,Countywide PD Service - Care,Nursing Independent Sector
Cambridgeshire County Council,17-Mar-16,20113023-12992284,-926.11,Making Space#1,Care Establishment,3 - Operations - Countywide Services,Countywide PD Service - Care,Nursing Independent Sector
Cambridgeshire County Council,17-Mar-16,20113024-12992285,-926.11,Making Space#1,Care Establishment,3 - Operations - Countywide Services,Countywide PD Service - Care,Nursing Independent Sector
Cambridgeshire County Council,17-Mar-16,20175749-12992224,-926.11,Making Space#1,Care Establishment,3 - Operations - Countywide Services,Countywide PD Service - Care,Nursing Independent Sector
Cambridgeshire County Council,17-Mar-16,20175752-12992226,-926.11,Making Space#1,Care Establishment,3 - Operations - Countywide Services,Countywide PD Service - Care,Nursing Independent Sector
Cambridgeshire County Council,17-Mar-16,20175753-12992227,-926.11,Making Space#1,Care Establishment,3 - Operations - Countywide Services,Countywide PD Service - Care,Nursing Independent Sector
Cambridgeshire County Council,17-Mar-16,20175755-12992229,-926.11,Making Space#1,Care Establishment,3 - Operations - Countywide Services,Countywide PD Service - Care,Nursing Independent Sector
Cambridgeshire County Council,17-Mar-16,20175756-12992230,-926.11,Making Space#1,Care Establishment,3 - Operations - Countywide Services,Countywide PD Service - Care,Nursing Independent Sector
Cambridgeshire County Council,17-Mar-16,20175757-12992231,-926.11,Making Space#1,Care Establishment,3 - Operations - Countywide Services,Countywide PD Service - Care,Nursing Independent Sector
Cambridgeshire County Council,17-Mar-16,20175758-12992232,-926.11,Making Space#1,Care Establishment,3 - Operations - Countywide Services,Countywide PD Service - Care,Nursing Independent Sector
Cambridgeshire County Council,17-Mar-16,20175765-12992239,-926.11,Making Space#1,Care Establishment,3 - Operations - Countywide Services,Countywide PD Service - Care,Nursing Independent Sector
Cambridgeshire County Council,17-Mar-16,20175768-12992242,-926.11,Making Space#1,Care Establishment,3 - Operations - Countywide Services,Countywide PD Service - Care,Nursing Independent Sector
Cambridgeshire County Council,17-Mar-16,20175773-12992247,-926.11,Making Space#1,Care Establishment,3 - Operations - Countywide Services,Countywide PD Service - Care,Nursing Independent Sector
Cambridgeshire County Council,17-Mar-16,20175774-12992248,-926.11,Making Space#1,Care Establishment,3 - Operations - Countywide Services,Countywide PD Service - Care,Nursing Independent Sector
Cambridgeshire County Council,17-Mar-16,20175776-12992250,-926.11,Making Space#1,Care Establishment,3 - Operations - Countywide Services,Countywide PD Service - Care,Nursing Independent Sector
Cambridgeshire County Council,17-Mar-16,20175779-12992253,-926.11,Making Space#1,Care Establishment,3 - Operations - Countywide Services,Countywide PD Service - Care,Nursing Independent Sector
Cambridgeshire County Council,17-Mar-16,20175782-12992256,-926.11,Making Space#1,Care Establishment,3 - Operations - Countywide Services,Countywide PD Service - Care,Nursing Independent Sector
Cambridgeshire County Council,17-Mar-16,20175786-12992260,-926.11,Making Space#1,Care Establishment,3 - Operations - Countywide Services,Countywide PD Service - Care,Nursing Independent Sector
Cambridgeshire County Council,17-Mar-16,20175787-12992261,-926.11,Making Space#1,Care Establishment,3 - Operations - Countywide Services,Countywide PD Service - Care,Nursing Independent Sector
Cambridgeshire County Council,17-Mar-16,20177715-12992207,-926.11,Making Space#1,Care Establishment,3 - Operations - Countywide Services,Countywide PD Service - Care,Nursing Independent Sector
Cambridgeshire County Council,17-Mar-16,20177716-12992208,-926.11,Making Space#1,Care Establishment,3 - Operations - Countywide Services,Countywide PD Service - Care,Nursing Independent Sector
Cambridgeshire County Council,17-Mar-16,20177717-12992209,-926.11,Making Space#1,Care Establishment,3 - Operations - Countywide Services,Countywide PD Service - Care,Nursing Independent Sector
Cambridgeshire County Council,17-Mar-16,20177720-12992212,-926.11,Making Space#1,Care Establishment,3 - Operations - Countywide Services,Countywide PD Service - Care,Nursing Independent Sector
Cambridgeshire County Council,17-Mar-16,20177721-12992213,-926.11,Making Space#1,Care Establishment,3 - Operations - Countywide Services,Countywide PD Service - Care,Nursing Independent Sector
Cambridgeshire County Council,17-Mar-16,20177722-12992214,-926.11,Making Space#1,Care Establishment,3 - Operations - Countywide Services,Countywide PD Service - Care,Nursing Independent Sector
Cambridgeshire County Council,17-Mar-16,20177724-12992216,-926.11,Making Space#1,Care Establishment,3 - Operations - Countywide Services,Countywide PD Service - Care,Nursing Independent Sector
Cambridgeshire County Council,17-Mar-16,20177726-12992218,-926.11,Making Space#1,Care Establishment,3 - Operations - Countywide Services,Countywide PD Service - Care,Nursing Independent Sector
Cambridgeshire County Council,17-Mar-16,20177727-12992219,-926.11,Making Space#1,Care Establishment,3 - Operations - Countywide Services,Countywide PD Service - Care,Nursing Independent Sector
Cambridgeshire County Council,17-Mar-16,20177730-12992222,-926.11,Making Space#1,Care Establishment,3 - Operations - Countywide Services,Countywide PD Service - Care,Nursing Independent Sector
Cambridgeshire County Council,17-Mar-16,20177734-12992197,-926.11,Making Space#1,Care Establishment,3 - Operations - Countywide Services,Countywide PD Service - Care,Nursing Independent Sector
Cambridgeshire County Council,17-Mar-16,20177735-12992198,-926.11,Making Space#1,Care Establishment,3 - Operations - Countywide Services,Countywide PD Service - Care,Nursing Independent Sector
Cambridgeshire County Council,17-Mar-16,20177736-12992199,-926.11,Making Space#1,Care Establishment,3 - Operations - Countywide Services,Countywide PD Service - Care,Nursing Independent Sector
Cambridgeshire County Council,17-Mar-16,20177737-12992200,-926.11,Making Space#1,Care Establishment,3 - Operations - Countywide Services,Countywide PD Service - Care,Nursing Independent Sector
Cambridgeshire County Council,17-Mar-16,20177739-12992202,-926.11,Making Space#1,Care Establishment,3 - Operations - Countywide Services,Countywide PD Service - Care,Nursing Independent Sector
Cambridgeshire County Council,17-Mar-16,20177740-12992203,-926.11,Making Space#1,Care Establishment,3 - Operations - Countywide Services,Countywide PD Service - Care,Nursing Independent Sector
Cambridgeshire County Council,17-Mar-16,20217353-12992124,-926.11,Making Space#1,Care Establishment,3 - Operations - Countywide Services,Countywide PD Service - Care,Nursing Independent Sector
Cambridgeshire County Council,17-Mar-16,20217354-12992125,-926.11,Making Space#1,Care Establishment,3 - Operations - Countywide Services,Countywide PD Service - Care,Nursing Independent Sector
Cambridgeshire County Council,17-Mar-16,20217358-12992129,-926.11,Making Space#1,Care Establishment,3 - Operations - Countywide Services,Countywide PD Service - Care,Nursing Independent Sector
Cambridgeshire County Council,17-Mar-16,20217359-12992130,-926.11,Making Space#1,Care Establishment,3 - Operations - Countywide Services,Countywide PD Service - Care,Nursing Independent Sector
Cambridgeshire County Council,17-Mar-16,20217360-12992131,-926.11,Making Space#1,Care Establishment,3 - Operations - Countywide Services,Countywide PD Service - Care,Nursing Independent Sector
Cambridgeshire County Council,17-Mar-16,20217364-12992135,-926.11,Making Space#1,Care Establishment,3 - Operations - Countywide Services,Countywide PD Service - Care,Nursing Independent Sector
Cambridgeshire County Council,17-Mar-16,20217366-12992137,-926.11,Making Space#1,Care Establishment,3 - Operations - Countywide Services,Countywide PD Service - Care,Nursing Independent Sector
Cambridgeshire County Council,17-Mar-16,20217369-12992140,-926.11,Making Space#1,Care Establishment,3 - Operations - Countywide Services,Countywide PD Service - Care,Nursing Independent Sector
Cambridgeshire County Council,17-Mar-16,20217370-12992141,-926.11,Making Space#1,Care Establishment,3 - Operations - Countywide Services,Countywide PD Service - Care,Nursing Independent Sector
Cambridgeshire County Council,17-Mar-16,20217372-12992143,-926.11,Making Space#1,Care Establishment,3 - Operations - Countywide Services,Countywide PD Service - Care,Nursing Independent Sector
Cambridgeshire County Council,17-Mar-16,20217373-12992144,-926.11,Making Space#1,Care Establishment,3 - Operations - Countywide Services,Countywide PD Service - Care,Nursing Independent Sector
Cambridgeshire County Council,17-Mar-16,20217374-12992145,-926.11,Making Space#1,Care Establishment,3 - Operations - Countywide Services,Countywide PD Service - Care,Nursing Independent Sector
Cambridgeshire County Council,17-Mar-16,20217375-12992146,-926.11,Making Space#1,Care Establishment,3 - Operations - Countywide Services,Countywide PD Service - Care,Nursing Independent Sector
Cambridgeshire County Council,17-Mar-16,20217377-12992148,-926.11,Making Space#1,Care Establishment,3 - Operations - Countywide Services,Countywide PD Service - Care,Nursing Independent Sector
Cambridgeshire County Council,17-Mar-16,20217381-12992152,-926.11,Making Space#1,Care Establishment,3 - Operations - Countywide Services,Countywide PD Service - Care,Nursing Independent Sector
Cambridgeshire County Council,17-Mar-16,20217383-12992154,-926.11,Making Space#1,Care Establishment,3 - Operations - Countywide Services,Countywide PD Service - Care,Nursing Independent Sector
Cambridgeshire County Council,17-Mar-16,20217386-12992157,-926.11,Making Space#1,Care Establishment,3 - Operations - Countywide Services,Countywide PD Service - Care,Nursing Independent Sector
Cambridgeshire County Council,17-Mar-16,20217388-12992159,-926.11,Making Space#1,Care Establishment,3 - Operations - Countywide Services,Countywide PD Service - Care,Nursing Independent Sector
Cambridgeshire County Council,17-Mar-16,20217389-12992160,-926.11,Making Space#1,Care Establishment,3 - Operations - Countywide Services,Countywide PD Service - Care,Nursing Independent Sector
Cambridgeshire County Council,17-Mar-16,20217392-12992163,-926.11,Making Space#1,Care Establishment,3 - Operations - Countywide Services,Countywide PD Service - Care,Nursing Independent Sector
Cambridgeshire County Council,17-Mar-16,20217400-12992171,-926.11,Making Space#1,Care Establishment,3 - Operations - Countywide Services,Countywide PD Service - Care,Nursing Independent Sector
Cambridgeshire County Council,17-Mar-16,20217401-12992172,-926.11,Making Space#1,Care Establishment,3 - Operations - Countywide Services,Countywide PD Service - Care,Nursing Independent Sector
Cambridgeshire County Council,17-Mar-16,20217405-12992176,-926.11,Making Space#1,Care Establishment,3 - Operations - Countywide Services,Countywide PD Service - Care,Nursing Independent Sector
Cambridgeshire County Council,17-Mar-16,20217408-12992179,-926.11,Making Space#1,Care Establishment,3 - Operations - Countywide Services,Countywide PD Service - Care,Nursing Independent Sector
Cambridgeshire County Council,17-Mar-16,20217410-12992181,-926.11,Making Space#1,Care Establishment,3 - Operations - Countywide Services,Countywide PD Service - Care,Nursing Independent Sector
Cambridgeshire County Council,17-Mar-16,20217411-12992182,-926.11,Making Space#1,Care Establishment,3 - Operations - Countywide Services,Countywide PD Service - Care,Nursing Independent Sector
Cambridgeshire County Council,17-Mar-16,20217412-12992183,-926.11,Making Space#1,Care Establishment,3 - Operations - Countywide Services,Countywide PD Service - Care,Nursing Independent Sector
Cambridgeshire County Council,17-Mar-16,20217416-12992187,-926.11,Making Space#1,Care Establishment,3 - Operations - Countywide Services,Countywide PD Service - Care,Nursing Independent Sector
Cambridgeshire County Council,17-Mar-16,20217417-12992188,-926.11,Making Space#1,Care Establishment,3 - Operations - Countywide Services,Countywide PD Service - Care,Nursing Independent Sector
Cambridgeshire County Council,17-Mar-16,20217418-12992189,-926.11,Making Space#1,Care Establishment,3 - Operations - Countywide Services,Countywide PD Service - Care,Nursing Independent Sector
Cambridgeshire County Council,17-Mar-16,20217420-12992191,-926.11,Making Space#1,Care Establishment,3 - Operations - Countywide Services,Countywide PD Service - Care,Nursing Independent Sector
Cambridgeshire County Council,17-Mar-16,20217422-12992193,-926.11,Making Space#1,Care Establishment,3 - Operations - Countywide Services,Countywide PD Service - Care,Nursing Independent Sector
Cambridgeshire County Council,24-Mar-16,20270880-13036367,-926.11,Making Space#1,Care Establishment,3 - Operations - Countywide Services,Countywide PD Service - Care,Nursing Independent Sector
Cambridgeshire County Council,24-Mar-16,20270882-13036369,-926.11,Making Space#1,Care Establishment,3 - Operations - Countywide Services,Countywide PD Service - Care,Nursing Independent Sector
Cambridgeshire County Council,24-Mar-16,20270883-13036370,-926.11,Making Space#1,Care Establishment,3 - Operations - Countywide Services,Countywide PD Service - Care,Nursing Independent Sector
Cambridgeshire County Council,24-Mar-16,20270884-13036371,-926.11,Making Space#1,Care Establishment,3 - Operations - Countywide Services,Countywide PD Service - Care,Nursing Independent Sector
Cambridgeshire County Council,24-Mar-16,20270886-13036373,-926.11,Making Space#1,Care Establishment,3 - Operations - Countywide Services,Countywide PD Service - Care,Nursing Independent Sector
Cambridgeshire County Council,24-Mar-16,20270887-13036374,-926.11,Making Space#1,Care Establishment,3 - Operations - Countywide Services,Countywide PD Service - Care,Nursing Independent Sector
Cambridgeshire County Council,24-Mar-16,20270888-13036375,-926.11,Making Space#1,Care Establishment,3 - Operations - Countywide Services,Countywide PD Service - Care,Nursing Independent Sector
Cambridgeshire County Council,24-Mar-16,20270891-13036378,-926.11,Making Space#1,Care Establishment,3 - Operations - Countywide Services,Countywide PD Service - Care,Nursing Independent Sector
Cambridgeshire County Council,24-Mar-16,20270893-13036380,-926.11,Making Space#1,Care Establishment,3 - Operations - Countywide Services,Countywide PD Service - Care,Nursing Independent Sector
Cambridgeshire County Council,24-Mar-16,20270896-13036341,-926.11,Making Space#1,Care Establishment,3 - Operations - Countywide Services,Countywide PD Service - Care,Nursing Independent Sector
Cambridgeshire County Council,24-Mar-16,20270898-13036343,-926.11,Making Space#1,Care Establishment,3 - Operations - Countywide Services,Countywide PD Service - Care,Nursing Independent Sector
Cambridgeshire County Council,24-Mar-16,20270899-13036344,-926.11,Making Space#1,Care Establishment,3 - Operations - Countywide Services,Countywide PD Service - Care,Nursing Independent Sector
Cambridgeshire County Council,24-Mar-16,20270901-13036346,-926.11,Making Space#1,Care Establishment,3 - Operations - Countywide Services,Countywide PD Service - Care,Nursing Independent Sector
Cambridgeshire County Council,24-Mar-16,20270902-13036347,-926.11,Making Space#1,Care Establishment,3 - Operations - Countywide Services,Countywide PD Service - Care,Nursing Independent Sector
Cambridgeshire County Council,24-Mar-16,20270903-13036348,-926.11,Making Space#1,Care Establishment,3 - Operations - Countywide Services,Countywide PD Service - Care,Nursing Independent Sector
Cambridgeshire County Council,24-Mar-16,20270910-13036355,-926.11,Making Space#1,Care Establishment,3 - Operations - Countywide Services,Countywide PD Service - Care,Nursing Independent Sector
Cambridgeshire County Council,24-Mar-16,20270912-13036357,-926.11,Making Space#1,Care Establishment,3 - Operations - Countywide Services,Countywide PD Service - Care,Nursing Independent Sector
Cambridgeshire County Council,24-Mar-16,20270913-13036358,-926.11,Making Space#1,Care Establishment,3 - Operations - Countywide Services,Countywide PD Service - Care,Nursing Independent Sector
Cambridgeshire County Council,24-Mar-16,20270914-13036359,-926.11,Making Space#1,Care Establishment,3 - Operations - Countywide Services,Countywide PD Service - Care,Nursing Independent Sector
Cambridgeshire County Council,24-Mar-16,20270916-13036361,-926.11,Making Space#1,Care Establishment,3 - Operations - Countywide Services,Countywide PD Service - Care,Nursing Independent Sector
Cambridgeshire County Council,24-Mar-16,20270918-13036363,-926.11,Making Space#1,Care Establishment,3 - Operations - Countywide Services,Countywide PD Service - Care,Nursing Independent Sector
Cambridgeshire County Council,24-Mar-16,20270919-13036364,-926.11,Making Space#1,Care Establishment,3 - Operations - Countywide Services,Countywide PD Service - Care,Nursing Independent Sector
Cambridgeshire County Council,24-Mar-16,20270920-13036365,-926.11,Making Space#1,Care Establishment,3 - Operations - Countywide Services,Countywide PD Service - Care,Nursing Independent Sector
Cambridgeshire County Council,24-Mar-16,20272765-13036323,-926.11,Making Space#1,Care Establishment,3 - Operations - Countywide Services,Countywide PD Service - Care,Nursing Independent Sector
Cambridgeshire County Council,24-Mar-16,20272769-13036327,-926.11,Making Space#1,Care Establishment,3 - Operations - Countywide Services,Countywide PD Service - Care,Nursing Independent Sector
Cambridgeshire County Council,24-Mar-16,20272770-13036328,-926.11,Making Space#1,Care Establishment,3 - Operations - Countywide Services,Countywide PD Service - Care,Nursing Independent Sector
Cambridgeshire County Council,24-Mar-16,20272771-13036329,-926.11,Making Space#1,Care Establishment,3 - Operations - Countywide Services,Countywide PD Service - Care,Nursing Independent Sector
Cambridgeshire County Council,24-Mar-16,20272772-13036330,-926.11,Making Space#1,Care Establishment,3 - Operations - Countywide Services,Countywide PD Service - Care,Nursing Independent Sector
Cambridgeshire County Council,24-Mar-16,20272775-13036333,-926.11,Making Space#1,Care Establishment,3 - Operations - Countywide Services,Countywide PD Service - Care,Nursing Independent Sector
Cambridgeshire County Council,24-Mar-16,20272776-13036334,-926.11,Making Space#1,Care Establishment,3 - Operations - Countywide Services,Countywide PD Service - Care,Nursing Independent Sector
Cambridgeshire County Council,24-Mar-16,20272778-13036336,-926.11,Making Space#1,Care Establishment,3 - Operations - Countywide Services,Countywide PD Service - Care,Nursing Independent Sector
Cambridgeshire County Council,24-Mar-16,20272779-13036337,-926.11,Making Space#1,Care Establishment,3 - Operations - Countywide Services,Countywide PD Service - Care,Nursing Independent Sector
Cambridgeshire County Council,29-Mar-16,20182229-13045828,-923.44,Nexus Fostering Ltd,Care Establishment,S&C,Placements - Social Care,Agency Placements - In Cambs
Cambridgeshire County Council,17-Mar-16,20176766-12997120,-881.6,Bramley Court,Care Establishment,2 - Commissioning - Older people Pool,Older People Mental Health City & South,Nursing Independent Sector
Cambridgeshire County Council,17-Mar-16,20176770-12997121,-881.6,Bramley Court,Care Establishment,2 - Commissioning - Older people Pool,Older People Mental Health City & South,Nursing Independent Sector
Cambridgeshire County Council,17-Mar-16,20176771-12997122,-881.6,Bramley Court,Care Establishment,2 - Commissioning - Older people Pool,Older People Mental Health City & South,Nursing Independent Sector
Cambridgeshire County Council,04-Mar-16,20114925-12928868,-851.28,Conquest Care Homes Peterborough,Care Establishment,2 - Operations - Learning Disability,LDP South Cambs Locality - Care,Residential Accommodation - Adults - Independent Sector
Cambridgeshire County Council,04-Mar-16,19980334-12915660,-850,Meadows Homecare Services,Care Establishment,2 - Commissioning - Older people Pool,East Cambs - O P Team,Day and Domicillary Care Independent Sector
Cambridgeshire County Council,04-Mar-16,19980354-12915661,-850,Meadows Homecare Services,Care Establishment,2 - Commissioning - Older people Pool,East Cambs - O P Team,Day and Domicillary Care Independent Sector
Cambridgeshire County Council,04-Mar-16,19980361-12915662,-850,Meadows Homecare Services,Care Establishment,2 - Commissioning - Older people Pool,East Cambs - O P Team,Day and Domicillary Care Independent Sector
Cambridgeshire County Council,04-Mar-16,20053795-12932826,-850,Cottenham Court Nursing Home,Care Establishment,2 - Commissioning - Older people Pool,Older People - City & South,Nursing Independent Sector
Cambridgeshire County Council,04-Mar-16,20053799-12932790,-850,Cottenham Court Nursing Home,Care Establishment,2 - Commissioning - Older people Pool,Older People - City & South,Nursing Independent Sector
Cambridgeshire County Council,04-Mar-16,20053800-12932791,-850,Cottenham Court Nursing Home,Care Establishment,2 - Commissioning - Older people Pool,Older People - City & South,Nursing Independent Sector
Cambridgeshire County Council,04-Mar-16,20053802-12932793,-850,Cottenham Court Nursing Home,Care Establishment,2 - Commissioning - Older people Pool,Older People - City & South,Nursing Independent Sector
Cambridgeshire County Council,04-Mar-16,20053803-12932794,-850,Cottenham Court Nursing Home,Care Establishment,2 - Commissioning - Older people Pool,Older People - City & South,Nursing Independent Sector
Cambridgeshire County Council,04-Mar-16,20053807-12932798,-850,Cottenham Court Nursing Home,Care Establishment,2 - Commissioning - Older people Pool,Older People - City & South,Nursing Independent Sector
Cambridgeshire County Council,04-Mar-16,20053810-12932801,-850,Cottenham Court Nursing Home,Care Establishment,2 - Commissioning - Older people Pool,Older People - City & South,Nursing Independent Sector
Cambridgeshire County Council,04-Mar-16,20053811-12932802,-850,Cottenham Court Nursing Home,Care Establishment,2 - Commissioning - Older people Pool,Older People - City & South,Nursing Independent Sector
Cambridgeshire County Council,04-Mar-16,20053812-12932803,-850,Cottenham Court Nursing Home,Care Establishment,2 - Commissioning - Older people Pool,Older People - City & South,Nursing Independent Sector
Cambridgeshire County Council,04-Mar-16,20053814-12932805,-850,Cottenham Court Nursing Home,Care Establishment,2 - Commissioning - Older people Pool,Older People - City & South,Nursing Independent Sector
Cambridgeshire County Council,04-Mar-16,20053816-12932807,-850,Cottenham Court Nursing Home,Care Establishment,2 - Commissioning - Older people Pool,Older People - City & South,Nursing Independent Sector
Cambridgeshire County Council,04-Mar-16,20053817-12932808,-850,Cottenham Court Nursing Home,Care Establishment,2 - Commissioning - Older people Pool,Older People - City & South,Nursing Independent Sector
Cambridgeshire County Council,04-Mar-16,20053819-12932810,-850,Cottenham Court Nursing Home,Care Establishment,2 - Commissioning - Older people Pool,Older People - City & South,Nursing Independent Sector
Cambridgeshire County Council,04-Mar-16,20053823-12932814,-850,Cottenham Court Nursing Home,Care Establishment,2 - Commissioning - Older people Pool,Older People - City & South,Nursing Independent Sector
Cambridgeshire County Council,04-Mar-16,20053825-12932816,-850,Cottenham Court Nursing Home,Care Establishment,2 - Commissioning - Older people Pool,Older People - City & South,Nursing Independent Sector
Cambridgeshire County Council,04-Mar-16,20053827-12932818,-850,Cottenham Court Nursing Home,Care Establishment,2 - Commissioning - Older people Pool,Older People - City & South,Nursing Independent Sector
Cambridgeshire County Council,04-Mar-16,20053830-12932821,-850,Cottenham Court Nursing Home,Care Establishment,2 - Commissioning - Older people Pool,Older People - City & South,Nursing Independent Sector
Cambridgeshire County Council,14-Mar-16,20147711-12971958,-850,Anglia Ruskin University,Education,LRNG,ASYE,Other Hired Contract Services
Cambridgeshire County Council,17-Mar-16,19884182-12994858,-835,Longueville Court,Care Establishment,2 - Commissioning - Older people Pool,Older People Mental Health Hunts,Nursing Independent Sector
Cambridgeshire County Council,17-Mar-16,19884184-12994860,-835,Longueville Court,Care Establishment,2 - Commissioning - Older people Pool,Older People Mental Health Hunts,Nursing Independent Sector
Cambridgeshire County Council,17-Mar-16,19884186-12994862,-835,Longueville Court,Care Establishment,2 - Commissioning - Older people Pool,Older People Mental Health Hunts,Nursing Independent Sector
Cambridgeshire County Council,17-Mar-16,19884187-12994863,-835,Longueville Court,Care Establishment,2 - Commissioning - Older people Pool,Older People Mental Health Hunts,Nursing Independent Sector
Cambridgeshire County Council,17-Mar-16,19884188-12994864,-835,Longueville Court,Care Establishment,2 - Commissioning - Older people Pool,Older People Mental Health Hunts,Nursing Independent Sector
Cambridgeshire County Council,17-Mar-16,19884189-12994865,-835,Longueville Court,Care Establishment,2 - Commissioning - Older people Pool,Older People Mental Health Hunts,Nursing Independent Sector
Cambridgeshire County Council,17-Mar-16,19884191-12994866,-835,Longueville Court,Care Establishment,2 - Commissioning - Older people Pool,Older People Mental Health Hunts,Nursing Independent Sector
Cambridgeshire County Council,17-Mar-16,19884193-12995027,-835,Longueville Court,Care Establishment,2 - Commissioning - Older people Pool,Older People Mental Health Hunts,Nursing Independent Sector
Cambridgeshire County Council,17-Mar-16,19884197-12995028,-835,Longueville Court,Care Establishment,2 - Commissioning - Older people Pool,Older People Mental Health Hunts,Nursing Independent Sector
Cambridgeshire County Council,17-Mar-16,19884198-12995029,-835,Longueville Court,Care Establishment,2 - Commissioning - Older people Pool,Older People Mental Health Hunts,Nursing Independent Sector
Cambridgeshire County Council,17-Mar-16,19884203-12995033,-835,Longueville Court,Care Establishment,2 - Commissioning - Older people Pool,Older People Mental Health Hunts,Nursing Independent Sector
Cambridgeshire County Council,17-Mar-16,19884206-12995035,-835,Longueville Court,Care Establishment,2 - Commissioning - Older people Pool,Older People Mental Health Hunts,Nursing Independent Sector
Cambridgeshire County Council,17-Mar-16,19884207-12995036,-835,Longueville Court,Care Establishment,2 - Commissioning - Older people Pool,Older People Mental Health Hunts,Nursing Independent Sector
Cambridgeshire County Council,17-Mar-16,19884208-12995037,-835,Longueville Court,Care Establishment,2 - Commissioning - Older people Pool,Older People Mental Health Hunts,Nursing Independent Sector
Cambridgeshire County Council,17-Mar-16,19884210-12995039,-835,Longueville Court,Care Establishment,2 - Commissioning - Older people Pool,Older People Mental Health Hunts,Nursing Independent Sector
Cambridgeshire County Council,17-Mar-16,19884223-12994872,-835,Longueville Court,Care Establishment,2 - Commissioning - Older people Pool,Older People Mental Health Hunts,Nursing Independent Sector
Cambridgeshire County Council,17-Mar-16,19884225-12994874,-835,Longueville Court,Care Establishment,2 - Commissioning - Older people Pool,Older People Mental Health Hunts,Nursing Independent Sector
Cambridgeshire County Council,17-Mar-16,19884233-12994878,-835,Longueville Court,Care Establishment,2 - Commissioning - Older people Pool,Older People Mental Health Hunts,Nursing Independent Sector
Cambridgeshire County Council,17-Mar-16,19884235-12994880,-835,Longueville Court,Care Establishment,2 - Commissioning - Older people Pool,Older People Mental Health Hunts,Nursing Independent Sector
Cambridgeshire County Council,17-Mar-16,19884236-12994881,-835,Longueville Court,Care Establishment,2 - Commissioning - Older people Pool,Older People Mental Health Hunts,Nursing Independent Sector
Cambridgeshire County Council,17-Mar-16,19884237-12994882,-835,Longueville Court,Care Establishment,2 - Commissioning - Older people Pool,Older People Mental Health Hunts,Nursing Independent Sector
Cambridgeshire County Council,17-Mar-16,19884238-12994883,-835,Longueville Court,Care Establishment,2 - Commissioning - Older people Pool,Older People Mental Health Hunts,Nursing Independent Sector
Cambridgeshire County Council,17-Mar-16,19884242-12994885,-835,Longueville Court,Care Establishment,2 - Commissioning - Older people Pool,Older People Mental Health Hunts,Nursing Independent Sector
Cambridgeshire County Council,17-Mar-16,19884243-12994974,-835,Longueville Court,Care Establishment,2 - Commissioning - Older people Pool,Older People Mental Health Hunts,Nursing Independent Sector
Cambridgeshire County Council,17-Mar-16,19884247-12994978,-835,Longueville Court,Care Establishment,2 - Commissioning - Older people Pool,Older People Mental Health Hunts,Nursing Independent Sector
Cambridgeshire County Council,17-Mar-16,19906157-12994987,-835,Longueville Court,Care Establishment,2 - Commissioning - Older people Pool,Older People Mental Health Hunts,Nursing Independent Sector
Cambridgeshire County Council,17-Mar-16,19906158-12994988,-835,Longueville Court,Care Establishment,2 - Commissioning - Older people Pool,Older People Mental Health Hunts,Nursing Independent Sector
Cambridgeshire County Council,17-Mar-16,19906163-12994991,-835,Longueville Court,Care Establishment,2 - Commissioning - Older people Pool,Older People Mental Health Hunts,Nursing Independent Sector
Cambridgeshire County Council,17-Mar-16,19906167-12994994,-835,Longueville Court,Care Establishment,2 - Commissioning - Older people Pool,Older People Mental Health Hunts,Nursing Independent Sector
Cambridgeshire County Council,17-Mar-16,19906168-12994995,-835,Longueville Court,Care Establishment,2 - Commissioning - Older people Pool,Older People Mental Health Hunts,Nursing Independent Sector
Cambridgeshire County Council,17-Mar-16,19906169-12994996,-835,Longueville Court,Care Establishment,2 - Commissioning - Older people Pool,Older People Mental Health Hunts,Nursing Independent Sector
Cambridgeshire County Council,17-Mar-16,19906173-12995000,-835,Longueville Court,Care Establishment,2 - Commissioning - Older people Pool,Older People Mental Health Hunts,Nursing Independent Sector
Cambridgeshire County Council,17-Mar-16,19906174-12995001,-835,Longueville Court,Care Establishment,2 - Commissioning - Older people Pool,Older People Mental Health Hunts,Nursing Independent Sector
Cambridgeshire County Council,17-Mar-16,19906176-12995003,-835,Longueville Court,Care Establishment,2 - Commissioning - Older people Pool,Older People Mental Health Hunts,Nursing Independent Sector
Cambridgeshire County Council,17-Mar-16,19906181-12995005,-835,Longueville Court,Care Establishment,2 - Commissioning - Older people Pool,Older People Mental Health Hunts,Nursing Independent Sector
Cambridgeshire County Council,17-Mar-16,19906182-12995006,-835,Longueville Court,Care Establishment,2 - Commissioning - Older people Pool,Older People Mental Health Hunts,Nursing Independent Sector
Cambridgeshire County Council,17-Mar-16,19910304-12995007,-835,Longueville Court,Care Establishment,2 - Commissioning - Older people Pool,Older People Mental Health Hunts,Nursing Independent Sector
Cambridgeshire County Council,17-Mar-16,19910305-12995008,-835,Longueville Court,Care Establishment,2 - Commissioning - Older people Pool,Older People Mental Health Hunts,Nursing Independent Sector
Cambridgeshire County Council,17-Mar-16,19910309-12995010,-835,Longueville Court,Care Establishment,2 - Commissioning - Older people Pool,Older People Mental Health Hunts,Nursing Independent Sector
Cambridgeshire County Council,17-Mar-16,19910315-12995015,-835,Longueville Court,Care Establishment,2 - Commissioning - Older people Pool,Older People Mental Health Hunts,Nursing Independent Sector
Cambridgeshire County Council,17-Mar-16,19910317-12995017,-835,Longueville Court,Care Establishment,2 - Commissioning - Older people Pool,Older People Mental Health Hunts,Nursing Independent Sector
Cambridgeshire County Council,17-Mar-16,19910319-12995019,-835,Longueville Court,Care Establishment,2 - Commissioning - Older people Pool,Older People Mental Health Hunts,Nursing Independent Sector
Cambridgeshire County Council,17-Mar-16,19910325-12995023,-835,Longueville Court,Care Establishment,2 - Commissioning - Older people Pool,Older People Mental Health Hunts,Nursing Independent Sector
Cambridgeshire County Council,17-Mar-16,19910326-12995024,-835,Longueville Court,Care Establishment,2 - Commissioning - Older people Pool,Older People Mental Health Hunts,Nursing Independent Sector
Cambridgeshire County Council,17-Mar-16,19910329-12994886,-835,Longueville Court,Care Establishment,2 - Commissioning - Older people Pool,Older People Mental Health Hunts,Nursing Independent Sector
Cambridgeshire County Council,17-Mar-16,19910330-12994887,-835,Longueville Court,Care Establishment,2 - Commissioning - Older people Pool,Older People Mental Health Hunts,Nursing Independent Sector
Cambridgeshire County Council,17-Mar-16,19910331-12994888,-835,Longueville Court,Care Establishment,2 - Commissioning - Older people Pool,Older People Mental Health Hunts,Nursing Independent Sector
Cambridgeshire County Council,17-Mar-16,19910332-12994889,-835,Longueville Court,Care Establishment,2 - Commissioning - Older people Pool,Older People Mental Health Hunts,Nursing Independent Sector
Cambridgeshire County Council,17-Mar-16,19910335-12994891,-835,Longueville Court,Care Establishment,2 - Commissioning - Older people Pool,Older People Mental Health Hunts,Nursing Independent Sector
Cambridgeshire County Council,17-Mar-16,19910338-12994893,-835,Longueville Court,Care Establishment,2 - Commissioning - Older people Pool,Older People Mental Health Hunts,Nursing Independent Sector
Cambridgeshire County Council,17-Mar-16,19944656-12994897,-835,Longueville Court,Care Establishment,2 - Commissioning - Older people Pool,Older People Mental Health Hunts,Nursing Independent Sector
Cambridgeshire County Council,17-Mar-16,19944659-12994898,-835,Longueville Court,Care Establishment,2 - Commissioning - Older people Pool,Older People Mental Health Hunts,Nursing Independent Sector
Cambridgeshire County Council,17-Mar-16,19944664-12994901,-835,Longueville Court,Care Establishment,2 - Commissioning - Older people Pool,Older People Mental Health Hunts,Nursing Independent Sector
Cambridgeshire County Council,17-Mar-16,19944673-12994957,-835,Longueville Court,Care Establishment,2 - Commissioning - Older people Pool,Older People Mental Health Hunts,Nursing Independent Sector
Cambridgeshire County Council,17-Mar-16,19944677-12994960,-835,Longueville Court,Care Establishment,2 - Commissioning - Older people Pool,Older People Mental Health Hunts,Nursing Independent Sector
Cambridgeshire County Council,17-Mar-16,19944678-12994961,-835,Longueville Court,Care Establishment,2 - Commissioning - Older people Pool,Older People Mental Health Hunts,Nursing Independent Sector
Cambridgeshire County Council,17-Mar-16,19944683-12994963,-835,Longueville Court,Care Establishment,2 - Commissioning - Older people Pool,Older People Mental Health Hunts,Nursing Independent Sector
Cambridgeshire County Council,17-Mar-16,19944684-12994964,-835,Longueville Court,Care Establishment,2 - Commissioning - Older people Pool,Older People Mental Health Hunts,Nursing Independent Sector
Cambridgeshire County Council,17-Mar-16,19944685-12994965,-835,Longueville Court,Care Establishment,2 - Commissioning - Older people Pool,Older People Mental Health Hunts,Nursing Independent Sector
Cambridgeshire County Council,17-Mar-16,19944686-12994966,-835,Longueville Court,Care Establishment,2 - Commissioning - Older people Pool,Older People Mental Health Hunts,Nursing Independent Sector
Cambridgeshire County Council,17-Mar-16,19944689-12994967,-835,Longueville Court,Care Establishment,2 - Commissioning - Older people Pool,Older People Mental Health Hunts,Nursing Independent Sector
Cambridgeshire County Council,17-Mar-16,19944696-12994972,-835,Longueville Court,Care Establishment,2 - Commissioning - Older people Pool,Older People Mental Health Hunts,Nursing Independent Sector
Cambridgeshire County Council,17-Mar-16,19944702-12994904,-835,Longueville Court,Care Establishment,2 - Commissioning - Older people Pool,Older People Mental Health Hunts,Nursing Independent Sector
Cambridgeshire County Council,17-Mar-16,19944703-12994905,-835,Longueville Court,Care Establishment,2 - Commissioning - Older people Pool,Older People Mental Health Hunts,Nursing Independent Sector
Cambridgeshire County Council,17-Mar-16,19944705-12994907,-835,Longueville Court,Care Establishment,2 - Commissioning - Older people Pool,Older People Mental Health Hunts,Nursing Independent Sector
Cambridgeshire County Council,17-Mar-16,19944708-12994909,-835,Longueville Court,Care Establishment,2 - Commissioning - Older people Pool,Older People Mental Health Hunts,Nursing Independent Sector
Cambridgeshire County Council,17-Mar-16,19944714-12994914,-835,Longueville Court,Care Establishment,2 - Commissioning - Older people Pool,Older People Mental Health Hunts,Nursing Independent Sector
Cambridgeshire County Council,17-Mar-16,19944718-12994917,-835,Longueville Court,Care Establishment,2 - Commissioning - Older people Pool,Older People Mental Health Hunts,Nursing Independent Sector
Cambridgeshire County Council,17-Mar-16,19944719-12994918,-835,Longueville Court,Care Establishment,2 - Commissioning - Older people Pool,Older People Mental Health Hunts,Nursing Independent Sector
Cambridgeshire County Council,17-Mar-16,19944721-12994919,-835,Longueville Court,Care Establishment,2 - Commissioning - Older people Pool,Older People Mental Health Hunts,Nursing Independent Sector
Cambridgeshire County Council,17-Mar-16,19944722-12994920,-835,Longueville Court,Care Establishment,2 - Commissioning - Older people Pool,Older People Mental Health Hunts,Nursing Independent Sector
Cambridgeshire County Council,17-Mar-16,19944727-12994923,-835,Longueville Court,Care Establishment,2 - Commissioning - Older people Pool,Older People Mental Health Hunts,Nursing Independent Sector
Cambridgeshire County Council,17-Mar-16,19944731-12994925,-835,Longueville Court,Care Establishment,2 - Commissioning - Older people Pool,Older People Mental Health Hunts,Nursing Independent Sector
Cambridgeshire County Council,17-Mar-16,19944734-12994927,-835,Longueville Court,Care Establishment,2 - Commissioning - Older people Pool,Older People Mental Health Hunts,Nursing Independent Sector
Cambridgeshire County Council,17-Mar-16,19944738-12994929,-835,Longueville Court,Care Establishment,2 - Commissioning - Older people Pool,Older People Mental Health Hunts,Nursing Independent Sector
Cambridgeshire County Council,17-Mar-16,19983039-12994932,-835,Longueville Court,Care Establishment,2 - Commissioning - Older people Pool,Older People Mental Health Hunts,Nursing Independent Sector
Cambridgeshire County Council,17-Mar-16,19983041-12994934,-835,Longueville Court,Care Establishment,2 - Commissioning - Older people Pool,Older People Mental Health Hunts,Nursing Independent Sector
Cambridgeshire County Council,17-Mar-16,19983043-12994936,-835,Longueville Court,Care Establishment,2 - Commissioning - Older people Pool,Older People Mental Health Hunts,Nursing Independent Sector
Cambridgeshire County Council,17-Mar-16,19983044-12994937,-835,Longueville Court,Care Establishment,2 - Commissioning - Older people Pool,Older People Mental Health Hunts,Nursing Independent Sector
Cambridgeshire County Council,17-Mar-16,19983045-12994938,-835,Longueville Court,Care Establishment,2 - Commissioning - Older people Pool,Older People Mental Health Hunts,Nursing Independent Sector
Cambridgeshire County Council,17-Mar-16,19983046-12994939,-835,Longueville Court,Care Establishment,2 - Commissioning - Older people Pool,Older People Mental Health Hunts,Nursing Independent Sector
Cambridgeshire County Council,17-Mar-16,19983048-12994941,-835,Longueville Court,Care Establishment,2 - Commissioning - Older people Pool,Older People Mental Health Hunts,Nursing Independent Sector
Cambridgeshire County Council,17-Mar-16,19983053-12994944,-835,Longueville Court,Care Establishment,2 - Commissioning - Older people Pool,Older People Mental Health Hunts,Nursing Independent Sector
Cambridgeshire County Council,17-Mar-16,19983054-12994945,-835,Longueville Court,Care Establishment,2 - Commissioning - Older people Pool,Older People Mental Health Hunts,Nursing Independent Sector
Cambridgeshire County Council,17-Mar-16,19983056-12994946,-835,Longueville Court,Care Establishment,2 - Commissioning - Older people Pool,Older People Mental Health Hunts,Nursing Independent Sector
Cambridgeshire County Council,17-Mar-16,19983062-12994951,-835,Longueville Court,Care Establishment,2 - Commissioning - Older people Pool,Older People Mental Health Hunts,Nursing Independent Sector
Cambridgeshire County Council,17-Mar-16,19983063-12994952,-835,Longueville Court,Care Establishment,2 - Commissioning - Older people Pool,Older People Mental Health Hunts,Nursing Independent Sector
Cambridgeshire County Council,17-Mar-16,19983067-12994954,-835,Longueville Court,Care Establishment,2 - Commissioning - Older people Pool,Older People Mental Health Hunts,Nursing Independent Sector
Cambridgeshire County Council,17-Mar-16,19983069-12994797,-835,Longueville Court,Care Establishment,2 - Commissioning - Older people Pool,Older People Mental Health Hunts,Nursing Independent Sector
Cambridgeshire County Council,17-Mar-16,19983071-12994799,-835,Longueville Court,Care Establishment,2 - Commissioning - Older people Pool,Older People Mental Health Hunts,Nursing Independent Sector
Cambridgeshire County Council,17-Mar-16,19983076-12994802,-835,Longueville Court,Care Establishment,2 - Commissioning - Older people Pool,Older People Mental Health Hunts,Nursing Independent Sector
Cambridgeshire County Council,17-Mar-16,19983079-12994805,-835,Longueville Court,Care Establishment,2 - Commissioning - Older people Pool,Older People Mental Health Hunts,Nursing Independent Sector
Cambridgeshire County Council,17-Mar-16,19983080-12994806,-835,Longueville Court,Care Establishment,2 - Commissioning - Older people Pool,Older People Mental Health Hunts,Nursing Independent Sector
Cambridgeshire County Council,17-Mar-16,19983082-12994808,-835,Longueville Court,Care Establishment,2 - Commissioning - Older people Pool,Older People Mental Health Hunts,Nursing Independent Sector
Cambridgeshire County Council,17-Mar-16,19983083-12994809,-835,Longueville Court,Care Establishment,2 - Commissioning - Older people Pool,Older People Mental Health Hunts,Nursing Independent Sector
Cambridgeshire County Council,17-Mar-16,19983085-12994811,-835,Longueville Court,Care Establishment,2 - Commissioning - Older people Pool,Older People Mental Health Hunts,Nursing Independent Sector
Cambridgeshire County Council,17-Mar-16,19983088-12994814,-835,Longueville Court,Care Establishment,2 - Commissioning - Older people Pool,Older People Mental Health Hunts,Nursing Independent Sector
Cambridgeshire County Council,17-Mar-16,19983092-12994818,-835,Longueville Court,Care Establishment,2 - Commissioning - Older people Pool,Older People Mental Health Hunts,Nursing Independent Sector
Cambridgeshire County Council,17-Mar-16,19983097-12994822,-835,Longueville Court,Care Establishment,2 - Commissioning - Older people Pool,Older People Mental Health Hunts,Nursing Independent Sector
Cambridgeshire County Council,17-Mar-16,19983102-12994826,-835,Longueville Court,Care Establishment,2 - Commissioning - Older people Pool,Older People Mental Health Hunts,Nursing Independent Sector
Cambridgeshire County Council,17-Mar-16,20028763-12994828,-835,Longueville Court,Care Establishment,2 - Commissioning - Older people Pool,Older People Mental Health Hunts,Nursing Independent Sector
Cambridgeshire County Council,17-Mar-16,20028765-12994830,-835,Longueville Court,Care Establishment,2 - Commissioning - Older people Pool,Older People Mental Health Hunts,Nursing Independent Sector
Cambridgeshire County Council,17-Mar-16,20028771-12994834,-835,Longueville Court,Care Establishment,2 - Commissioning - Older people Pool,Hunts O P  Team,Nursing Independent Sector
Cambridgeshire County Council,17-Mar-16,20028778-12994840,-835,Longueville Court,Care Establishment,2 - Commissioning - Older people Pool,Hunts O P  Team,Nursing Independent Sector
Cambridgeshire County Council,17-Mar-16,20028779-12994841,-835,Longueville Court,Care Establishment,2 - Commissioning - Older people Pool,Hunts O P  Team,Nursing Independent Sector
Cambridgeshire County Council,17-Mar-16,20028780-12994842,-835,Longueville Court,Care Establishment,2 - Commissioning - Older people Pool,Older People Mental Health Hunts,Nursing Independent Sector
Cambridgeshire County Council,17-Mar-16,20028781-12994843,-835,Longueville Court,Care Establishment,2 - Commissioning - Older people Pool,Older People Mental Health Hunts,Nursing Independent Sector
Cambridgeshire County Council,17-Mar-16,20028784-12994846,-835,Longueville Court,Care Establishment,2 - Commissioning - Older people Pool,Older People Mental Health Hunts,Nursing Independent Sector
Cambridgeshire County Council,17-Mar-16,20028785-12994847,-835,Longueville Court,Care Establishment,2 - Commissioning - Older people Pool,Hunts O P  Team,Nursing Independent Sector
Cambridgeshire County Council,17-Mar-16,20028786-12994848,-835,Longueville Court,Care Establishment,2 - Commissioning - Older people Pool,Hunts O P  Team,Nursing Independent Sector
Cambridgeshire County Council,17-Mar-16,20028787-12994849,-835,Longueville Court,Care Establishment,2 - Commissioning - Older people Pool,Hunts O P  Team,Nursing Independent Sector
Cambridgeshire County Council,17-Mar-16,20028788-12994850,-835,Longueville Court,Care Establishment,2 - Commissioning - Older people Pool,Older People Mental Health Hunts,Nursing Independent Sector
Cambridgeshire County Council,17-Mar-16,20028796-12994856,-835,Longueville Court,Care Establishment,2 - Commissioning - Older people Pool,Older People Mental Health Hunts,Nursing Independent Sector
Cambridgeshire County Council,17-Mar-16,20031981-12994777,-835,Longueville Court,Care Establishment,2 - Commissioning - Older people Pool,Older People Mental Health Hunts,Nursing Independent Sector
Cambridgeshire County Council,17-Mar-16,20031982-12994778,-835,Longueville Court,Care Establishment,2 - Commissioning - Older people Pool,Hunts O P  Team,Nursing Independent Sector
Cambridgeshire County Council,17-Mar-16,20031983-12994779,-835,Longueville Court,Care Establishment,2 - Commissioning - Older people Pool,Older People Mental Health Hunts,Nursing Independent Sector
Cambridgeshire County Council,17-Mar-16,20031984-12994780,-835,Longueville Court,Care Establishment,2 - Commissioning - Older people Pool,Hunts O P  Team,Nursing Independent Sector
Cambridgeshire County Council,17-Mar-16,20031988-12994782,-835,Longueville Court,Care Establishment,2 - Commissioning - Older people Pool,Older People Mental Health Hunts,Nursing Independent Sector
Cambridgeshire County Council,17-Mar-16,20031993-12994786,-835,Longueville Court,Care Establishment,2 - Commissioning - Older people Pool,Hunts O P  Team,Nursing Independent Sector
Cambridgeshire County Council,17-Mar-16,20031994-12994787,-835,Longueville Court,Care Establishment,2 - Commissioning - Older people Pool,Older People Mental Health Hunts,Nursing Independent Sector
Cambridgeshire County Council,17-Mar-16,20031995-12994788,-835,Longueville Court,Care Establishment,2 - Commissioning - Older people Pool,Older People Mental Health Hunts,Nursing Independent Sector
Cambridgeshire County Council,17-Mar-16,20031997-12994790,-835,Longueville Court,Care Establishment,2 - Commissioning - Older people Pool,Older People Mental Health Hunts,Nursing Independent Sector
Cambridgeshire County Council,17-Mar-16,20032000-12994793,-835,Longueville Court,Care Establishment,2 - Commissioning - Older people Pool,Hunts O P  Team,Nursing Independent Sector
Cambridgeshire County Council,17-Mar-16,20032003-12994795,-835,Longueville Court,Care Establishment,2 - Commissioning - Older people Pool,Older People Mental Health Hunts,Nursing Independent Sector
Cambridgeshire County Council,17-Mar-16,20032004-12994796,-835,Longueville Court,Care Establishment,2 - Commissioning - Older people Pool,Hunts O P  Team,Nursing Independent Sector
Cambridgeshire County Council,17-Mar-16,20060092-12994722,-835,Longueville Court,Care Establishment,2 - Commissioning - Older people Pool,Older People Mental Health Hunts,Nursing Independent Sector
Cambridgeshire County Council,17-Mar-16,20060094-12994723,-835,Longueville Court,Care Establishment,2 - Commissioning - Older people Pool,Older People Mental Health Hunts,Nursing Independent Sector
Cambridgeshire County Council,17-Mar-16,20060098-12994726,-835,Longueville Court,Care Establishment,2 - Commissioning - Older people Pool,Hunts O P  Team,Nursing Independent Sector
Cambridgeshire County Council,17-Mar-16,20060099-12994727,-835,Longueville Court,Care Establishment,2 - Commissioning - Older people Pool,Hunts O P  Team,Nursing Independent Sector
Cambridgeshire County Council,17-Mar-16,20060101-12994729,-835,Longueville Court,Care Establishment,2 - Commissioning - Older people Pool,Older People Mental Health Hunts,Nursing Independent Sector
Cambridgeshire County Council,17-Mar-16,20060103-12994730,-835,Longueville Court,Care Establishment,2 - Commissioning - Older people Pool,Older People Mental Health Hunts,Nursing Independent Sector
Cambridgeshire County Council,17-Mar-16,20060104-12994731,-835,Longueville Court,Care Establishment,2 - Commissioning - Older people Pool,Hunts O P  Team,Nursing Independent Sector
Cambridgeshire County Council,17-Mar-16,20060111-12994737,-835,Longueville Court,Care Establishment,2 - Commissioning - Older people Pool,Hunts O P  Team,Nursing Independent Sector
Cambridgeshire County Council,17-Mar-16,20060117-12994740,-835,Longueville Court,Care Establishment,2 - Commissioning - Older people Pool,Older People Mental Health Hunts,Nursing Independent Sector
Cambridgeshire County Council,17-Mar-16,20060121-12994744,-835,Longueville Court,Care Establishment,2 - Commissioning - Older people Pool,Older People Mental Health Hunts,Nursing Independent Sector
Cambridgeshire County Council,17-Mar-16,20060124-12994747,-835,Longueville Court,Care Establishment,2 - Commissioning - Older people Pool,Hunts O P  Team,Nursing Independent Sector
Cambridgeshire County Council,17-Mar-16,20060808-12994752,-835,Longueville Court,Care Establishment,2 - Commissioning - Older people Pool,Older People Mental Health Hunts,Nursing Independent Sector
Cambridgeshire County Council,17-Mar-16,20060812-12994754,-835,Longueville Court,Care Establishment,2 - Commissioning - Older people Pool,Hunts O P  Team,Nursing Independent Sector
Cambridgeshire County Council,17-Mar-16,20060817-12994758,-835,Longueville Court,Care Establishment,2 - Commissioning - Older people Pool,Hunts O P  Team,Nursing Independent Sector
Cambridgeshire County Council,17-Mar-16,20060818-12994759,-835,Longueville Court,Care Establishment,2 - Commissioning - Older people Pool,Hunts O P  Team,Nursing Independent Sector
Cambridgeshire County Council,17-Mar-16,20060819-12994760,-835,Longueville Court,Care Establishment,2 - Commissioning - Older people Pool,Older People Mental Health Hunts,Nursing Independent Sector
Cambridgeshire County Council,17-Mar-16,20060823-12994762,-835,Longueville Court,Care Establishment,2 - Commissioning - Older people Pool,Hunts O P  Team,Nursing Independent Sector
Cambridgeshire County Council,17-Mar-16,20060826-12994763,-835,Longueville Court,Care Establishment,2 - Commissioning - Older people Pool,Hunts O P  Team,Nursing Independent Sector
Cambridgeshire County Council,17-Mar-16,20060828-12994764,-835,Longueville Court,Care Establishment,2 - Commissioning - Older people Pool,Hunts O P  Team,Nursing Independent Sector
Cambridgeshire County Council,17-Mar-16,20060830-12994766,-835,Longueville Court,Care Establishment,2 - Commissioning - Older people Pool,Older People Mental Health Hunts,Nursing Independent Sector
Cambridgeshire County Council,17-Mar-16,20060831-12994767,-835,Longueville Court,Care Establishment,2 - Commissioning - Older people Pool,Older People Mental Health Hunts,Nursing Independent Sector
Cambridgeshire County Council,17-Mar-16,20060835-12994769,-835,Longueville Court,Care Establishment,2 - Commissioning - Older people Pool,Hunts O P  Team,Nursing Independent Sector
Cambridgeshire County Council,17-Mar-16,20060837-12994771,-835,Longueville Court,Care Establishment,2 - Commissioning - Older people Pool,Hunts O P  Team,Nursing Independent Sector
Cambridgeshire County Council,17-Mar-16,20060839-12994772,-835,Longueville Court,Care Establishment,2 - Commissioning - Older people Pool,Hunts O P  Team,Nursing Independent Sector
Cambridgeshire County Council,17-Mar-16,20060841-12994773,-835,Longueville Court,Care Establishment,2 - Commissioning - Older people Pool,Hunts O P  Team,Nursing Independent Sector
Cambridgeshire County Council,17-Mar-16,20122217-12994672,-835,Longueville Court,Care Establishment,2 - Commissioning - Older people Pool,Older People Mental Health Hunts,Nursing Independent Sector
Cambridgeshire County Council,17-Mar-16,20122218-12994673,-835,Longueville Court,Care Establishment,2 - Commissioning - Older people Pool,Older People Mental Health Hunts,Nursing Independent Sector
Cambridgeshire County Council,17-Mar-16,20122220-12994674,-835,Longueville Court,Care Establishment,2 - Commissioning - Older people Pool,Older People Mental Health Hunts,Nursing Independent Sector
Cambridgeshire County Council,17-Mar-16,20122222-12994675,-835,Longueville Court,Care Establishment,2 - Commissioning - Older people Pool,Older People Mental Health Hunts,Nursing Independent Sector
Cambridgeshire County Council,17-Mar-16,20122223-12994676,-835,Longueville Court,Care Establishment,2 - Commissioning - Older people Pool,Hunts O P  Team,Nursing Independent Sector
Cambridgeshire County Council,17-Mar-16,20122224-12994677,-835,Longueville Court,Care Establishment,2 - Commissioning - Older people Pool,Hunts O P  Team,Nursing Independent Sector
Cambridgeshire County Council,17-Mar-16,20122225-12994678,-835,Longueville Court,Care Establishment,2 - Commissioning - Older people Pool,Older People Mental Health Hunts,Nursing Independent Sector
Cambridgeshire County Council,17-Mar-16,20122226-12994679,-835,Longueville Court,Care Establishment,2 - Commissioning - Older people Pool,Older People Mental Health Hunts,Nursing Independent Sector
Cambridgeshire County Council,17-Mar-16,20122228-12994680,-835,Longueville Court,Care Establishment,2 - Commissioning - Older people Pool,Older People Mental Health Hunts,Nursing Independent Sector
Cambridgeshire County Council,17-Mar-16,20122229-12994681,-835,Longueville Court,Care Establishment,2 - Commissioning - Older people Pool,Hunts O P  Team,Nursing Independent Sector
Cambridgeshire County Council,17-Mar-16,20122231-12994683,-835,Longueville Court,Care Establishment,2 - Commissioning - Older people Pool,Hunts O P  Team,Nursing Independent Sector
Cambridgeshire County Council,17-Mar-16,20122233-12994685,-835,Longueville Court,Care Establishment,2 - Commissioning - Older people Pool,Older People Mental Health Hunts,Nursing Independent Sector
Cambridgeshire County Council,17-Mar-16,20122312-12994695,-835,Longueville Court,Care Establishment,2 - Commissioning - Older people Pool,Older People Mental Health Hunts,Nursing Independent Sector
Cambridgeshire County Council,17-Mar-16,20122316-12994697,-835,Longueville Court,Care Establishment,2 - Commissioning - Older people Pool,Hunts O P  Team,Nursing Independent Sector
Cambridgeshire County Council,17-Mar-16,20122317-12994698,-835,Longueville Court,Care Establishment,2 - Commissioning - Older people Pool,Hunts O P  Team,Nursing Independent Sector
Cambridgeshire County Council,17-Mar-16,20122318-12994699,-835,Longueville Court,Care Establishment,2 - Commissioning - Older people Pool,Hunts O P  Team,Nursing Independent Sector
Cambridgeshire County Council,17-Mar-16,20122321-12994701,-835,Longueville Court,Care Establishment,2 - Commissioning - Older people Pool,Hunts O P  Team,Nursing Independent Sector
Cambridgeshire County Council,17-Mar-16,20122324-12994702,-835,Longueville Court,Care Establishment,2 - Commissioning - Older people Pool,Hunts O P  Team,Nursing Independent Sector
Cambridgeshire County Council,17-Mar-16,20122325-12994703,-835,Longueville Court,Care Establishment,2 - Commissioning - Older people Pool,Hunts O P  Team,Nursing Independent Sector
Cambridgeshire County Council,17-Mar-16,20122345-12994714,-835,Longueville Court,Care Establishment,2 - Commissioning - Older people Pool,Older People Mental Health Hunts,Nursing Independent Sector
Cambridgeshire County Council,17-Mar-16,20122348-12994717,-835,Longueville Court,Care Establishment,2 - Commissioning - Older people Pool,Older People Mental Health Hunts,Nursing Independent Sector
Cambridgeshire County Council,17-Mar-16,20122351-12994718,-835,Longueville Court,Care Establishment,2 - Commissioning - Older people Pool,Older People Mental Health Hunts,Nursing Independent Sector
Cambridgeshire County Council,17-Mar-16,20122352-12994719,-835,Longueville Court,Care Establishment,2 - Commissioning - Older people Pool,Older People Mental Health Hunts,Nursing Independent Sector
Cambridgeshire County Council,17-Mar-16,20122354-12994720,-835,Longueville Court,Care Establishment,2 - Commissioning - Older people Pool,Older People Mental Health Hunts,Nursing Independent Sector
Cambridgeshire County Council,17-Mar-16,20122359-12994671,-835,Longueville Court,Care Establishment,2 - Commissioning - Older people Pool,Older People Mental Health Hunts,Nursing Independent Sector
Cambridgeshire County Council,17-Mar-16,20177360-12994618,-835,Longueville Court,Care Establishment,2 - Commissioning - Older people Pool,Hunts O P  Team,Nursing Independent Sector
Cambridgeshire County Council,17-Mar-16,20177362-12994620,-835,Longueville Court,Care Establishment,2 - Commissioning - Older people Pool,Hunts O P  Team,Nursing Independent Sector
Cambridgeshire County Council,17-Mar-16,20177364-12994622,-835,Longueville Court,Care Establishment,2 - Commissioning - Older people Pool,Hunts O P  Team,Nursing Independent Sector
Cambridgeshire County Council,17-Mar-16,20177365-12994623,-835,Longueville Court,Care Establishment,2 - Commissioning - Older people Pool,Hunts O P  Team,Nursing Independent Sector
Cambridgeshire County Council,17-Mar-16,20177366-12994624,-835,Longueville Court,Care Establishment,2 - Commissioning - Older people Pool,Older People Mental Health Hunts,Nursing Independent Sector
Cambridgeshire County Council,17-Mar-16,20177368-12994626,-835,Longueville Court,Care Establishment,2 - Commissioning - Older people Pool,Hunts O P  Team,Nursing Independent Sector
Cambridgeshire County Council,17-Mar-16,20177369-12994627,-835,Longueville Court,Care Establishment,2 - Commissioning - Older people Pool,Older People Mental Health Hunts,Nursing Independent Sector
Cambridgeshire County Council,17-Mar-16,20177371-12994629,-835,Longueville Court,Care Establishment,2 - Commissioning - Older people Pool,Older People Mental Health Hunts,Nursing Independent Sector
Cambridgeshire County Council,17-Mar-16,20177373-12994631,-835,Longueville Court,Care Establishment,2 - Commissioning - Older people Pool,Older People Mental Health Hunts,Nursing Independent Sector
Cambridgeshire County Council,17-Mar-16,20177375-12994633,-835,Longueville Court,Care Establishment,2 - Commissioning - Older people Pool,Hunts O P  Team,Nursing Independent Sector
Cambridgeshire County Council,17-Mar-16,20177377-12994635,-835,Longueville Court,Care Establishment,2 - Commissioning - Older people Pool,Older People Mental Health Hunts,Nursing Independent Sector
Cambridgeshire County Council,17-Mar-16,20177378-12994636,-835,Longueville Court,Care Establishment,2 - Commissioning - Older people Pool,Older People Mental Health Hunts,Nursing Independent Sector
Cambridgeshire County Council,17-Mar-16,20177379-12994637,-835,Longueville Court,Care Establishment,2 - Commissioning - Older people Pool,Hunts O P  Team,Nursing Independent Sector
Cambridgeshire County Council,17-Mar-16,20177381-12994639,-835,Longueville Court,Care Establishment,2 - Commissioning - Older people Pool,Hunts O P  Team,Nursing Independent Sector
Cambridgeshire County Council,17-Mar-16,20177385-12994643,-835,Longueville Court,Care Establishment,2 - Commissioning - Older people Pool,Older People Mental Health Hunts,Nursing Independent Sector
Cambridgeshire County Council,17-Mar-16,20177387-12994645,-835,Longueville Court,Care Establishment,2 - Commissioning - Older people Pool,Older People Mental Health Hunts,Nursing Independent Sector
Cambridgeshire County Council,17-Mar-16,20177393-12994651,-835,Longueville Court,Care Establishment,2 - Commissioning - Older people Pool,Older People Mental Health Hunts,Nursing Independent Sector
Cambridgeshire County Council,17-Mar-16,20177396-12994654,-835,Longueville Court,Care Establishment,2 - Commissioning - Older people Pool,Older People Mental Health Hunts,Nursing Independent Sector
Cambridgeshire County Council,17-Mar-16,20177401-12994659,-835,Longueville Court,Care Establishment,2 - Commissioning - Older people Pool,Hunts O P  Team,Nursing Independent Sector
Cambridgeshire County Council,17-Mar-16,20177402-12994660,-835,Longueville Court,Care Establishment,2 - Commissioning - Older people Pool,Hunts O P  Team,Nursing Independent Sector
Cambridgeshire County Council,17-Mar-16,20177404-12994662,-835,Longueville Court,Care Establishment,2 - Commissioning - Older people Pool,Hunts O P  Team,Nursing Independent Sector
Cambridgeshire County Council,17-Mar-16,20177406-12994664,-835,Longueville Court,Care Establishment,2 - Commissioning - Older people Pool,Older People Mental Health Hunts,Nursing Independent Sector
Cambridgeshire County Council,17-Mar-16,20179796-12994614,-835,Longueville Court,Care Establishment,2 - Commissioning - Older people Pool,Older People Mental Health Hunts,Nursing Independent Sector
Cambridgeshire County Council,17-Mar-16,20179798-12994616,-835,Longueville Court,Care Establishment,2 - Commissioning - Older people Pool,Hunts O P  Team,Nursing Independent Sector
Cambridgeshire County Council,17-Mar-16,20179799-12994617,-835,Longueville Court,Care Establishment,2 - Commissioning - Older people Pool,Hunts O P  Team,Nursing Independent Sector
Cambridgeshire County Council,17-Mar-16,20219047-12995073,-835,Longueville Court,Care Establishment,2 - Commissioning - Older people Pool,Older People Mental Health Hunts,Nursing Independent Sector
Cambridgeshire County Council,17-Mar-16,20219048-12995074,-835,Longueville Court,Care Establishment,2 - Commissioning - Older people Pool,Older People Mental Health Hunts,Nursing Independent Sector
Cambridgeshire County Council,17-Mar-16,20219049-12995075,-835,Longueville Court,Care Establishment,2 - Commissioning - Older people Pool,Hunts O P  Team,Nursing Independent Sector
Cambridgeshire County Council,17-Mar-16,20219050-12995076,-835,Longueville Court,Care Establishment,2 - Commissioning - Older people Pool,Hunts O P  Team,Nursing Independent Sector
Cambridgeshire County Council,17-Mar-16,20219051-12995077,-835,Longueville Court,Care Establishment,2 - Commissioning - Older people Pool,Hunts O P  Team,Nursing Independent Sector
Cambridgeshire County Council,17-Mar-16,20219052-12995078,-835,Longueville Court,Care Establishment,2 - Commissioning - Older people Pool,Older People Mental Health Hunts,Nursing Independent Sector
Cambridgeshire County Council,17-Mar-16,20219054-12995080,-835,Longueville Court,Care Establishment,2 - Commissioning - Older people Pool,Older People Mental Health Hunts,Nursing Independent Sector
Cambridgeshire County Council,17-Mar-16,20219055-12995081,-835,Longueville Court,Care Establishment,2 - Commissioning - Older people Pool,Older People Mental Health Hunts,Nursing Independent Sector
Cambridgeshire County Council,17-Mar-16,20219057-12995082,-835,Longueville Court,Care Establishment,2 - Commissioning - Older people Pool,Hunts O P  Team,Nursing Independent Sector
Cambridgeshire County Council,17-Mar-16,20219059-12995084,-835,Longueville Court,Care Establishment,2 - Commissioning - Older people Pool,Older People Mental Health Hunts,Nursing Independent Sector
Cambridgeshire County Council,17-Mar-16,20219061-12995085,-835,Longueville Court,Care Establishment,2 - Commissioning - Older people Pool,Hunts O P  Team,Nursing Independent Sector
Cambridgeshire County Council,17-Mar-16,20219062-12995086,-835,Longueville Court,Care Establishment,2 - Commissioning - Older people Pool,Older People Mental Health Hunts,Nursing Independent Sector
Cambridgeshire County Council,17-Mar-16,20219066-12995090,-835,Longueville Court,Care Establishment,2 - Commissioning - Older people Pool,Hunts O P  Team,Nursing Independent Sector
Cambridgeshire County Council,17-Mar-16,20219068-12995092,-835,Longueville Court,Care Establishment,2 - Commissioning - Older people Pool,Older People Mental Health Hunts,Nursing Independent Sector
Cambridgeshire County Council,17-Mar-16,20219071-12995094,-835,Longueville Court,Care Establishment,2 - Commissioning - Older people Pool,Older People Mental Health Hunts,Nursing Independent Sector
Cambridgeshire County Council,17-Mar-16,20219076-12995045,-835,Longueville Court,Care Establishment,2 - Commissioning - Older people Pool,Hunts O P  Team,Nursing Independent Sector
Cambridgeshire County Council,17-Mar-16,20219079-12995047,-835,Longueville Court,Care Establishment,2 - Commissioning - Older people Pool,Hunts O P  Team,Nursing Independent Sector
Cambridgeshire County Council,17-Mar-16,20219081-12995049,-835,Longueville Court,Care Establishment,2 - Commissioning - Older people Pool,Hunts O P  Team,Nursing Independent Sector
Cambridgeshire County Council,17-Mar-16,20219083-12995051,-835,Longueville Court,Care Establishment,2 - Commissioning - Older people Pool,Hunts O P  Team,Nursing Independent Sector
Cambridgeshire County Council,17-Mar-16,20219084-12995052,-835,Longueville Court,Care Establishment,2 - Commissioning - Older people Pool,Older People Mental Health Hunts,Nursing Independent Sector
Cambridgeshire County Council,17-Mar-16,20219089-12995057,-835,Longueville Court,Care Establishment,2 - Commissioning - Older people Pool,Older People Mental Health Hunts,Nursing Independent Sector
Cambridgeshire County Council,17-Mar-16,20219098-12995064,-835,Longueville Court,Care Establishment,2 - Commissioning - Older people Pool,Older People Mental Health Hunts,Nursing Independent Sector
Cambridgeshire County Council,17-Mar-16,20222134-12994667,-835,Longueville Court,Care Establishment,2 - Commissioning - Older people Pool,Hunts O P  Team,Nursing Independent Sector
Cambridgeshire County Council,17-Mar-16,20222135-12994668,-835,Longueville Court,Care Establishment,2 - Commissioning - Older people Pool,Older People Mental Health Hunts,Nursing Independent Sector
Cambridgeshire County Council,17-Mar-16,20222137-12994669,-835,Longueville Court,Care Establishment,2 - Commissioning - Older people Pool,Older People Mental Health Hunts,Nursing Independent Sector
Cambridgeshire County Council,21-Mar-16,20092482-13014176,-828.1,The Award Scheme Ltd,Education,LRNG,Duke of Edinburgh's Award,Materials for resale
Cambridgeshire County Council,17-Mar-16,20176228-12994193,-825,Rose Cottage Residential Home,Care Establishment,2 - Commissioning - Older people Pool,Hunts O P  Team,Residential Independent Sector
Cambridgeshire County Council,17-Mar-16,20176229-12994194,-825,Rose Cottage Residential Home,Care Establishment,2 - Commissioning - Older people Pool,Hunts O P  Team,Residential Independent Sector
Cambridgeshire County Council,17-Mar-16,20176230-12994195,-825,Rose Cottage Residential Home,Care Establishment,2 - Commissioning - Older people Pool,Hunts O P  Team,Residential Independent Sector
Cambridgeshire County Council,17-Mar-16,20176231-12994196,-825,Rose Cottage Residential Home,Care Establishment,2 - Commissioning - Older people Pool,Hunts O P  Team,Residential Independent Sector
Cambridgeshire County Council,07-Mar-16,20005614-12943009,-820.95,The Riverside Group Ltd,Care Establishment,CSC,18-25 Service Indigenous,Childrens Lodgings
Cambridgeshire County Council,17-Mar-16,20219157-12992749,-798.86,Sense East,Care Establishment,3 - Operations - Countywide Services,Countywide PD Service - Care,SDS - Live Independently
Cambridgeshire County Council,17-Mar-16,20055098-12992373,-793.81,Making Space#1,Care Establishment,3 - Operations - Countywide Services,Countywide PD Service - Care,Nursing Independent Sector
Cambridgeshire County Council,17-Mar-16,20112960-12992287,-793.81,Making Space#1,Care Establishment,3 - Operations - Countywide Services,Countywide PD Service - Care,Nursing Independent Sector
Cambridgeshire County Council,17-Mar-16,20177714-12992206,-793.81,Making Space#1,Care Establishment,3 - Operations - Countywide Services,Countywide PD Service - Care,Nursing Independent Sector
Cambridgeshire County Council,17-Mar-16,20217362-12992133,-793.81,Making Space#1,Care Establishment,3 - Operations - Countywide Services,Countywide PD Service - Care,Nursing Independent Sector
Cambridgeshire County Council,24-Mar-16,20272764-13036322,-793.81,Making Space#1,Care Establishment,3 - Operations - Countywide Services,Countywide PD Service - Care,Nursing Independent Sector
Cambridgeshire County Council,04-Mar-16,20122150-12931118,-787.68,Gr Gibbs,Care Establishment,2 - Operations - Learning Disability,LDP Huntingdonshire Locality - Care,Residential Independent Sector
Cambridgeshire County Council,04-Mar-16,20122151-12931119,-787.68,Gr Gibbs,Care Establishment,2 - Operations - Learning Disability,LDP Huntingdonshire Locality - Care,Residential Independent Sector
Cambridgeshire County Council,04-Mar-16,20122156-12931124,-787.68,Gr Gibbs,Care Establishment,2 - Operations - Learning Disability,LDP Huntingdonshire Locality - Care,Residential Independent Sector
Cambridgeshire County Council,04-Mar-16,20122159-12931127,-787.68,Gr Gibbs,Care Establishment,2 - Operations - Learning Disability,LDP Huntingdonshire Locality - Care,Residential Independent Sector
Cambridgeshire County Council,04-Mar-16,20122166-12931134,-787.68,Gr Gibbs,Care Establishment,2 - Operations - Learning Disability,LDP Huntingdonshire Locality - Care,Residential Independent Sector
Cambridgeshire County Council,04-Mar-16,20122167-12931135,-787.68,Gr Gibbs,Care Establishment,2 - Operations - Learning Disability,LDP Huntingdonshire Locality - Care,Residential Independent Sector
Cambridgeshire County Council,04-Mar-16,20122169-12931137,-787.68,Gr Gibbs,Care Establishment,2 - Operations - Learning Disability,LDP Huntingdonshire Locality - Care,Residential Independent Sector
Cambridgeshire County Council,24-Mar-16,20272865-13034236,-782.86,Conquest Care Homes Peterborough,Care Establishment,3 - Operations - Countywide Services,Countywide PD Service - Care,Residential Independent Sector
Cambridgeshire County Council,08-Mar-16,20142455-12944096,-777.6,Faithful And Gould,Trade Supplier,LGSS,P&P Commissioning (Prop),Other Hired Contract Services
Cambridgeshire County Council,17-Mar-16,20176763-12997119,-755.66,Bramley Court,Care Establishment,2 - Commissioning - Older people Pool,Older People Mental Health City & South,Nursing Independent Sector
Cambridgeshire County Council,04-Mar-16,20125621-12931844,-750,Mihomecare Ltd (Fenland Premier Care),Care Establishment,3 - Operations - Countywide Services,Countywide PD Service - Care,Day and Domicillary Care Independent Sector
Cambridgeshire County Council,24-Mar-16,20277750-13035884,-733.65,Bramley Court,Care Establishment,2 - Commissioning - Older people Pool,Older People - City & South,Nursing Independent Sector
Cambridgeshire County Council,24-Mar-16,20277751-13035885,-733.65,Bramley Court,Care Establishment,2 - Commissioning - Older people Pool,Older People - City & South,Nursing Independent Sector
Cambridgeshire County Council,24-Mar-16,20277753-13035887,-733.65,Bramley Court,Care Establishment,2 - Commissioning - Older people Pool,Older People - City & South,Nursing Independent Sector
Cambridgeshire County Council,24-Mar-16,20277760-13035889,-733.65,Bramley Court,Care Establishment,2 - Commissioning - Older people Pool,Older People - City & South,Nursing Independent Sector
Cambridgeshire County Council,30-Mar-16,20271012-13057706,-728.87,Caerus Care Ltd,Care Establishment,2 - Operations - Learning Disability,LDP Fenland Locality - Care,Day and Domicillary Care Independent Sector
Cambridgeshire County Council,30-Mar-16,20271027-13057721,-728.87,Caerus Care Ltd,Care Establishment,2 - Operations - Learning Disability,LDP Fenland Locality - Care,Day and Domicillary Care Independent Sector
Cambridgeshire County Council,30-Mar-16,20271047-13057741,-728.87,Caerus Care Ltd,Care Establishment,2 - Operations - Learning Disability,LDP Fenland Locality - Care,Day and Domicillary Care Independent Sector
Cambridgeshire County Council,30-Mar-16,20271055-13057749,-728.87,Caerus Care Ltd,Care Establishment,2 - Operations - Learning Disability,LDP Fenland Locality - Care,Day and Domicillary Care Independent Sector
Cambridgeshire County Council,30-Mar-16,20271062-13057756,-728.87,Caerus Care Ltd,Care Establishment,2 - Operations - Learning Disability,LDP Fenland Locality - Care,Day and Domicillary Care Independent Sector
Cambridgeshire County Council,30-Mar-16,20271063-13057757,-728.87,Caerus Care Ltd,Care Establishment,2 - Operations - Learning Disability,LDP Fenland Locality - Care,Day and Domicillary Care Independent Sector
Cambridgeshire County Council,30-Mar-16,20271079-13057773,-728.87,Caerus Care Ltd,Care Establishment,2 - Operations - Learning Disability,LDP Fenland Locality - Care,Day and Domicillary Care Independent Sector
Cambridgeshire County Council,30-Mar-16,20271099-13057674,-728.87,Caerus Care Ltd,Care Establishment,2 - Operations - Learning Disability,LDP Fenland Locality - Care,Day and Domicillary Care Independent Sector
Cambridgeshire County Council,30-Mar-16,20271109-13057685,-728.87,Caerus Care Ltd,Care Establishment,2 - Operations - Learning Disability,LDP Fenland Locality - Care,Day and Domicillary Care Independent Sector
Cambridgeshire County Council,30-Mar-16,20271110-13057686,-728.87,Caerus Care Ltd,Care Establishment,2 - Operations - Learning Disability,LDP Fenland Locality - Care,Day and Domicillary Care Independent Sector
Cambridgeshire County Council,30-Mar-16,20272925-13057640,-728.87,Caerus Care Ltd,Care Establishment,2 - Operations - Learning Disability,LDP Fenland Locality - Care,Day and Domicillary Care Independent Sector
Cambridgeshire County Council,30-Mar-16,20272926-13057641,-728.87,Caerus Care Ltd,Care Establishment,2 - Operations - Learning Disability,LDP Fenland Locality - Care,Day and Domicillary Care Independent Sector
Cambridgeshire County Council,30-Mar-16,20272939-13057654,-728.87,Caerus Care Ltd,Care Establishment,2 - Operations - Learning Disability,LDP Fenland Locality - Care,Day and Domicillary Care Independent Sector
Cambridgeshire County Council,30-Mar-16,20273506-13066230,-725,Cambridge Manor Care Home (Tlc),Care Establishment,2 - Commissioning - Older people Pool,Older People - City & South,Nursing Independent Sector
Cambridgeshire County Council,30-Mar-16,20273507-13066231,-725,Cambridge Manor Care Home (Tlc),Care Establishment,2 - Commissioning - Older people Pool,Older People - City & South,Nursing Independent Sector
Cambridgeshire County Council,30-Mar-16,20273508-13066232,-725,Cambridge Manor Care Home (Tlc),Care Establishment,2 - Commissioning - Older people Pool,Older People - City & South,Nursing Independent Sector
Cambridgeshire County Council,30-Mar-16,20273510-13066235,-725,Cambridge Manor Care Home (Tlc),Care Establishment,2 - Commissioning - Older people Pool,Older People - City & South,Nursing Independent Sector
Cambridgeshire County Council,30-Mar-16,20274292-13066234,-725,Cambridge Manor Care Home (Tlc),Care Establishment,2 - Commissioning - Older people Pool,Older People - City & South,Nursing Independent Sector
Cambridgeshire County Council,04-Mar-16,19905316-12929975,-723.16,Redacted Personal Data,Individual,3 - Operations - Countywide Services,Countywide PD Service - Care,Direct Payments - Social Services
Cambridgeshire County Council,04-Mar-16,19905321-12929980,-723.16,Redacted Personal Data,Individual,3 - Operations - Countywide Services,Countywide PD Service - Care,Direct Payments - Social Services
Cambridgeshire County Council,04-Mar-16,19905326-12929985,-723.16,Redacted Personal Data,Individual,3 - Operations - Countywide Services,Countywide PD Service - Care,Direct Payments - Social Services
Cambridgeshire County Council,04-Mar-16,19905329-12929988,-723.16,Redacted Personal Data,Individual,3 - Operations - Countywide Services,Countywide PD Service - Care,Direct Payments - Social Services
Cambridgeshire County Council,04-Mar-16,19905331-12929990,-723.16,Redacted Personal Data,Individual,3 - Operations - Countywide Services,Countywide PD Service - Care,Direct Payments - Social Services
Cambridgeshire County Council,04-Mar-16,19911441-12929993,-723.16,Redacted Personal Data,Individual,3 - Operations - Countywide Services,Countywide PD Service - Care,Direct Payments - Social Services
Cambridgeshire County Council,04-Mar-16,19911442-12929994,-723.16,Redacted Personal Data,Individual,3 - Operations - Countywide Services,Countywide PD Service - Care,Direct Payments - Social Services
Cambridgeshire County Council,04-Mar-16,19911453-12930005,-723.16,Redacted Personal Data,Individual,3 - Operations - Countywide Services,Countywide PD Service - Care,Direct Payments - Social Services
Cambridgeshire County Council,04-Mar-16,19911454-12930006,-723.16,Redacted Personal Data,Individual,3 - Operations - Countywide Services,Countywide PD Service - Care,Direct Payments - Social Services
Cambridgeshire County Council,04-Mar-16,19911457-12930009,-723.16,Redacted Personal Data,Individual,3 - Operations - Countywide Services,Countywide PD Service - Care,Direct Payments - Social Services
Cambridgeshire County Council,04-Mar-16,20031802-12919357,-714.43,Availl Healthcare,Care Establishment,3 - Operations - Countywide Services,Countywide PD Service - Care,Day and Domicillary Care Independent Sector
Cambridgeshire County Council,04-Mar-16,20031805-12919358,-714.43,Availl Healthcare,Care Establishment,3 - Operations - Countywide Services,Countywide PD Service - Care,Day and Domicillary Care Independent Sector
Cambridgeshire County Council,04-Mar-16,20031807-12919359,-714.43,Availl Healthcare,Care Establishment,3 - Operations - Countywide Services,Countywide PD Service - Care,Day and Domicillary Care Independent Sector
Cambridgeshire County Council,14-Mar-16,20041412-12971772,-706.19,Guidant Group,Trade Supplier,S&C,Catering - Bassingbourn Primary School;,Pay - Agency Staff
Cambridgeshire County Council,17-Mar-16,20177686-12992631,-705.73,Redacted Personal Data,Individual,2 - Operations - Learning Disability,LDP South Cambs Locality - Care,SDS - Care and support Services
Cambridgeshire County Council,04-Mar-16,20129990-12930313,-702.61,Affinity Trust,Care Establishment,2 - Operations - Learning Disability,LDP E Cambs Locality - Care,Supported Living
Cambridgeshire County Council,24-Mar-16,20273573-13035080,-682.19,Thera East Anglia,Trust (Other),2 - Operations - Learning Disability,LDP Fens - Special Needs,Supported Living
Cambridgeshire County Council,17-Mar-16,20179579-12996734,-678.57,Woodlands Care Centre,Care Establishment,3 - Operations - Countywide Services,Countywide PD Service - Care,Nursing Independent Sector
Cambridgeshire County Council,17-Mar-16,20179581-12996736,-678.57,Woodlands Care Centre,Care Establishment,3 - Operations - Countywide Services,Countywide PD Service - Care,Nursing Independent Sector
Cambridgeshire County Council,30-Mar-16,20275772-13074505,-677.7,Etheldred House,Care Establishment,2 - Commissioning - Older people Pool,Older People - City & South,Nursing Independent Sector
Cambridgeshire County Council,30-Mar-16,20275773-13074506,-677.7,Etheldred House,Care Establishment,2 - Commissioning - Older people Pool,Older People - City & South,Nursing Independent Sector
Cambridgeshire County Council,30-Mar-16,20275774-13074507,-677.7,Etheldred House,Care Establishment,2 - Commissioning - Older people Pool,Older People - City & South,Nursing Independent Sector
Cambridgeshire County Council,30-Mar-16,20275775-13074508,-677.7,Etheldred House,Care Establishment,2 - Commissioning - Older people Pool,Older People - City & South,Nursing Independent Sector
Cambridgeshire County Council,30-Mar-16,20275776-13074509,-677.7,Etheldred House,Care Establishment,2 - Commissioning - Older people Pool,Older People - City & South,Nursing Independent Sector
Cambridgeshire County Council,30-Mar-16,20275777-13074510,-677.7,Etheldred House,Care Establishment,2 - Commissioning - Older people Pool,Older People - City & South,Nursing Independent Sector
Cambridgeshire County Council,30-Mar-16,20275778-13074511,-677.7,Etheldred House,Care Establishment,2 - Commissioning - Older people Pool,Older People - City & South,Nursing Independent Sector
Cambridgeshire County Council,30-Mar-16,20275779-13074512,-677.7,Etheldred House,Care Establishment,2 - Commissioning - Older people Pool,Older People - City & South,Nursing Independent Sector
Cambridgeshire County Council,30-Mar-16,20275780-13074513,-677.7,Etheldred House,Care Establishment,2 - Commissioning - Older people Pool,Older People - City & South,Nursing Independent Sector
Cambridgeshire County Council,30-Mar-16,20275781-13074514,-677.7,Etheldred House,Care Establishment,2 - Commissioning - Older people Pool,Older People - City & South,Nursing Independent Sector
Cambridgeshire County Council,30-Mar-16,20275782-13074515,-677.7,Etheldred House,Care Establishment,2 - Commissioning - Older people Pool,Older People - City & South,Nursing Independent Sector
Cambridgeshire County Council,30-Mar-16,20275783-13074516,-677.7,Etheldred House,Care Establishment,2 - Commissioning - Older people Pool,Older People - City & South,Nursing Independent Sector
Cambridgeshire County Council,30-Mar-16,20275784-13074517,-677.7,Etheldred House,Care Establishment,2 - Commissioning - Older people Pool,Older People - City & South,Nursing Independent Sector
Cambridgeshire County Council,16-Mar-16,20190193-12986666,-670.97,Probrand Limited,Trade Supplier,LRNG,ICT Service Procurement,Materials for resale
Cambridgeshire County Council,17-Mar-16,19905371-12994981,-657.14,Longueville Court,Care Establishment,3 - Operations - Countywide Services,Countywide PD Service - Care,Residential Independent Sector
Cambridgeshire County Council,11-Mar-16,20132888-12966758,-644.61,The Cambridge Nursing Centre,Care Establishment,2 - Commissioning - Older people Pool,East Cambs - O P Team,Nursing Independent Sector
Cambridgeshire County Council,11-Mar-16,20132894-12966764,-644.61,The Cambridge Nursing Centre,Care Establishment,2 - Commissioning - Older people Pool,East Cambs - O P Team,Nursing Independent Sector
Cambridgeshire County Council,11-Mar-16,20132895-12966765,-644.61,The Cambridge Nursing Centre,Care Establishment,2 - Commissioning - Older people Pool,East Cambs - O P Team,Nursing Independent Sector
Cambridgeshire County Council,30-Mar-16,20275435-13075060,-638.74,Redacted Personal Data,Individual,2 - Operations - Learning Disability,LDP South Cambs Locality - Care,SDS - Care and support Services
Cambridgeshire County Council,30-Mar-16,20277151-13074992,-638.74,Redacted Personal Data,Individual,2 - Operations - Learning Disability,LDP South Cambs Locality - Care,SDS - Care and support Services
Cambridgeshire County Council,30-Mar-16,20277222-13074962,-638.74,Redacted Personal Data,Individual,2 - Operations - Learning Disability,LDP South Cambs Locality - Care,SDS - Care and support Services
Cambridgeshire County Council,17-Mar-16,20176762-12997118,-629.71,Bramley Court,Care Establishment,2 - Commissioning - Older people Pool,Older People Mental Health City & South,Nursing Independent Sector
Cambridgeshire County Council,30-Mar-16,20273354-13080621,-627.05,Hunters Healthcare (Hunters Down),Care Establishment,2 - Commissioning - Older people Pool,Older People Mental Health Hunts,Nursing Independent Sector
Cambridgeshire County Council,30-Mar-16,20274019-13080622,-627.05,Hunters Healthcare (Hunters Down),Care Establishment,2 - Commissioning - Older people Pool,Older People Mental Health Hunts,Nursing Independent Sector
Cambridgeshire County Council,30-Mar-16,20274020-13080623,-627.05,Hunters Healthcare (Hunters Down),Care Establishment,2 - Commissioning - Older people Pool,Older People Mental Health Hunts,Nursing Independent Sector
Cambridgeshire County Council,30-Mar-16,20274021-13080624,-627.05,Hunters Healthcare (Hunters Down),Care Establishment,2 - Commissioning - Older people Pool,Older People Mental Health Hunts,Nursing Independent Sector
Cambridgeshire County Council,30-Mar-16,20274022-13080625,-627.05,Hunters Healthcare (Hunters Down),Care Establishment,2 - Commissioning - Older people Pool,Older People Mental Health Hunts,Nursing Independent Sector
Cambridgeshire County Council,30-Mar-16,20274024-13080627,-627.05,Hunters Healthcare (Hunters Down),Care Establishment,2 - Commissioning - Older people Pool,Older People Mental Health Hunts,Nursing Independent Sector
Cambridgeshire County Council,24-Mar-16,20271275-13033696,-615.98,Redacted Personal Data,Individual,2 - Operations - Learning Disability,LDP City Locality - Care,SDS - Care and support Services
Cambridgeshire County Council,24-Mar-16,20271278-13033699,-615.98,Redacted Personal Data,Individual,2 - Operations - Learning Disability,LDP City Locality - Care,SDS - Care and support Services
Cambridgeshire County Council,24-Mar-16,20271279-13033700,-615.98,Redacted Personal Data,Individual,2 - Operations - Learning Disability,LDP City Locality - Care,SDS - Care and support Services
Cambridgeshire County Council,24-Mar-16,20271283-13033704,-615.98,Redacted Personal Data,Individual,2 - Operations - Learning Disability,LDP City Locality - Care,SDS - Care and support Services
Cambridgeshire County Council,24-Mar-16,20271308-13033729,-615.98,Redacted Personal Data,Individual,2 - Operations - Learning Disability,LDP City Locality - Care,SDS - Care and support Services
Cambridgeshire County Council,24-Mar-16,20271322-13033779,-615.98,Redacted Personal Data,Individual,2 - Operations - Learning Disability,LDP City Locality - Care,SDS - Care and support Services
Cambridgeshire County Council,24-Mar-16,20271329-13033786,-615.98,Redacted Personal Data,Individual,2 - Operations - Learning Disability,LDP City Locality - Care,SDS - Care and support Services
Cambridgeshire County Council,24-Mar-16,20271334-13033791,-615.98,Redacted Personal Data,Individual,2 - Operations - Learning Disability,LDP City Locality - Care,SDS - Care and support Services
Cambridgeshire County Council,24-Mar-16,20271337-13033794,-615.98,Redacted Personal Data,Individual,2 - Operations - Learning Disability,LDP City Locality - Care,SDS - Care and support Services
Cambridgeshire County Council,24-Mar-16,20271338-13033795,-615.98,Redacted Personal Data,Individual,2 - Operations - Learning Disability,LDP City Locality - Care,SDS - Care and support Services
Cambridgeshire County Council,24-Mar-16,20271356-13033741,-615.98,Redacted Personal Data,Individual,2 - Operations - Learning Disability,LDP City Locality - Care,SDS - Care and support Services
Cambridgeshire County Council,24-Mar-16,20271369-13033754,-615.98,Redacted Personal Data,Individual,2 - Operations - Learning Disability,LDP City Locality - Care,SDS - Care and support Services
Cambridgeshire County Council,24-Mar-16,20271370-13033755,-615.98,Redacted Personal Data,Individual,2 - Operations - Learning Disability,LDP City Locality - Care,SDS - Care and support Services
Cambridgeshire County Council,24-Mar-16,20271373-13033758,-615.98,Redacted Personal Data,Individual,2 - Operations - Learning Disability,LDP City Locality - Care,SDS - Care and support Services
Cambridgeshire County Council,24-Mar-16,20271380-13033765,-615.98,Redacted Personal Data,Individual,2 - Operations - Learning Disability,LDP City Locality - Care,SDS - Care and support Services
Cambridgeshire County Council,24-Mar-16,20271393-13033586,-615.98,Redacted Personal Data,Individual,2 - Operations - Learning Disability,LDP City Locality - Care,SDS - Care and support Services
Cambridgeshire County Council,24-Mar-16,20271394-13033587,-615.98,Redacted Personal Data,Individual,2 - Operations - Learning Disability,LDP City Locality - Care,SDS - Care and support Services
Cambridgeshire County Council,24-Mar-16,20271402-13033595,-615.98,Redacted Personal Data,Individual,2 - Operations - Learning Disability,LDP City Locality - Care,SDS - Care and support Services
Cambridgeshire County Council,24-Mar-16,20271423-13033616,-615.98,Redacted Personal Data,Individual,2 - Operations - Learning Disability,LDP City Locality - Care,SDS - Care and support Services
Cambridgeshire County Council,24-Mar-16,20271430-13033623,-615.98,Redacted Personal Data,Individual,2 - Operations - Learning Disability,LDP City Locality - Care,SDS - Care and support Services
Cambridgeshire County Council,24-Mar-16,20271448-13033641,-615.98,Redacted Personal Data,Individual,2 - Operations - Learning Disability,LDP City Locality - Care,SDS - Care and support Services
Cambridgeshire County Council,24-Mar-16,20271457-13033650,-615.98,Redacted Personal Data,Individual,2 - Operations - Learning Disability,LDP City Locality - Care,SDS - Care and support Services
Cambridgeshire County Council,24-Mar-16,20271480-13033673,-615.98,Redacted Personal Data,Individual,2 - Operations - Learning Disability,LDP City Locality - Care,SDS - Care and support Services
Cambridgeshire County Council,24-Mar-16,20271488-13033681,-615.98,Redacted Personal Data,Individual,2 - Operations - Learning Disability,LDP City Locality - Care,SDS - Care and support Services
Cambridgeshire County Council,24-Mar-16,20271496-13033689,-615.98,Redacted Personal Data,Individual,2 - Operations - Learning Disability,LDP City Locality - Care,SDS - Care and support Services
Cambridgeshire County Council,04-Mar-16,20118808-12922234,-615.85,The Edmund Trust,Care Establishment,2 - Operations - Learning Disability,LDP South Cambs Locality - Care,Supported Living
Cambridgeshire County Council,04-Mar-16,20118820-12922235,-615.85,The Edmund Trust,Care Establishment,2 - Operations - Learning Disability,LDP South Cambs Locality - Care,Supported Living
Cambridgeshire County Council,04-Mar-16,20118822-12922236,-615.85,The Edmund Trust,Care Establishment,2 - Operations - Learning Disability,LDP South Cambs Locality - Care,Supported Living
Cambridgeshire County Council,04-Mar-16,20118831-12922238,-615.85,The Edmund Trust,Care Establishment,2 - Operations - Learning Disability,LDP South Cambs Locality - Care,Supported Living
Cambridgeshire County Council,04-Mar-16,20118832-12922239,-615.85,The Edmund Trust,Care Establishment,2 - Operations - Learning Disability,LDP South Cambs Locality - Care,Supported Living
Cambridgeshire County Council,24-Mar-16,20218889-13035418,-615.34,Redacted Personal Data,Individual,3 - Operations - Countywide Services,Countywide PD Service - Care,Direct Payments - Social Services
Cambridgeshire County Council,24-Mar-16,20218891-13035420,-615.34,Redacted Personal Data,Individual,3 - Operations - Countywide Services,Countywide PD Service - Care,Direct Payments - Social Services
Cambridgeshire County Council,24-Mar-16,20218897-13035426,-615.34,Redacted Personal Data,Individual,3 - Operations - Countywide Services,Countywide PD Service - Care,Direct Payments - Social Services
Cambridgeshire County Council,24-Mar-16,20218898-13035427,-615.34,Redacted Personal Data,Individual,3 - Operations - Countywide Services,Countywide PD Service - Care,Direct Payments - Social Services
Cambridgeshire County Council,11-Mar-16,20178370-12966288,-610.32,Penderels Trust,Trust (Other),2 - Operations - Learning Disability,LDP Huntingdonshire Locality - Care,SDS - Care and support Services
Cambridgeshire County Council,11-Mar-16,20178379-12966297,-610.32,Penderels Trust,Trust (Other),2 - Operations - Learning Disability,LDP Huntingdonshire Locality - Care,SDS - Care and support Services
Cambridgeshire County Council,11-Mar-16,20180031-12966313,-610.32,Penderels Trust,Trust (Other),2 - Operations - Learning Disability,LDP Huntingdonshire Locality - Care,SDS - Care and support Services
Cambridgeshire County Council,11-Mar-16,20180032-12966314,-610.32,Penderels Trust,Trust (Other),2 - Operations - Learning Disability,LDP Huntingdonshire Locality - Care,SDS - Care and support Services
Cambridgeshire County Council,11-Mar-16,20180038-12966305,-610.32,Penderels Trust,Trust (Other),2 - Operations - Learning Disability,LDP Huntingdonshire Locality - Care,SDS - Care and support Services
Cambridgeshire County Council,11-Mar-16,20180093-12965447,-607.14,Meadows Homecare Services,Care Establishment,3 - Operations - Countywide Services,Countywide PD Service - Care,Day and Domicillary Care Independent Sector
Cambridgeshire County Council,04-Mar-16,19980747-12928049,-591.18,Thera East Anglia,Trust (Other),2 - Operations - Learning Disability,LDP E Cambs Locality - Care,Supported Living
Cambridgeshire County Council,04-Mar-16,20122876-12917274,-589,Citc Care Ltd (Home Choice),Care Establishment,3 - Operations - Countywide Services,Countywide PD Service - Care,Day and Domicillary Care Independent Sector
Cambridgeshire County Council,04-Mar-16,20122878-12917276,-589,Citc Care Ltd (Home Choice),Care Establishment,3 - Operations - Countywide Services,Countywide PD Service - Care,Day and Domicillary Care Independent Sector
Cambridgeshire County Council,04-Mar-16,20057754-12929862,-587.31,Conquest Care Homes (Soham) Ltd,Care Establishment,2 - Operations - Learning Disability,LDP E Cambs Special Needs,SDS - Care and support Services
Cambridgeshire County Council,04-Mar-16,20114403-12929842,-587.31,Conquest Care Homes (Soham) Ltd,Care Establishment,2 - Operations - Learning Disability,LDP E Cambs Special Needs,SDS - Care and support Services
Cambridgeshire County Council,17-Mar-16,20178637-12993944,-587.31,Conquest Care Homes (Soham) Ltd,Care Establishment,2 - Operations - Learning Disability,LDP E Cambs Special Needs,SDS - Care and support Services
Cambridgeshire County Council,17-Mar-16,20219771-12993973,-587.31,Conquest Care Homes (Soham) Ltd,Care Establishment,2 - Operations - Learning Disability,LDP E Cambs Locality - Care,SDS - Care and support Services
Cambridgeshire County Council,24-Mar-16,20272993-13033952,-587.31,Conquest Care Homes (Soham) Ltd,Care Establishment,2 - Operations - Learning Disability,LDP E Cambs Special Needs,SDS - Care and support Services
Cambridgeshire County Council,30-Mar-16,20381457-13069226,-587.31,Conquest Care Homes (Soham) Ltd,Care Establishment,2 - Operations - Learning Disability,LDP E Cambs Locality - Care,SDS - Care and support Services
Cambridgeshire County Council,04-Mar-16,19984735-12918504,-581.39,Midas Care Ltd,Care Establishment,2 - Commissioning - Older people Pool,Hunts O P  Team,Day and Domicillary Care Independent Sector
Cambridgeshire County Council,04-Mar-16,19984736-12918505,-581.39,Midas Care Ltd,Care Establishment,2 - Commissioning - Older people Pool,Hunts O P  Team,Day and Domicillary Care Independent Sector
Cambridgeshire County Council,04-Mar-16,20057899-12937948,-576.4,Buchan Healthcare Ltd,Care Establishment,2 - Commissioning - Older people Pool,Older People - City & South,Residential Independent Sector
Cambridgeshire County Council,04-Mar-16,20057900-12937949,-576.4,Buchan Healthcare Ltd,Care Establishment,2 - Commissioning - Older people Pool,Older People - City & South,Residential Independent Sector
Cambridgeshire County Council,04-Mar-16,20057901-12937950,-576.4,Buchan Healthcare Ltd,Care Establishment,2 - Commissioning - Older people Pool,Older People - City & South,Residential Independent Sector
Cambridgeshire County Council,04-Mar-16,20057902-12937951,-576.4,Buchan Healthcare Ltd,Care Establishment,2 - Commissioning - Older people Pool,Older People - City & South,Residential Independent Sector
Cambridgeshire County Council,04-Mar-16,20057903-12937952,-576.4,Buchan Healthcare Ltd,Care Establishment,2 - Commissioning - Older people Pool,Older People - City & South,Residential Independent Sector
Cambridgeshire County Council,04-Mar-16,20057905-12937953,-576.4,Buchan Healthcare Ltd,Care Establishment,2 - Commissioning - Older people Pool,Older People - City & South,Residential Independent Sector
Cambridgeshire County Council,04-Mar-16,20057906-12937954,-576.4,Buchan Healthcare Ltd,Care Establishment,2 - Commissioning - Older people Pool,Older People - City & South,Residential Independent Sector
Cambridgeshire County Council,04-Mar-16,20057907-12937955,-576.4,Buchan Healthcare Ltd,Care Establishment,2 - Commissioning - Older people Pool,Older People - City & South,Residential Independent Sector
Cambridgeshire County Council,04-Mar-16,20057908-12937956,-576.4,Buchan Healthcare Ltd,Care Establishment,2 - Commissioning - Older people Pool,Older People - City & South,Residential Independent Sector
Cambridgeshire County Council,04-Mar-16,20057909-12937957,-576.4,Buchan Healthcare Ltd,Care Establishment,2 - Commissioning - Older people Pool,Older People - City & South,Residential Independent Sector
Cambridgeshire County Council,04-Mar-16,20057910-12937958,-576.4,Buchan Healthcare Ltd,Care Establishment,2 - Commissioning - Older people Pool,Older People - City & South,Residential Independent Sector
Cambridgeshire County Council,04-Mar-16,20057911-12937959,-576.4,Buchan Healthcare Ltd,Care Establishment,2 - Commissioning - Older people Pool,Older People - City & South,Residential Independent Sector
Cambridgeshire County Council,04-Mar-16,20057912-12937960,-576.4,Buchan Healthcare Ltd,Care Establishment,2 - Commissioning - Older people Pool,Older People - City & South,Residential Independent Sector
Cambridgeshire County Council,04-Mar-16,20057915-12937961,-576.4,Buchan Healthcare Ltd,Care Establishment,2 - Commissioning - Older people Pool,Older People - City & South,Residential Independent Sector
Cambridgeshire County Council,04-Mar-16,20057916-12937962,-576.4,Buchan Healthcare Ltd,Care Establishment,2 - Commissioning - Older people Pool,Older People - City & South,Residential Independent Sector
Cambridgeshire County Council,04-Mar-16,20057919-12937963,-576.4,Buchan Healthcare Ltd,Care Establishment,2 - Commissioning - Older people Pool,Older People - City & South,Residential Independent Sector
Cambridgeshire County Council,04-Mar-16,20057920-12937964,-576.4,Buchan Healthcare Ltd,Care Establishment,2 - Commissioning - Older people Pool,Older People - City & South,Residential Independent Sector
Cambridgeshire County Council,04-Mar-16,20057924-12937965,-576.4,Buchan Healthcare Ltd,Care Establishment,2 - Commissioning - Older people Pool,Older People - City & South,Residential Independent Sector
Cambridgeshire County Council,04-Mar-16,20057926-12937966,-576.4,Buchan Healthcare Ltd,Care Establishment,2 - Commissioning - Older people Pool,Older People - City & South,Residential Independent Sector
Cambridgeshire County Council,17-Mar-16,20223818-12998809,-575.77,Midfield Lodge Care Centre,Care Establishment,2 - Commissioning - Older people Pool,Older People Mental Health City & South,Nursing Independent Sector
Cambridgeshire County Council,17-Mar-16,20225475-12998842,-575.77,Midfield Lodge Care Centre,Care Establishment,2 - Commissioning - Older people Pool,Older People Mental Health City & South,Nursing Independent Sector
Cambridgeshire County Council,04-Mar-16,20031800-12919356,-573.82,Availl Healthcare,Care Establishment,3 - Operations - Countywide Services,Countywide PD Service - Care,Day and Domicillary Care Independent Sector
Cambridgeshire County Council,11-Mar-16,20130777-12966755,-572.53,The Cambridge Nursing Centre,Care Establishment,2 - Commissioning - Older people Pool,East Cambs - O P Team,Nursing Independent Sector
Cambridgeshire County Council,11-Mar-16,20130788-12966756,-572.53,The Cambridge Nursing Centre,Care Establishment,2 - Commissioning - Older people Pool,East Cambs - O P Team,Nursing Independent Sector
Cambridgeshire County Council,30-Mar-16,20177605-13067146,-572.53,Cottenham Court Nursing Home,Care Establishment,2 - Commissioning - Older people Pool,Older People - City & South,Nursing Independent Sector
Cambridgeshire County Council,11-Mar-16,20179034-12966772,-572.53,The Cambridge Nursing Centre,Care Establishment,2 - Commissioning - Older people Pool,East Cambs - O P Team,Nursing Independent Sector
Cambridgeshire County Council,11-Mar-16,20179038-12966775,-572.53,The Cambridge Nursing Centre,Care Establishment,2 - Commissioning - Older people Pool,East Cambs - O P Team,Nursing Independent Sector
Cambridgeshire County Council,17-Mar-16,20176442-12998826,-566.31,Midfield Lodge Care Centre,Care Establishment,2 - Commissioning - Older people Pool,East Cambs - O P Team,Nursing Independent Sector
Cambridgeshire County Council,17-Mar-16,20176443-12998827,-566.31,Midfield Lodge Care Centre,Care Establishment,2 - Commissioning - Older people Pool,East Cambs - O P Team,Nursing Independent Sector
Cambridgeshire County Council,17-Mar-16,20122617-12998834,-565.18,Midfield Lodge Care Centre,Care Establishment,2 - Commissioning - Older people Pool,East Cambs - O P Team,Nursing Independent Sector
Cambridgeshire County Council,17-Mar-16,20132698-12998829,-565.18,Midfield Lodge Care Centre,Care Establishment,2 - Commissioning - Older people Pool,East Cambs - O P Team,Nursing Independent Sector
Cambridgeshire County Council,17-Mar-16,20132699-12998830,-565.18,Midfield Lodge Care Centre,Care Establishment,2 - Commissioning - Older people Pool,East Cambs - O P Team,Nursing Independent Sector
Cambridgeshire County Council,17-Mar-16,20132710-12998833,-565.18,Midfield Lodge Care Centre,Care Establishment,2 - Commissioning - Older people Pool,East Cambs - O P Team,Nursing Independent Sector
Cambridgeshire County Council,17-Mar-16,20176251-12996752,-559.73,Woodlands Care Centre,Care Establishment,2 - Commissioning - Older people Pool,Older People - City & South,Nursing Independent Sector
Cambridgeshire County Council,17-Mar-16,20176253-12996754,-559.73,Woodlands Care Centre,Care Establishment,2 - Commissioning - Older people Pool,Older People - City & South,Nursing Independent Sector
Cambridgeshire County Council,11-Mar-16,20132889-12966759,-552.52,The Cambridge Nursing Centre,Care Establishment,2 - Commissioning - Older people Pool,East Cambs - O P Team,Nursing Independent Sector
Cambridgeshire County Council,04-Mar-16,20059159-12933391,-542.97,Hunters Healthcare (Hunters Down),Care Establishment,2 - Commissioning - Older people Pool,Hunts O P  Team,Residential Independent Sector
Cambridgeshire County Council,04-Mar-16,20059160-12933392,-542.97,Hunters Healthcare (Hunters Down),Care Establishment,2 - Commissioning - Older people Pool,Hunts O P  Team,Residential Independent Sector
Cambridgeshire County Council,04-Mar-16,20059166-12933398,-542.97,Hunters Healthcare (Hunters Down),Care Establishment,2 - Commissioning - Older people Pool,Hunts O P  Team,Residential Independent Sector
Cambridgeshire County Council,04-Mar-16,20059168-12933400,-542.97,Hunters Healthcare (Hunters Down),Care Establishment,2 - Commissioning - Older people Pool,Hunts O P  Team,Residential Independent Sector
Cambridgeshire County Council,04-Mar-16,20059170-12933402,-542.97,Hunters Healthcare (Hunters Down),Care Establishment,2 - Commissioning - Older people Pool,Hunts O P  Team,Residential Independent Sector
Cambridgeshire County Council,04-Mar-16,20059171-12933403,-542.97,Hunters Healthcare (Hunters Down),Care Establishment,2 - Commissioning - Older people Pool,Hunts O P  Team,Residential Independent Sector
Cambridgeshire County Council,04-Mar-16,20059172-12933404,-542.97,Hunters Healthcare (Hunters Down),Care Establishment,2 - Commissioning - Older people Pool,Hunts O P  Team,Residential Independent Sector
Cambridgeshire County Council,30-Mar-16,19983215-13074853,-540.8,Care Uk Homecare,Care Establishment,2 - Operations - Learning Disability,LDP Huntingdonshire Locality - Care,SDS - Care and support Services
Cambridgeshire County Council,30-Mar-16,19983217-13074855,-540.8,Care Uk Homecare,Care Establishment,2 - Operations - Learning Disability,LDP Huntingdonshire Locality - Care,SDS - Care and support Services
Cambridgeshire County Council,30-Mar-16,19983218-13074856,-540.8,Care Uk Homecare,Care Establishment,2 - Operations - Learning Disability,LDP Huntingdonshire Locality - Care,SDS - Care and support Services
Cambridgeshire County Council,30-Mar-16,19983219-13074857,-540.8,Care Uk Homecare,Care Establishment,2 - Operations - Learning Disability,LDP Huntingdonshire Locality - Care,SDS - Care and support Services
Cambridgeshire County Council,30-Mar-16,19983221-13074859,-540.8,Care Uk Homecare,Care Establishment,2 - Operations - Learning Disability,LDP Huntingdonshire Locality - Care,SDS - Care and support Services
Cambridgeshire County Council,30-Mar-16,19983222-13074860,-540.8,Care Uk Homecare,Care Establishment,2 - Operations - Learning Disability,LDP Huntingdonshire Locality - Care,SDS - Care and support Services
Cambridgeshire County Council,30-Mar-16,19983223-13074861,-540.8,Care Uk Homecare,Care Establishment,2 - Operations - Learning Disability,LDP Huntingdonshire Locality - Care,SDS - Care and support Services
Cambridgeshire County Council,30-Mar-16,19983224-13074862,-540.8,Care Uk Homecare,Care Establishment,2 - Operations - Learning Disability,LDP Huntingdonshire Locality - Care,SDS - Care and support Services
Cambridgeshire County Council,30-Mar-16,19983227-13074865,-540.8,Care Uk Homecare,Care Establishment,2 - Operations - Learning Disability,LDP Huntingdonshire Locality - Care,SDS - Care and support Services
Cambridgeshire County Council,30-Mar-16,19983228-13074866,-540.8,Care Uk Homecare,Care Establishment,2 - Operations - Learning Disability,LDP Huntingdonshire Locality - Care,SDS - Care and support Services
Cambridgeshire County Council,30-Mar-16,19983230-13074868,-540.8,Care Uk Homecare,Care Establishment,2 - Operations - Learning Disability,LDP Huntingdonshire Locality - Care,SDS - Care and support Services
Cambridgeshire County Council,30-Mar-16,19983231-13074869,-540.8,Care Uk Homecare,Care Establishment,2 - Operations - Learning Disability,LDP Huntingdonshire Locality - Care,SDS - Care and support Services
Cambridgeshire County Council,30-Mar-16,19983233-13074871,-540.8,Care Uk Homecare,Care Establishment,2 - Operations - Learning Disability,LDP Huntingdonshire Locality - Care,SDS - Care and support Services
Cambridgeshire County Council,30-Mar-16,19983235-13074873,-540.8,Care Uk Homecare,Care Establishment,2 - Operations - Learning Disability,LDP Huntingdonshire Locality - Care,SDS - Care and support Services
Cambridgeshire County Council,30-Mar-16,19983237-13074875,-540.8,Care Uk Homecare,Care Establishment,2 - Operations - Learning Disability,LDP Huntingdonshire Locality - Care,SDS - Care and support Services
Cambridgeshire County Council,30-Mar-16,19983238-13074876,-540.8,Care Uk Homecare,Care Establishment,2 - Operations - Learning Disability,LDP Huntingdonshire Locality - Care,SDS - Care and support Services
Cambridgeshire County Council,30-Mar-16,19983239-13074776,-540.8,Care Uk Homecare,Care Establishment,2 - Operations - Learning Disability,LDP Huntingdonshire Locality - Care,SDS - Care and support Services
Cambridgeshire County Council,30-Mar-16,19983241-13074778,-540.8,Care Uk Homecare,Care Establishment,2 - Operations - Learning Disability,LDP Huntingdonshire Locality - Care,SDS - Care and support Services
Cambridgeshire County Council,30-Mar-16,19983244-13074781,-540.8,Care Uk Homecare,Care Establishment,2 - Operations - Learning Disability,LDP Huntingdonshire Locality - Care,SDS - Care and support Services
Cambridgeshire County Council,30-Mar-16,19983245-13074782,-540.8,Care Uk Homecare,Care Establishment,2 - Operations - Learning Disability,LDP Huntingdonshire Locality - Care,SDS - Care and support Services
Cambridgeshire County Council,30-Mar-16,19983246-13074783,-540.8,Care Uk Homecare,Care Establishment,2 - Operations - Learning Disability,LDP Huntingdonshire Locality - Care,SDS - Care and support Services
Cambridgeshire County Council,30-Mar-16,19983247-13074784,-540.8,Care Uk Homecare,Care Establishment,2 - Operations - Learning Disability,LDP Huntingdonshire Locality - Care,SDS - Care and support Services
Cambridgeshire County Council,30-Mar-16,19983248-13074785,-540.8,Care Uk Homecare,Care Establishment,2 - Operations - Learning Disability,LDP Huntingdonshire Locality - Care,SDS - Care and support Services
Cambridgeshire County Council,30-Mar-16,19983250-13074787,-540.8,Care Uk Homecare,Care Establishment,2 - Operations - Learning Disability,LDP Huntingdonshire Locality - Care,SDS - Care and support Services
Cambridgeshire County Council,30-Mar-16,19983252-13074789,-540.8,Care Uk Homecare,Care Establishment,2 - Operations - Learning Disability,LDP Huntingdonshire Locality - Care,SDS - Care and support Services
Cambridgeshire County Council,30-Mar-16,19983257-13074794,-540.8,Care Uk Homecare,Care Establishment,2 - Operations - Learning Disability,LDP Huntingdonshire Locality - Care,SDS - Care and support Services
Cambridgeshire County Council,30-Mar-16,19983258-13074795,-540.8,Care Uk Homecare,Care Establishment,2 - Operations - Learning Disability,LDP Huntingdonshire Locality - Care,SDS - Care and support Services
Cambridgeshire County Council,30-Mar-16,19983261-13074797,-540.8,Care Uk Homecare,Care Establishment,2 - Operations - Learning Disability,LDP Huntingdonshire Locality - Care,SDS - Care and support Services
Cambridgeshire County Council,30-Mar-16,19983262-13074798,-540.8,Care Uk Homecare,Care Establishment,2 - Operations - Learning Disability,LDP Huntingdonshire Locality - Care,SDS - Care and support Services
Cambridgeshire County Council,30-Mar-16,19983264-13074800,-540.8,Care Uk Homecare,Care Establishment,2 - Operations - Learning Disability,LDP Huntingdonshire Locality - Care,SDS - Care and support Services
Cambridgeshire County Council,30-Mar-16,19983267-13074802,-540.8,Care Uk Homecare,Care Establishment,2 - Operations - Learning Disability,LDP Huntingdonshire Locality - Care,SDS - Care and support Services
Cambridgeshire County Council,30-Mar-16,19983270-13074805,-540.8,Care Uk Homecare,Care Establishment,2 - Operations - Learning Disability,LDP Huntingdonshire Locality - Care,SDS - Care and support Services
Cambridgeshire County Council,30-Mar-16,19983271-13074806,-540.8,Care Uk Homecare,Care Establishment,2 - Operations - Learning Disability,LDP Huntingdonshire Locality - Care,SDS - Care and support Services
Cambridgeshire County Council,30-Mar-16,19983273-13074808,-540.8,Care Uk Homecare,Care Establishment,2 - Operations - Learning Disability,LDP Huntingdonshire Locality - Care,SDS - Care and support Services
Cambridgeshire County Council,30-Mar-16,19983278-13074813,-540.8,Care Uk Homecare,Care Establishment,2 - Operations - Learning Disability,LDP Huntingdonshire Locality - Care,SDS - Care and support Services
Cambridgeshire County Council,30-Mar-16,19983280-13074815,-540.8,Care Uk Homecare,Care Establishment,2 - Operations - Learning Disability,LDP Huntingdonshire Locality - Care,SDS - Care and support Services
Cambridgeshire County Council,30-Mar-16,19983282-13074817,-540.8,Care Uk Homecare,Care Establishment,2 - Operations - Learning Disability,LDP Huntingdonshire Locality - Care,SDS - Care and support Services
Cambridgeshire County Council,30-Mar-16,19983288-13074823,-540.8,Care Uk Homecare,Care Establishment,2 - Operations - Learning Disability,LDP Huntingdonshire Locality - Care,SDS - Care and support Services
Cambridgeshire County Council,30-Mar-16,19983291-13074825,-540.8,Care Uk Homecare,Care Establishment,2 - Operations - Learning Disability,LDP Huntingdonshire Locality - Care,SDS - Care and support Services
Cambridgeshire County Council,30-Mar-16,19983296-13074829,-540.8,Care Uk Homecare,Care Establishment,2 - Operations - Learning Disability,LDP Huntingdonshire Locality - Care,SDS - Care and support Services
Cambridgeshire County Council,30-Mar-16,19983297-13074712,-540.8,Care Uk Homecare,Care Establishment,2 - Operations - Learning Disability,LDP Huntingdonshire Locality - Care,SDS - Care and support Services
Cambridgeshire County Council,30-Mar-16,19983304-13074719,-540.8,Care Uk Homecare,Care Establishment,2 - Operations - Learning Disability,LDP Huntingdonshire Locality - Care,SDS - Care and support Services
Cambridgeshire County Council,30-Mar-16,19983305-13074720,-540.8,Care Uk Homecare,Care Establishment,2 - Operations - Learning Disability,LDP Huntingdonshire Locality - Care,SDS - Care and support Services
Cambridgeshire County Council,17-Mar-16,20218233-12990422,-538.64,Redacted Personal Data,Individual,2 - Operations - Learning Disability,LDP South Cambs Locality - Care,Direct Payments - Social Services
Cambridgeshire County Council,17-Mar-16,20218236-12990425,-538.64,Redacted Personal Data,Individual,2 - Operations - Learning Disability,LDP South Cambs Locality - Care,Direct Payments - Social Services
Cambridgeshire County Council,16-Mar-16,20191207-12986779,-532.55,Rheola Healthcare,Care Establishment,4 - Commissioning - Mental Health & Supporting People,Dom Blocks,Respite Independent Sector
Cambridgeshire County Council,30-Mar-16,20392265-13075028,-530.83,Redacted Personal Data,Individual,2 - Operations - Learning Disability,LDP South Cambs Locality - Care,SDS - Care and support Services
Cambridgeshire County Council,30-Mar-16,20392273-13075034,-530.83,Redacted Personal Data,Individual,2 - Operations - Learning Disability,LDP South Cambs Locality - Care,SDS - Care and support Services
Cambridgeshire County Council,30-Mar-16,20392279-13075018,-530.83,Redacted Personal Data,Individual,2 - Operations - Learning Disability,LDP South Cambs Locality - Care,SDS - Care and support Services
Cambridgeshire County Council,04-Mar-16,19978203-12929665,-528.25,Mayfield Heath Farm,Care Establishment,2 - Operations - Learning Disability,LDP Huntingdonshire Locality - Care,Supported Living
Cambridgeshire County Council,04-Mar-16,19981766-12929629,-528.25,Mayfield Heath Farm,Care Establishment,2 - Operations - Learning Disability,LDP Huntingdonshire Locality - Care,Supported Living
Cambridgeshire County Council,04-Mar-16,20118301-12925361,-525.95,The Gables Specialist Nursing Home,Care Establishment,2 - Commissioning - Older people Pool,Older People Mental Health Fenland,Nursing Independent Sector
Cambridgeshire County Council,04-Mar-16,20118303-12925363,-525.95,The Gables Specialist Nursing Home,Care Establishment,2 - Commissioning - Older people Pool,Older People Mental Health Fenland,Nursing Independent Sector
Cambridgeshire County Council,04-Mar-16,20118304-12925364,-525.95,The Gables Specialist Nursing Home,Care Establishment,2 - Commissioning - Older people Pool,Older People Mental Health Fenland,Nursing Independent Sector
Cambridgeshire County Council,04-Mar-16,20118306-12925366,-525.95,The Gables Specialist Nursing Home,Care Establishment,2 - Commissioning - Older people Pool,Older People Mental Health Fenland,Nursing Independent Sector
Cambridgeshire County Council,04-Mar-16,20118307-12925367,-525.95,The Gables Specialist Nursing Home,Care Establishment,2 - Commissioning - Older people Pool,Older People Mental Health Fenland,Nursing Independent Sector
Cambridgeshire County Council,04-Mar-16,20118308-12925368,-525.95,The Gables Specialist Nursing Home,Care Establishment,2 - Commissioning - Older people Pool,Older People Mental Health Fenland,Nursing Independent Sector
Cambridgeshire County Council,04-Mar-16,20118309-12925369,-525.95,The Gables Specialist Nursing Home,Care Establishment,2 - Commissioning - Older people Pool,Older People Mental Health Fenland,Nursing Independent Sector
Cambridgeshire County Council,04-Mar-16,20118311-12925371,-525.95,The Gables Specialist Nursing Home,Care Establishment,2 - Commissioning - Older people Pool,Older People Mental Health Fenland,Nursing Independent Sector
Cambridgeshire County Council,04-Mar-16,20118314-12925374,-525.95,The Gables Specialist Nursing Home,Care Establishment,2 - Commissioning - Older people Pool,Older People Mental Health Fenland,Nursing Independent Sector
Cambridgeshire County Council,04-Mar-16,20118317-12925345,-525.95,The Gables Specialist Nursing Home,Care Establishment,2 - Commissioning - Older people Pool,Older People Mental Health Fenland,Nursing Independent Sector
Cambridgeshire County Council,04-Mar-16,20118318-12925346,-525.95,The Gables Specialist Nursing Home,Care Establishment,2 - Commissioning - Older people Pool,Older People Mental Health Fenland,Nursing Independent Sector
Cambridgeshire County Council,04-Mar-16,20118320-12925348,-525.95,The Gables Specialist Nursing Home,Care Establishment,2 - Commissioning - Older people Pool,Older People Mental Health Fenland,Nursing Independent Sector
Cambridgeshire County Council,04-Mar-16,20118323-12925351,-525.95,The Gables Specialist Nursing Home,Care Establishment,2 - Commissioning - Older people Pool,Older People Mental Health Fenland,Nursing Independent Sector
Cambridgeshire County Council,04-Mar-16,20118324-12925352,-525.95,The Gables Specialist Nursing Home,Care Establishment,2 - Commissioning - Older people Pool,Older People Mental Health Fenland,Nursing Independent Sector
Cambridgeshire County Council,04-Mar-16,20118326-12925354,-525.95,The Gables Specialist Nursing Home,Care Establishment,2 - Commissioning - Older people Pool,Older People Mental Health Fenland,Nursing Independent Sector
Cambridgeshire County Council,04-Mar-16,20118329-12925357,-525.95,The Gables Specialist Nursing Home,Care Establishment,2 - Commissioning - Older people Pool,Older People Mental Health Fenland,Nursing Independent Sector
Cambridgeshire County Council,04-Mar-16,20118331-12925359,-525.95,The Gables Specialist Nursing Home,Care Establishment,2 - Commissioning - Older people Pool,Older People Mental Health Fenland,Nursing Independent Sector
Cambridgeshire County Council,04-Mar-16,20128334-12925290,-525.95,The Gables Specialist Nursing Home,Care Establishment,2 - Commissioning - Older people Pool,Older People Mental Health Fenland,Nursing Independent Sector
Cambridgeshire County Council,04-Mar-16,20128335-12925291,-525.95,The Gables Specialist Nursing Home,Care Establishment,2 - Commissioning - Older people Pool,Older People Mental Health Fenland,Nursing Independent Sector
Cambridgeshire County Council,04-Mar-16,20128342-12925298,-525.95,The Gables Specialist Nursing Home,Care Establishment,2 - Commissioning - Older people Pool,Older People Mental Health Fenland,Nursing Independent Sector
Cambridgeshire County Council,04-Mar-16,20128345-12925301,-525.95,The Gables Specialist Nursing Home,Care Establishment,2 - Commissioning - Older people Pool,Older People Mental Health Fenland,Nursing Independent Sector
Cambridgeshire County Council,04-Mar-16,20128346-12925302,-525.95,The Gables Specialist Nursing Home,Care Establishment,2 - Commissioning - Older people Pool,Older People Mental Health Fenland,Nursing Independent Sector
Cambridgeshire County Council,04-Mar-16,20128347-12925303,-525.95,The Gables Specialist Nursing Home,Care Establishment,2 - Commissioning - Older people Pool,Older People Mental Health Fenland,Nursing Independent Sector
Cambridgeshire County Council,04-Mar-16,20128351-12925307,-525.95,The Gables Specialist Nursing Home,Care Establishment,2 - Commissioning - Older people Pool,Older People Mental Health Fenland,Nursing Independent Sector
Cambridgeshire County Council,04-Mar-16,20128352-12925308,-525.95,The Gables Specialist Nursing Home,Care Establishment,2 - Commissioning - Older people Pool,Older People Mental Health Fenland,Nursing Independent Sector
Cambridgeshire County Council,04-Mar-16,20128354-12925310,-525.95,The Gables Specialist Nursing Home,Care Establishment,2 - Commissioning - Older people Pool,Older People Mental Health Fenland,Nursing Independent Sector
Cambridgeshire County Council,04-Mar-16,20128355-12925311,-525.95,The Gables Specialist Nursing Home,Care Establishment,2 - Commissioning - Older people Pool,Older People Mental Health Fenland,Nursing Independent Sector
Cambridgeshire County Council,04-Mar-16,20128356-12925312,-525.95,The Gables Specialist Nursing Home,Care Establishment,2 - Commissioning - Older people Pool,Older People Mental Health Fenland,Nursing Independent Sector
Cambridgeshire County Council,04-Mar-16,20128358-12925314,-525.95,The Gables Specialist Nursing Home,Care Establishment,2 - Commissioning - Older people Pool,Older People Mental Health Fenland,Nursing Independent Sector
Cambridgeshire County Council,04-Mar-16,20128359-12925315,-525.95,The Gables Specialist Nursing Home,Care Establishment,2 - Commissioning - Older people Pool,Older People Mental Health Fenland,Nursing Independent Sector
Cambridgeshire County Council,04-Mar-16,20128360-12925316,-525.95,The Gables Specialist Nursing Home,Care Establishment,2 - Commissioning - Older people Pool,Older People Mental Health Fenland,Nursing Independent Sector
Cambridgeshire County Council,04-Mar-16,20128363-12925319,-525.95,The Gables Specialist Nursing Home,Care Establishment,2 - Commissioning - Older people Pool,Older People Mental Health Fenland,Nursing Independent Sector
Cambridgeshire County Council,04-Mar-16,20128364-12925320,-525.95,The Gables Specialist Nursing Home,Care Establishment,2 - Commissioning - Older people Pool,Older People Mental Health Fenland,Nursing Independent Sector
Cambridgeshire County Council,04-Mar-16,20128370-12925326,-525.95,The Gables Specialist Nursing Home,Care Establishment,2 - Commissioning - Older people Pool,Older People Mental Health Fenland,Nursing Independent Sector
Cambridgeshire County Council,24-Mar-16,20277752-13035886,-524.04,Bramley Court,Care Establishment,2 - Commissioning - Older people Pool,Older People - City & South,Nursing Independent Sector
Cambridgeshire County Council,08-Mar-16,20035412-12944163,-521.82,Securitas Security Services (Uk) Limited,Trade Supplier,LGSS Managed,Larkfield Resource Centre,Security Services
Cambridgeshire County Council,30-Mar-16,20176429-13072365,-521.74,Swan House Nursing & Residential Home,Care Establishment,2 - Commissioning - Older people Pool,East Cambs - O P Team,Nursing Independent Sector
Cambridgeshire County Council,30-Mar-16,20176430-13072366,-521.74,Swan House Nursing & Residential Home,Care Establishment,2 - Commissioning - Older people Pool,East Cambs - O P Team,Nursing Independent Sector
Cambridgeshire County Council,30-Mar-16,20176432-13072368,-521.74,Swan House Nursing & Residential Home,Care Establishment,2 - Commissioning - Older people Pool,East Cambs - O P Team,Nursing Independent Sector
Cambridgeshire County Council,30-Mar-16,20176436-13072372,-521.74,Swan House Nursing & Residential Home,Care Establishment,2 - Commissioning - Older people Pool,East Cambs - O P Team,Nursing Independent Sector
Cambridgeshire County Council,30-Mar-16,20176437-13072373,-521.74,Swan House Nursing & Residential Home,Care Establishment,2 - Commissioning - Older people Pool,East Cambs - O P Team,Nursing Independent Sector
Cambridgeshire County Council,30-Mar-16,20222897-13057098,-521.74,Heron House,Care Establishment,2 - Commissioning - Older people Pool,Older People - Fenland,Nursing Independent Sector
Cambridgeshire County Council,30-Mar-16,20222908-13057099,-521.74,Heron House,Care Establishment,2 - Commissioning - Older people Pool,Older People - Fenland,Nursing Independent Sector
Cambridgeshire County Council,30-Mar-16,20222926-13057101,-521.74,Heron House,Care Establishment,2 - Commissioning - Older people Pool,Older People - Fenland,Nursing Independent Sector
Cambridgeshire County Council,04-Mar-16,19978142-12929656,-519.58,Mayfield Heath Farm,Care Establishment,2 - Operations - Learning Disability,LDP Huntingdonshire Locality - Care,Supported Living
Cambridgeshire County Council,04-Mar-16,19978530-12929683,-519.58,Mayfield Heath Farm,Care Establishment,2 - Operations - Learning Disability,LDP Huntingdonshire Locality - Care,Supported Living
Cambridgeshire County Council,30-Mar-16,20273509-13066233,-517.86,Cambridge Manor Care Home (Tlc),Care Establishment,2 - Commissioning - Older people Pool,Older People - City & South,Nursing Independent Sector
Cambridgeshire County Council,04-Mar-16,19981838-12919145,-515.6,The Red House Residential & Nursing Home,Care Establishment,2 - Commissioning - Older people Pool,Hunts O P  Team,Nursing Independent Sector
Cambridgeshire County Council,04-Mar-16,19981842-12919147,-515.6,The Red House Residential & Nursing Home,Care Establishment,2 - Commissioning - Older people Pool,Hunts O P  Team,Nursing Independent Sector
Cambridgeshire County Council,04-Mar-16,20131590-12933180,-513.05,Ringshill Care Home,Care Establishment,2 - Commissioning - Older people Pool,Hunts O P  Team,Nursing Independent Sector
Cambridgeshire County Council,04-Mar-16,20131593-12933183,-513.05,Ringshill Care Home,Care Establishment,2 - Commissioning - Older people Pool,Older People Mental Health Hunts,Nursing Independent Sector
Cambridgeshire County Council,04-Mar-16,20131594-12933184,-513.05,Ringshill Care Home,Care Establishment,2 - Commissioning - Older people Pool,Hunts O P  Team,Nursing Independent Sector
Cambridgeshire County Council,04-Mar-16,20131595-12933185,-513.05,Ringshill Care Home,Care Establishment,2 - Commissioning - Older people Pool,Older People Mental Health Hunts,Nursing Independent Sector
Cambridgeshire County Council,04-Mar-16,20131598-12933188,-513.05,Ringshill Care Home,Care Establishment,2 - Commissioning - Older people Pool,Hunts O P  Team,Nursing Independent Sector
Cambridgeshire County Council,11-Mar-16,20177239-12967864,-513.05,Ringshill Care Home,Care Establishment,2 - Commissioning - Older people Pool,Older People Mental Health Hunts,Nursing Independent Sector
Cambridgeshire County Council,11-Mar-16,20177240-12967865,-513.05,Ringshill Care Home,Care Establishment,2 - Commissioning - Older people Pool,Hunts O P  Team,Nursing Independent Sector
Cambridgeshire County Council,11-Mar-16,20177242-12967867,-513.05,Ringshill Care Home,Care Establishment,2 - Commissioning - Older people Pool,Hunts O P  Team,Nursing Independent Sector
Cambridgeshire County Council,11-Mar-16,20177247-12967872,-513.05,Ringshill Care Home,Care Establishment,2 - Commissioning - Older people Pool,Older People Mental Health Hunts,Nursing Independent Sector
Cambridgeshire County Council,11-Mar-16,20177250-12967875,-513.05,Ringshill Care Home,Care Establishment,2 - Commissioning - Older people Pool,Hunts O P  Team,Nursing Independent Sector
Cambridgeshire County Council,30-Mar-16,20218641-13081144,-513.05,Ringshill Care Home,Care Establishment,2 - Commissioning - Older people Pool,Older People Mental Health Hunts,Nursing Independent Sector
Cambridgeshire County Council,30-Mar-16,20218642-13081145,-513.05,Ringshill Care Home,Care Establishment,2 - Commissioning - Older people Pool,Older People Mental Health Hunts,Nursing Independent Sector
Cambridgeshire County Council,30-Mar-16,20218645-13081148,-513.05,Ringshill Care Home,Care Establishment,2 - Commissioning - Older people Pool,Hunts O P  Team,Nursing Independent Sector
Cambridgeshire County Council,30-Mar-16,20218647-13081150,-513.05,Ringshill Care Home,Care Establishment,2 - Commissioning - Older people Pool,Hunts O P  Team,Nursing Independent Sector
Cambridgeshire County Council,30-Mar-16,20221803-13081127,-513.05,Ringshill Care Home,Care Establishment,2 - Commissioning - Older people Pool,Hunts O P  Team,Nursing Independent Sector
Cambridgeshire County Council,30-Mar-16,20276927-13081046,-513.05,Ringshill Care Home,Care Establishment,2 - Commissioning - Older people Pool,Older People Mental Health Hunts,Nursing Independent Sector
Cambridgeshire County Council,30-Mar-16,20276928-13081047,-513.05,Ringshill Care Home,Care Establishment,2 - Commissioning - Older people Pool,Older People Mental Health Hunts,Nursing Independent Sector
Cambridgeshire County Council,30-Mar-16,20276932-13081051,-513.05,Ringshill Care Home,Care Establishment,2 - Commissioning - Older people Pool,Older People Mental Health Hunts,Nursing Independent Sector
Cambridgeshire County Council,30-Mar-16,20276936-13081055,-513.05,Ringshill Care Home,Care Establishment,2 - Commissioning - Older people Pool,Hunts O P  Team,Nursing Independent Sector
Cambridgeshire County Council,30-Mar-16,20276937-13081056,-513.05,Ringshill Care Home,Care Establishment,2 - Commissioning - Older people Pool,Older People Mental Health Hunts,Nursing Independent Sector
Cambridgeshire County Council,30-Mar-16,20391325-13081101,-513.05,Ringshill Care Home,Care Establishment,2 - Commissioning - Older people Pool,Older People Mental Health Hunts,Nursing Independent Sector
Cambridgeshire County Council,30-Mar-16,20391326-13081102,-513.05,Ringshill Care Home,Care Establishment,2 - Commissioning - Older people Pool,Older People Mental Health Hunts,Nursing Independent Sector
Cambridgeshire County Council,30-Mar-16,20391328-13081104,-513.05,Ringshill Care Home,Care Establishment,2 - Commissioning - Older people Pool,Hunts O P  Team,Nursing Independent Sector
Cambridgeshire County Council,30-Mar-16,20402350-13081074,-513.05,Ringshill Care Home,Care Establishment,2 - Commissioning - Older people Pool,Older People Mental Health Hunts,Nursing Independent Sector
Cambridgeshire County Council,30-Mar-16,20402354-13081071,-513.05,Ringshill Care Home,Care Establishment,2 - Commissioning - Older people Pool,Older People Mental Health Hunts,Nursing Independent Sector
Cambridgeshire County Council,24-Mar-16,20274837-13035003,-512,Thera East Anglia,Trust (Other),2 - Operations - Learning Disability,LDP South Cambs Locality - Care,Supported Living
Cambridgeshire County Council,04-Mar-16,20061011-12916974,-504.86,Citc Care Ltd (Home Choice),Care Establishment,3 - Operations - Countywide Services,Countywide PD Service - Care,Day and Domicillary Care Independent Sector
Cambridgeshire County Council,08-Mar-16,20026501-12944140,500,Crosshall Junior School Ltd,Education,LRNG,Intervention,Other Hired Contract Services
Cambridgeshire County Council,08-Mar-16,20077367-12943904,500,Andy Barnes Photographer,Trade Supplier,CSC,Childrens Participation,Other Hired Contract Services
Cambridgeshire County Council,04-Mar-16,20092752-12910419,500,The Stephen Perse Foundation,Nursery,Growth & Economy,LSTF - TfW Resources,Marketing
Cambridgeshire County Council,04-Mar-16,20114454-12931026,500,The Chestnuts Residential Home,Care Establishment,2 - Commissioning - Older people Pool,Older People - Fenland,Residential Independent Sector
Cambridgeshire County Council,04-Mar-16,20114455-12931027,500,The Chestnuts Residential Home,Care Establishment,2 - Commissioning - Older people Pool,Older People - Fenland,Residential Independent Sector
Cambridgeshire County Council,04-Mar-16,20115195-12930545,500,Bethany Francis House#1,Care Establishment,2 - Commissioning - Older people Pool,Hunts O P  Team,Residential Independent Sector
Cambridgeshire County Council,04-Mar-16,20115196-12930546,500,Bethany Francis House#1,Care Establishment,2 - Commissioning - Older people Pool,Hunts O P  Team,Residential Independent Sector
Cambridgeshire County Council,04-Mar-16,20115197-12930547,500,Bethany Francis House#1,Care Establishment,2 - Commissioning - Older people Pool,Hunts O P  Team,Residential Independent Sector
Cambridgeshire County Council,04-Mar-16,20115198-12930548,500,Bethany Francis House#1,Care Establishment,2 - Commissioning - Older people Pool,Hunts O P  Team,Residential Independent Sector
Cambridgeshire County Council,04-Mar-16,20119068-12917466,500,Heron House,Care Establishment,2 - Commissioning - Older people Pool,East Cambs - O P Team,Residential Independent Sector
Cambridgeshire County Council,04-Mar-16,20119069-12917467,500,Heron House,Care Establishment,2 - Commissioning - Older people Pool,East Cambs - O P Team,Residential Independent Sector
Cambridgeshire County Council,04-Mar-16,20119070-12917468,500,Heron House,Care Establishment,2 - Commissioning - Older people Pool,East Cambs - O P Team,Residential Independent Sector
Cambridgeshire County Council,04-Mar-16,20119071-12917469,500,Heron House,Care Establishment,2 - Commissioning - Older people Pool,East Cambs - O P Team,Residential Independent Sector
Cambridgeshire County Council,04-Mar-16,20125731-12930516,500,Bethany Francis House#1,Care Establishment,3 - Operations - Countywide Services,Countywide PD Service - Care,Residential Independent Sector
